Unique Ref No ,Vendor name,Subject Mapping 1 (Higher Level),Subject Mapping 2 (Level 2),Subjective  Description,Capital/Revenue,GL Posting Date,Line Amount,Directorate
WC59 - 0001,118 PHARMACY LIMITED,Third Party Payments,Joint Arrangements,71007-CONTRIBUTION TO PCT,Revenue,11/08/2015,300.00,Economy & Environment
WC59 - 0002,1ST CARE LIMITED T/A STUBBY LEAS NURSING HOME,Third Party Payments,Private Contractor Fees,73373-RESIDENTIAL & NURSING CARE PLACEMENTS,Revenue,04/08/2015,"6,655.98",Social Care & Inclusion
WC59 - 0003,1ST CARE LIMITED T/A STUBBY LEAS NURSING HOME,Third Party Payments,Private Contractor Fees,73373-RESIDENTIAL & NURSING CARE PLACEMENTS,Revenue,04/08/2015,"11,904.51",Social Care & Inclusion
WC59 - 0004,1ST HAND CARE LTD,Third Party Payments,Private Contractor Fees,73372-DOMICILIARY CARE,Revenue,19/08/2015,"2,599.00",Social Care & Inclusion
WC59 - 0005,247 CARS (WILLENHALL) LIMITED,Transport,Hire,52000-WITH DRIVER-HIRE OF VEHICLES,Revenue,07/08/2015,508.80,Childrens
WC59 - 0006,247 CARS (WILLENHALL) LIMITED,Transport,Hire,52000-WITH DRIVER-HIRE OF VEHICLES,Revenue,07/08/2015,763.20,Childrens
WC59 - 0007,247 CARS (WILLENHALL) LIMITED,Transport,Hire,52000-WITH DRIVER-HIRE OF VEHICLES,Revenue,07/08/2015,954.00,Childrens
WC59 - 0008,247 CARS (WILLENHALL) LIMITED,Transport,Hire,52000-WITH DRIVER-HIRE OF VEHICLES,Revenue,07/08/2015,"1,144.80",Childrens
WC59 - 0009,247 CARS (WILLENHALL) LIMITED,Transport,Hire,52000-WITH DRIVER-HIRE OF VEHICLES,Revenue,07/08/2015,"1,272.00",Childrens
WC59 - 0010,247 CARS (WILLENHALL) LIMITED,Transport,Hire,52000-WITH DRIVER-HIRE OF VEHICLES,Revenue,07/08/2015,"1,335.60",Childrens
WC59 - 0011,2D WORKWEAR LTD,Supplies & Services,"Equip,Furniture & Materials",60500-GENERAL MATERIALS,Revenue,26/08/2015,119.79,Economy & Environment
WC59 - 0012,2D WORKWEAR LTD,Supplies & Services,"Equip,Furniture & Materials",60500-GENERAL MATERIALS,Revenue,26/08/2015,119.79,Economy & Environment
WC59 - 0013,2D WORKWEAR LTD,Supplies & Services,"Equip,Furniture & Materials",60500-GENERAL MATERIALS,Revenue,26/08/2015,119.82,Economy & Environment
WC59 - 0014,2D WORKWEAR LTD,Supplies & Services,"Equip,Furniture & Materials",60500-GENERAL MATERIALS,Revenue,05/08/2015,834.18,Economy & Environment
WC59 - 0015,2D WORKWEAR LTD,Supplies & Services,"Equip,Furniture & Materials",60500-GENERAL MATERIALS,Revenue,05/08/2015,834.18,Economy & Environment
WC59 - 0016,2D WORKWEAR LTD,Supplies & Services,"Equip,Furniture & Materials",60500-GENERAL MATERIALS,Revenue,05/08/2015,834.43,Economy & Environment
WC59 - 0017,2D WORKWEAR LTD,Supplies & Services,"Equip,Furniture & Materials",60006-NEW-FURNITURE & EQUIPMENT,Revenue,01/08/2015,"3,229.42",Economy & Environment
WC59 - 0018,39 ESSEX STREET LLP PFA,Supplies & Services,Other Supplies & Services,63116-EXTERNAL BARRISTERS-SERVICES-FEES,Revenue,03/08/2015,"1,875.00",Social Care & Inclusion
WC59 - 0019,5 CARE SERVICES LTD,Third Party Payments,Private Contractor Fees,73372-DOMICILIARY CARE,Revenue,14/08/2015,669.00,Social Care & Inclusion
WC59 - 0020,5 CARE SERVICES LTD,Third Party Payments,Private Contractor Fees,73372-DOMICILIARY CARE,Revenue,12/08/2015,856.55,Social Care & Inclusion
WC59 - 0021,5 CARE SERVICES LTD,Supplies & Services,Services,63000-PROFESSIONAL FEES AND SERVICES,Revenue,14/08/2015,954.50,Childrens
WC59 - 0022,5 CARE SERVICES LTD,Supplies & Services,Services,63000-PROFESSIONAL FEES AND SERVICES,Revenue,05/08/2015,"1,311.00",Childrens
WC59 - 0023,5 CARE SERVICES LTD,Third Party Payments,Private Contractor Fees,73372-DOMICILIARY CARE,Revenue,19/08/2015,"24,669.89",Social Care & Inclusion
WC59 - 0024,A 2 Z TAXIS (A2Z CARS),Transport,Hire,52000-WITH DRIVER-HIRE OF VEHICLES,Revenue,19/08/2015,476.00,Childrens
WC59 - 0025,A ASHTON,Supplies & Services,"Equip,Furniture & Materials",60000-FURNITURE & EQUIPMENT,Revenue,14/08/2015,490.00,Economy & Environment
WC59 - 0026,A ASHTON,Supplies & Services,"Equip,Furniture & Materials",60000-FURNITURE & EQUIPMENT,Revenue,03/08/2015,581.00,Economy & Environment
WC59 - 0027,A D T FIRE AND SECURITY PLC,Third Party Payments,Private Contractor Fees,73002-SECURITY-PRIV CONTRACTOR FEES,Revenue,03/08/2015,293.00,Resources
WC59 - 0028,A D T FIRE AND SECURITY PLC,Third Party Payments,Private Contractor Fees,73002-SECURITY-PRIV CONTRACTOR FEES,Revenue,14/08/2015,453.56,Resources
WC59 - 0029,A D T FIRE AND SECURITY PLC,Third Party Payments,Private Contractor Fees,73002-SECURITY-PRIV CONTRACTOR FEES,Revenue,14/08/2015,572.63,Resources
WC59 - 0030,A D T FIRE AND SECURITY PLC,Third Party Payments,Private Contractor Fees,73002-SECURITY-PRIV CONTRACTOR FEES,Revenue,24/08/2015,840.17,Resources
WC59 - 0031,A D T FIRE AND SECURITY PLC,Supplies & Services,"Equip,Furniture & Materials",60008-MAINTENANCE-FURNITURE & EQUIPMENT,Revenue,04/08/2015,961.49,Economy & Environment
WC59 - 0032,A D T FIRE AND SECURITY PLC,Third Party Payments,Private Contractor Fees,73025-PROFESSIONAL SERVICES-PRIV CONTRACTOR & OTHER AGENCIES,Revenue,25/08/2015,"1,012.66",Resources
WC59 - 0033,A F BLAKEMORE & SON LTD,Supplies & Services,Provisions,61016-FOOD AND BEVERAGES-PROVISIONS,Revenue,01/08/2015,-275.94,Social Care & Inclusion
WC59 - 0034,A F BLAKEMORE & SON LTD,Supplies & Services,Provisions,61016-FOOD AND BEVERAGES-PROVISIONS,Revenue,04/08/2015,255.48,Social Care & Inclusion
WC59 - 0035,A F BLAKEMORE & SON LTD,Supplies & Services,Provisions,61016-FOOD AND BEVERAGES-PROVISIONS,Revenue,10/08/2015,275.94,Social Care & Inclusion
WC59 - 0036,A F BLAKEMORE & SON LTD,Supplies & Services,Provisions,61016-FOOD AND BEVERAGES-PROVISIONS,Revenue,01/08/2015,313.51,Social Care & Inclusion
WC59 - 0037,A F BLAKEMORE & SON LTD,Supplies & Services,Provisions,61008-CONFECTIONERY/SNACKS-PROVISIONS,Revenue,11/08/2015,367.42,Economy & Environment
WC59 - 0038,A F BLAKEMORE & SON LTD,Supplies & Services,Provisions,61016-FOOD AND BEVERAGES-PROVISIONS,Revenue,12/08/2015,375.68,Social Care & Inclusion
WC59 - 0039,A F BLAKEMORE & SON LTD,Supplies & Services,Provisions,61016-FOOD AND BEVERAGES-PROVISIONS,Revenue,27/08/2015,580.30,Social Care & Inclusion
WC59 - 0040,A F BLAKEMORE & SON LTD,Supplies & Services,Provisions,61305-CATERING,Revenue,20/08/2015,600.47,Social Care & Inclusion
WC59 - 0041,A F BLAKEMORE & SON LTD,Supplies & Services,Provisions,61008-CONFECTIONERY/SNACKS-PROVISIONS,Revenue,18/08/2015,618.29,Economy & Environment
WC59 - 0042,A F BLAKEMORE & SON LTD,Supplies & Services,Provisions,61008-CONFECTIONERY/SNACKS-PROVISIONS,Revenue,03/08/2015,660.46,Economy & Environment
WC59 - 0043,A F BLAKEMORE & SON LTD,Supplies & Services,Provisions,61006-FRUIT & VEGETABLES OTHER-PROVISIONS,Revenue,13/08/2015,783.00,Social Care & Inclusion
WC59 - 0044,A F BLAKEMORE & SON LTD,Supplies & Services,Provisions,61305-CATERING,Revenue,20/08/2015,814.77,Social Care & Inclusion
WC59 - 0045,A F BLAKEMORE & SON LTD,Supplies & Services,Provisions,61008-CONFECTIONERY/SNACKS-PROVISIONS,Revenue,04/08/2015,877.12,Economy & Environment
WC59 - 0046,A F BLAKEMORE & SON LTD,Supplies & Services,Provisions,61016-FOOD AND BEVERAGES-PROVISIONS,Revenue,10/08/2015,"1,008.84",Resources
WC59 - 0047,A GHENT & SON,Third Party Payments,Private Contractor Fees,73025-PROFESSIONAL SERVICES-PRIV CONTRACTOR & OTHER AGENCIES,Revenue,26/08/2015,305.00,Economy & Environment
WC59 - 0048,REDACTED,Supplies & Services,Other Supplies & Services,67001-MISC INSURANCES - PAYMENT OF CLAIMS,Revenue,19/08/2015,"2,750.00",Holding Accounts
WC59 - 0049,REDACTED,Third Party Payments,Private Contractor Fees,74006-HOLIDAY/CHRISTMAS ALLOWANCE-FOSTER CARERS-OTH AGENCY PROVISION,Revenue,03/08/2015,349.76,Childrens
WC59 - 0050,A KARIMS CHUCKERY PHARMACY,Third Party Payments,Joint Arrangements,71007-CONTRIBUTION TO PCT,Revenue,19/08/2015,277.39,Economy & Environment
WC59 - 0051,A KARIMS CHUCKERY PHARMACY,Third Party Payments,Joint Arrangements,71007-CONTRIBUTION TO PCT,Revenue,11/08/2015,300.00,Economy & Environment
WC59 - 0052,A KARIMS CHUCKERY PHARMACY,Third Party Payments,Joint Arrangements,71007-CONTRIBUTION TO PCT,Revenue,19/08/2015,430.26,Economy & Environment
WC59 - 0053,A KARIMS CHUCKERY PHARMACY,Third Party Payments,Joint Arrangements,71007-CONTRIBUTION TO PCT,Revenue,19/08/2015,"1,027.43",Economy & Environment
WC59 - 0054,A KARIMS CHUCKERY PHARMACY,Third Party Payments,Joint Arrangements,71007-CONTRIBUTION TO PCT,Revenue,19/08/2015,"1,073.44",Economy & Environment
WC59 - 0055,A KARIMS CHUCKERY PHARMACY,Third Party Payments,Joint Arrangements,71007-CONTRIBUTION TO PCT,Revenue,19/08/2015,"1,083.21",Economy & Environment
WC59 - 0056,REDACTED,Supplies & Services,Other Supplies & Services,62515-MISCELLANEOUS SUPPLIES,Revenue,17/08/2015,906.76,Childrens
WC59 - 0057,REDACTED,Third Party Payments,Private Contractor Fees,74006-HOLIDAY/CHRISTMAS ALLOWANCE-FOSTER CARERS-OTH AGENCY PROVISION,Revenue,17/08/2015,985.76,Childrens
WC59 - 0058,REDACTED,Transfer Payments,Transfer Payments,76422-DIRECT PAYMENTS TO SOCIAL SERVICES CLIENTS,Revenue,07/08/2015,345.24,Childrens
WC59 - 0059,ABACUS FOSTERING LTD,Third Party Payments,Private Contractor Fees,74037-INDEPENDENT FOSTER CARE-OTH AGENCY PROVISION,Revenue,14/08/2015,"4,207.14",Childrens
WC59 - 0060,ABACUS FOSTERING LTD,Third Party Payments,Private Contractor Fees,74037-INDEPENDENT FOSTER CARE-OTH AGENCY PROVISION,Revenue,14/08/2015,"4,207.14",Childrens
WC59 - 0061,REDACTED,Third Party Payments,Private Contractor Fees,74006-HOLIDAY/CHRISTMAS ALLOWANCE-FOSTER CARERS-OTH AGENCY PROVISION,Revenue,03/08/2015,650.92,Childrens
WC59 - 0062,ABBEY COURT NURSING & RESIDEN,Third Party Payments,Private Contractor Fees,73373-RESIDENTIAL & NURSING CARE PLACEMENTS,Revenue,04/08/2015,"1,654.07",Social Care & Inclusion
WC59 - 0063,ABC DAY NURSERY (WILLENHALL) LIMITED,Employees,Other Staff Costs,32000-MISC FEES AND EXPENSES,Revenue,03/08/2015,294.00,Childrens
WC59 - 0064,ABC DAY NURSERY (WILLENHALL) LIMITED,Third Party Payments,Grants to Other Orgs,66505-OTHER-GRANTS TO OTHER ORGS,Revenue,24/08/2015,516.75,Childrens
WC59 - 0065,ABC FOSTERING,Third Party Payments,Private Contractor Fees,74037-INDEPENDENT FOSTER CARE-OTH AGENCY PROVISION,Revenue,24/08/2015,"2,980.34",Childrens
WC59 - 0066,ABC FOSTERING,Third Party Payments,Private Contractor Fees,74037-INDEPENDENT FOSTER CARE-OTH AGENCY PROVISION,Revenue,24/08/2015,"3,137.20",Childrens
WC59 - 0067,ABC FOSTERING,Third Party Payments,Private Contractor Fees,74037-INDEPENDENT FOSTER CARE-OTH AGENCY PROVISION,Revenue,24/08/2015,"3,410.00",Childrens
WC59 - 0068,ABC TEACHERS LIMITED,Employees,Agency,34305-AGENCY STAFF-EMPLOYEES,Revenue,13/08/2015,-677.97,Childrens
WC59 - 0069,ABC TEACHERS LIMITED,Employees,Agency,34305-AGENCY STAFF-EMPLOYEES,Revenue,13/08/2015,677.97,Childrens
WC59 - 0070,ABC TEACHERS LIMITED,Employees,Agency,34305-AGENCY STAFF-EMPLOYEES,Revenue,19/08/2015,677.97,Childrens
WC59 - 0071,ABC TEACHERS LIMITED,Employees,Agency,34305-AGENCY STAFF-EMPLOYEES,Revenue,19/08/2015,677.97,Childrens
WC59 - 0072,ABC TEACHERS LIMITED,Employees,Agency,34305-AGENCY STAFF-EMPLOYEES,Revenue,19/08/2015,677.97,Childrens
WC59 - 0073,ABC TEACHERS LIMITED,Employees,Agency,34305-AGENCY STAFF-EMPLOYEES,Revenue,24/08/2015,677.97,Childrens
WC59 - 0074,REDACTED,Transfer Payments,Transfer Payments,76422-DIRECT PAYMENTS TO SOCIAL SERVICES CLIENTS,Revenue,07/08/2015,"2,357.99",Social Care & Inclusion
WC59 - 0075,ABLEWELL CARS,Transport,Hire,52000-WITH DRIVER-HIRE OF VEHICLES,Revenue,13/08/2015,360.00,Childrens
WC59 - 0076,ABLEWELL CARS,Transport,Hire,52000-WITH DRIVER-HIRE OF VEHICLES,Revenue,10/08/2015,594.00,Childrens
WC59 - 0077,ABLEWELL CARS,Transport,Hire,52000-WITH DRIVER-HIRE OF VEHICLES,Revenue,13/08/2015,627.00,Childrens
WC59 - 0078,ABLEWELL CARS,Transport,Hire,52000-WITH DRIVER-HIRE OF VEHICLES,Revenue,12/08/2015,"1,060.00",Childrens
WC59 - 0079,ACCORD HOUSING ASSOCIATION LTD#135,Third Party Payments,Private Contractor Fees,73372-DOMICILIARY CARE,Revenue,25/08/2015,321.76,Social Care & Inclusion
WC59 - 0080,ACCORD HOUSING ASSOCIATION LTD#135,Third Party Payments,Private Contractor Fees,73372-DOMICILIARY CARE,Revenue,26/08/2015,321.76,Social Care & Inclusion
WC59 - 0081,ACCORD HOUSING ASSOCIATION LTD#135,Third Party Payments,Private Contractor Fees,73372-DOMICILIARY CARE,Revenue,25/08/2015,353.40,Social Care & Inclusion
WC59 - 0082,ACCORD HOUSING ASSOCIATION LTD#135,Third Party Payments,Private Contractor Fees,73372-DOMICILIARY CARE,Revenue,25/08/2015,354.28,Social Care & Inclusion
WC59 - 0083,ACCORD HOUSING ASSOCIATION LTD#135,Third Party Payments,Private Contractor Fees,73372-DOMICILIARY CARE,Revenue,26/08/2015,354.28,Social Care & Inclusion
WC59 - 0084,ACCORD HOUSING ASSOCIATION LTD#135,Third Party Payments,Private Contractor Fees,73372-DOMICILIARY CARE,Revenue,26/08/2015,354.28,Social Care & Inclusion
WC59 - 0085,ACCORD HOUSING ASSOCIATION LTD#135,Third Party Payments,Private Contractor Fees,73374-SUPPORTED & OTHER ACCOMMODATION,Revenue,04/08/2015,411.20,Social Care & Inclusion
WC59 - 0086,ACCORD HOUSING ASSOCIATION LTD#135,Third Party Payments,Private Contractor Fees,73374-SUPPORTED & OTHER ACCOMMODATION,Revenue,26/08/2015,411.20,Social Care & Inclusion
WC59 - 0087,ACCORD HOUSING ASSOCIATION LTD#135,Third Party Payments,Private Contractor Fees,73372-DOMICILIARY CARE,Revenue,25/08/2015,411.92,Social Care & Inclusion
WC59 - 0088,ACCORD HOUSING ASSOCIATION LTD#135,Third Party Payments,Private Contractor Fees,73372-DOMICILIARY CARE,Revenue,26/08/2015,411.92,Social Care & Inclusion
WC59 - 0089,ACCORD HOUSING ASSOCIATION LTD#135,Third Party Payments,Private Contractor Fees,73372-DOMICILIARY CARE,Revenue,25/08/2015,444.92,Social Care & Inclusion
WC59 - 0090,ACCORD HOUSING ASSOCIATION LTD#135,Third Party Payments,Private Contractor Fees,73372-DOMICILIARY CARE,Revenue,26/08/2015,444.92,Social Care & Inclusion
WC59 - 0091,ACCORD HOUSING ASSOCIATION LTD#135,Third Party Payments,Private Contractor Fees,73372-DOMICILIARY CARE,Revenue,26/08/2015,444.92,Social Care & Inclusion
WC59 - 0092,ACCORD HOUSING ASSOCIATION LTD#135,Third Party Payments,Private Contractor Fees,73372-DOMICILIARY CARE,Revenue,04/08/2015,455.32,Social Care & Inclusion
WC59 - 0093,ACCORD HOUSING ASSOCIATION LTD#135,Third Party Payments,Private Contractor Fees,73372-DOMICILIARY CARE,Revenue,04/08/2015,463.60,Social Care & Inclusion
WC59 - 0094,ACCORD HOUSING ASSOCIATION LTD#135,Third Party Payments,Private Contractor Fees,73372-DOMICILIARY CARE,Revenue,26/08/2015,463.60,Social Care & Inclusion
WC59 - 0095,ACCORD HOUSING ASSOCIATION LTD#135,Third Party Payments,Private Contractor Fees,73372-DOMICILIARY CARE,Revenue,24/08/2015,492.40,Social Care & Inclusion
WC59 - 0096,ACCORD HOUSING ASSOCIATION LTD#135,Third Party Payments,Private Contractor Fees,73372-DOMICILIARY CARE,Revenue,26/08/2015,492.40,Social Care & Inclusion
WC59 - 0097,ACCORD HOUSING ASSOCIATION LTD#135,Third Party Payments,Private Contractor Fees,73372-DOMICILIARY CARE,Revenue,04/08/2015,502.32,Social Care & Inclusion
WC59 - 0098,ACCORD HOUSING ASSOCIATION LTD#135,Third Party Payments,Private Contractor Fees,73372-DOMICILIARY CARE,Revenue,26/08/2015,502.32,Social Care & Inclusion
WC59 - 0099,ACCORD HOUSING ASSOCIATION LTD#135,Third Party Payments,Private Contractor Fees,73374-SUPPORTED & OTHER ACCOMMODATION,Revenue,04/08/2015,541.88,Social Care & Inclusion
WC59 - 0100,ACCORD HOUSING ASSOCIATION LTD#135,Third Party Payments,Private Contractor Fees,73374-SUPPORTED & OTHER ACCOMMODATION,Revenue,26/08/2015,541.88,Social Care & Inclusion
WC59 - 0101,ACCORD HOUSING ASSOCIATION LTD#135,Third Party Payments,Private Contractor Fees,73374-SUPPORTED & OTHER ACCOMMODATION,Revenue,24/08/2015,550.71,Social Care & Inclusion
WC59 - 0102,ACCORD HOUSING ASSOCIATION LTD#135,Third Party Payments,Private Contractor Fees,73374-SUPPORTED & OTHER ACCOMMODATION,Revenue,26/08/2015,550.71,Social Care & Inclusion
WC59 - 0103,ACCORD HOUSING ASSOCIATION LTD#135,Third Party Payments,Private Contractor Fees,73372-DOMICILIARY CARE,Revenue,26/08/2015,566.72,Social Care & Inclusion
WC59 - 0104,ACCORD HOUSING ASSOCIATION LTD#135,Third Party Payments,Private Contractor Fees,73374-SUPPORTED & OTHER ACCOMMODATION,Revenue,26/08/2015,569.07,Social Care & Inclusion
WC59 - 0105,ACCORD HOUSING ASSOCIATION LTD#135,Third Party Payments,Private Contractor Fees,73372-DOMICILIARY CARE,Revenue,25/08/2015,595.44,Social Care & Inclusion
WC59 - 0106,ACCORD HOUSING ASSOCIATION LTD#135,Third Party Payments,Private Contractor Fees,73372-DOMICILIARY CARE,Revenue,26/08/2015,595.44,Social Care & Inclusion
WC59 - 0107,ACCORD HOUSING ASSOCIATION LTD#135,Third Party Payments,Private Contractor Fees,73372-DOMICILIARY CARE,Revenue,25/08/2015,656.88,Social Care & Inclusion
WC59 - 0108,ACCORD HOUSING ASSOCIATION LTD#135,Third Party Payments,Private Contractor Fees,73372-DOMICILIARY CARE,Revenue,26/08/2015,656.88,Social Care & Inclusion
WC59 - 0109,ACCORD HOUSING ASSOCIATION LTD#135,Third Party Payments,Private Contractor Fees,73374-SUPPORTED & OTHER ACCOMMODATION,Revenue,04/08/2015,657.08,Social Care & Inclusion
WC59 - 0110,ACCORD HOUSING ASSOCIATION LTD#135,Third Party Payments,Private Contractor Fees,73374-SUPPORTED & OTHER ACCOMMODATION,Revenue,26/08/2015,657.08,Social Care & Inclusion
WC59 - 0111,ACCORD HOUSING ASSOCIATION LTD#135,Third Party Payments,Private Contractor Fees,73372-DOMICILIARY CARE,Revenue,25/08/2015,697.64,Social Care & Inclusion
WC59 - 0112,ACCORD HOUSING ASSOCIATION LTD#135,Third Party Payments,Private Contractor Fees,73372-DOMICILIARY CARE,Revenue,04/08/2015,721.28,Social Care & Inclusion
WC59 - 0113,ACCORD HOUSING ASSOCIATION LTD#135,Third Party Payments,Private Contractor Fees,73372-DOMICILIARY CARE,Revenue,04/08/2015,721.28,Social Care & Inclusion
WC59 - 0114,ACCORD HOUSING ASSOCIATION LTD#135,Third Party Payments,Private Contractor Fees,73372-DOMICILIARY CARE,Revenue,04/08/2015,772.80,Social Care & Inclusion
WC59 - 0115,ACCORD HOUSING ASSOCIATION LTD#135,Third Party Payments,Private Contractor Fees,73372-DOMICILIARY CARE,Revenue,26/08/2015,772.80,Social Care & Inclusion
WC59 - 0116,ACCORD HOUSING ASSOCIATION LTD#135,Third Party Payments,Private Contractor Fees,73372-DOMICILIARY CARE,Revenue,25/08/2015,775.76,Social Care & Inclusion
WC59 - 0117,ACCORD HOUSING ASSOCIATION LTD#135,Third Party Payments,Private Contractor Fees,73372-DOMICILIARY CARE,Revenue,25/08/2015,775.76,Social Care & Inclusion
WC59 - 0118,ACCORD HOUSING ASSOCIATION LTD#135,Third Party Payments,Private Contractor Fees,73372-DOMICILIARY CARE,Revenue,25/08/2015,775.76,Social Care & Inclusion
WC59 - 0119,ACCORD HOUSING ASSOCIATION LTD#135,Third Party Payments,Private Contractor Fees,73372-DOMICILIARY CARE,Revenue,26/08/2015,775.76,Social Care & Inclusion
WC59 - 0120,ACCORD HOUSING ASSOCIATION LTD#135,Third Party Payments,Private Contractor Fees,73372-DOMICILIARY CARE,Revenue,26/08/2015,775.76,Social Care & Inclusion
WC59 - 0121,REDACTED,Transfer Payments,Transfer Payments,76422-DIRECT PAYMENTS TO SOCIAL SERVICES CLIENTS,Revenue,10/08/2015,842.58,Childrens
WC59 - 0122,ACCORD HOUSING ASSOCIATION LTD#135,Third Party Payments,Private Contractor Fees,73372-DOMICILIARY CARE,Revenue,25/08/2015,850.08,Social Care & Inclusion
WC59 - 0123,ACCORD HOUSING ASSOCIATION LTD#135,Third Party Payments,Private Contractor Fees,73372-DOMICILIARY CARE,Revenue,04/08/2015,862.96,Social Care & Inclusion
WC59 - 0124,ACCORD HOUSING ASSOCIATION LTD#135,Third Party Payments,Private Contractor Fees,73372-DOMICILIARY CARE,Revenue,04/08/2015,907.20,Social Care & Inclusion
WC59 - 0125,ACCORD HOUSING ASSOCIATION LTD#135,Third Party Payments,Private Contractor Fees,73372-DOMICILIARY CARE,Revenue,01/08/2015,916.40,Social Care & Inclusion
WC59 - 0126,ACCORD HOUSING ASSOCIATION LTD#135,Third Party Payments,Private Contractor Fees,73372-DOMICILIARY CARE,Revenue,01/08/2015,"1,107.44",Social Care & Inclusion
WC59 - 0127,ACCORD HOUSING ASSOCIATION LTD#135,Third Party Payments,Private Contractor Fees,73372-DOMICILIARY CARE,Revenue,04/08/2015,"1,107.44",Social Care & Inclusion
WC59 - 0128,ACCORD HOUSING ASSOCIATION LTD#135,Third Party Payments,Private Contractor Fees,73372-DOMICILIARY CARE,Revenue,04/08/2015,"1,133.20",Social Care & Inclusion
WC59 - 0129,ACCORD HOUSING ASSOCIATION LTD#135,Third Party Payments,Private Contractor Fees,73372-DOMICILIARY CARE,Revenue,04/08/2015,"1,133.20",Social Care & Inclusion
WC59 - 0130,ACCORD HOUSING ASSOCIATION LTD#135,Third Party Payments,Private Contractor Fees,73372-DOMICILIARY CARE,Revenue,24/08/2015,"1,133.20",Social Care & Inclusion
WC59 - 0131,ACCORD HOUSING ASSOCIATION LTD#135,Third Party Payments,Private Contractor Fees,73372-DOMICILIARY CARE,Revenue,25/08/2015,"1,159.20",Social Care & Inclusion
WC59 - 0132,ACCORD HOUSING ASSOCIATION LTD#135,Third Party Payments,Private Contractor Fees,73372-DOMICILIARY CARE,Revenue,25/08/2015,"1,159.20",Social Care & Inclusion
WC59 - 0133,ACCORD HOUSING ASSOCIATION LTD#135,Third Party Payments,Private Contractor Fees,73372-DOMICILIARY CARE,Revenue,26/08/2015,"1,159.20",Social Care & Inclusion
WC59 - 0134,ACCORD HOUSING ASSOCIATION LTD#135,Third Party Payments,Private Contractor Fees,73372-DOMICILIARY CARE,Revenue,25/08/2015,"1,183.96",Social Care & Inclusion
WC59 - 0135,ACCORD HOUSING ASSOCIATION LTD#135,Third Party Payments,Private Contractor Fees,73372-DOMICILIARY CARE,Revenue,04/08/2015,"1,184.72",Social Care & Inclusion
WC59 - 0136,ACCORD HOUSING ASSOCIATION LTD#135,Third Party Payments,Private Contractor Fees,73372-DOMICILIARY CARE,Revenue,24/08/2015,"1,184.72",Social Care & Inclusion
WC59 - 0137,ACCORD HOUSING ASSOCIATION LTD#135,Third Party Payments,Private Contractor Fees,73372-DOMICILIARY CARE,Revenue,25/08/2015,"1,197.80",Social Care & Inclusion
WC59 - 0138,ACCORD HOUSING ASSOCIATION LTD#135,Third Party Payments,Private Contractor Fees,73372-DOMICILIARY CARE,Revenue,26/08/2015,"1,197.80",Social Care & Inclusion
WC59 - 0139,ACCORD HOUSING ASSOCIATION LTD#135,Third Party Payments,Private Contractor Fees,73372-DOMICILIARY CARE,Revenue,24/08/2015,"1,416.56",Social Care & Inclusion
WC59 - 0140,ACCORD HOUSING ASSOCIATION LTD#135,Third Party Payments,Private Contractor Fees,73372-DOMICILIARY CARE,Revenue,04/08/2015,"1,457.36",Social Care & Inclusion
WC59 - 0141,ACCORD HOUSING ASSOCIATION LTD#135,Third Party Payments,Private Contractor Fees,73372-DOMICILIARY CARE,Revenue,26/08/2015,"1,538.68",Social Care & Inclusion
WC59 - 0142,ACCORD HOUSING ASSOCIATION LTD#135,Third Party Payments,Private Contractor Fees,73372-DOMICILIARY CARE,Revenue,26/08/2015,"1,538.68",Social Care & Inclusion
WC59 - 0143,ACCORD HOUSING ASSOCIATION LTD#135,Third Party Payments,Private Contractor Fees,73374-SUPPORTED & OTHER ACCOMMODATION,Revenue,25/08/2015,"1,584.00",Social Care & Inclusion
WC59 - 0144,ACCORD HOUSING ASSOCIATION LTD#135,Third Party Payments,Private Contractor Fees,73374-SUPPORTED & OTHER ACCOMMODATION,Revenue,25/08/2015,"1,584.00",Social Care & Inclusion
WC59 - 0145,ACCORD HOUSING ASSOCIATION LTD#135,Third Party Payments,Private Contractor Fees,73374-SUPPORTED & OTHER ACCOMMODATION,Revenue,26/08/2015,"1,584.00",Social Care & Inclusion
WC59 - 0146,ACCORD HOUSING ASSOCIATION LTD#135,Third Party Payments,Private Contractor Fees,73372-DOMICILIARY CARE,Revenue,25/08/2015,"1,725.68",Social Care & Inclusion
WC59 - 0147,ACCORD HOUSING ASSOCIATION LTD#135,Third Party Payments,Private Contractor Fees,73372-DOMICILIARY CARE,Revenue,25/08/2015,"1,725.68",Social Care & Inclusion
WC59 - 0148,ACCORD HOUSING ASSOCIATION LTD#135,Third Party Payments,Private Contractor Fees,73372-DOMICILIARY CARE,Revenue,26/08/2015,"1,725.68",Social Care & Inclusion
WC59 - 0149,ACCORD HOUSING ASSOCIATION LTD#135,Third Party Payments,Private Contractor Fees,73372-DOMICILIARY CARE,Revenue,25/08/2015,"2,408.32",Social Care & Inclusion
WC59 - 0150,ACCORD HOUSING ASSOCIATION LTD#135,Third Party Payments,Grants to Other Orgs,66500-GRANTS TO OTHER ORGS,Revenue,12/08/2015,"52,117.81",Economy & Environment
WC59 - 0151,ACE CARE AGENCY,Third Party Payments,Private Contractor Fees,73372-DOMICILIARY CARE,Revenue,11/08/2015,647.52,Social Care & Inclusion
WC59 - 0152,ACE CARE AGENCY,Third Party Payments,Private Contractor Fees,73372-DOMICILIARY CARE,Revenue,11/08/2015,"1,019.76",Social Care & Inclusion
WC59 - 0153,ACE RADIO CARS,Transport,Hire,52000-WITH DRIVER-HIRE OF VEHICLES,Revenue,14/08/2015,"1,268.80",Childrens
WC59 - 0154,ACEPAY LTD (COTTAGE NUR HOME),Third Party Payments,Private Contractor Fees,73373-RESIDENTIAL & NURSING CARE PLACEMENTS,Revenue,18/08/2015,782.36,Social Care & Inclusion
WC59 - 0155,ACEPAY LTD (COTTAGE NUR HOME),Third Party Payments,Private Contractor Fees,73373-RESIDENTIAL & NURSING CARE PLACEMENTS,Revenue,04/08/2015,987.80,Social Care & Inclusion
WC59 - 0156,ACEPAY LTD (COTTAGE NUR HOME),Third Party Payments,Private Contractor Fees,73373-RESIDENTIAL & NURSING CARE PLACEMENTS,Revenue,18/08/2015,"1,975.60",Social Care & Inclusion
WC59 - 0157,ACEPAY LTD (COTTAGE NUR HOME),Third Party Payments,Private Contractor Fees,73373-RESIDENTIAL & NURSING CARE PLACEMENTS,Revenue,25/08/2015,"1,975.60",Social Care & Inclusion
WC59 - 0158,ACEPAY LTD (COTTAGE NUR HOME),Third Party Payments,Private Contractor Fees,73373-RESIDENTIAL & NURSING CARE PLACEMENTS,Revenue,25/08/2015,"1,975.60",Social Care & Inclusion
WC59 - 0159,ACEPAY LTD (COTTAGE NUR HOME),Third Party Payments,Private Contractor Fees,73373-RESIDENTIAL & NURSING CARE PLACEMENTS,Revenue,25/08/2015,"2,018.20",Social Care & Inclusion
WC59 - 0160,ACEPAY LTD (COTTAGE NUR HOME),Third Party Payments,Private Contractor Fees,73373-RESIDENTIAL & NURSING CARE PLACEMENTS,Revenue,25/08/2015,"2,018.20",Social Care & Inclusion
WC59 - 0161,ACEPAY LTD (COTTAGE NUR HOME),Third Party Payments,Private Contractor Fees,73373-RESIDENTIAL & NURSING CARE PLACEMENTS,Revenue,25/08/2015,"2,018.20",Social Care & Inclusion
WC59 - 0162,ACEPAY LTD (COTTAGE NUR HOME),Third Party Payments,Private Contractor Fees,73373-RESIDENTIAL & NURSING CARE PLACEMENTS,Revenue,18/08/2015,"2,100.40",Social Care & Inclusion
WC59 - 0163,ACEPAY LTD (COTTAGE NUR HOME),Third Party Payments,Private Contractor Fees,73373-RESIDENTIAL & NURSING CARE PLACEMENTS,Revenue,18/08/2015,"2,163.05",Social Care & Inclusion
WC59 - 0164,ACEPAY LTD (COTTAGE NUR HOME),Third Party Payments,Private Contractor Fees,73373-RESIDENTIAL & NURSING CARE PLACEMENTS,Revenue,18/08/2015,"2,163.06",Social Care & Inclusion
WC59 - 0165,ACEPAY LTD (COTTAGE NUR HOME),Third Party Payments,Private Contractor Fees,73373-RESIDENTIAL & NURSING CARE PLACEMENTS,Revenue,18/08/2015,"2,163.06",Social Care & Inclusion
WC59 - 0166,ACEPAY LTD (COTTAGE NUR HOME),Third Party Payments,Private Contractor Fees,73373-RESIDENTIAL & NURSING CARE PLACEMENTS,Revenue,18/08/2015,"3,733.10",Social Care & Inclusion
WC59 - 0167,ACORN FOSTERING SERVICES LTD,Third Party Payments,Private Contractor Fees,74037-INDEPENDENT FOSTER CARE-OTH AGENCY PROVISION,Revenue,14/08/2015,"3,318.22",Childrens
WC59 - 0168,ACORN FOSTERING SERVICES LTD,Third Party Payments,Private Contractor Fees,74037-INDEPENDENT FOSTER CARE-OTH AGENCY PROVISION,Revenue,13/08/2015,"3,428.83",Childrens
WC59 - 0169,ACORN HOUSE FOSTERING SERVICES LTD,Third Party Payments,Private Contractor Fees,74037-INDEPENDENT FOSTER CARE-OTH AGENCY PROVISION,Revenue,10/08/2015,"1,325.70",Childrens
WC59 - 0170,ACORN REST HOME,Third Party Payments,Private Contractor Fees,73373-RESIDENTIAL & NURSING CARE PLACEMENTS,Revenue,04/08/2015,"1,493.24",Social Care & Inclusion
WC59 - 0171,ACTION FOR CHILDREN,Third Party Payments,Private Contractor Fees,74037-INDEPENDENT FOSTER CARE-OTH AGENCY PROVISION,Revenue,03/08/2015,"3,518.85",Childrens
WC59 - 0172,ACTION FOR CHILDREN,Third Party Payments,Private Contractor Fees,74037-INDEPENDENT FOSTER CARE-OTH AGENCY PROVISION,Revenue,24/08/2015,"3,518.85",Childrens
WC59 - 0173,ACTION ON HEARING LOSS,Third Party Payments,Private Contractor Fees,73374-SUPPORTED & OTHER ACCOMMODATION,Revenue,24/08/2015,479.28,Social Care & Inclusion
WC59 - 0174,ACTION ON HEARING LOSS,Supplies & Services,"Equip,Furniture & Materials",60520-HEALTH & SAFETY-MATERIALS,Revenue,03/08/2015,"1,075.42",Social Care & Inclusion
WC59 - 0175,REDACTED,Transfer Payments,Transfer Payments,76422-DIRECT PAYMENTS TO SOCIAL SERVICES CLIENTS,Revenue,07/08/2015,487.60,Childrens
WC59 - 0176,REDACTED,Transfer Payments,Transfer Payments,76422-DIRECT PAYMENTS TO SOCIAL SERVICES CLIENTS,Revenue,07/08/2015,812.00,Social Care & Inclusion
WC59 - 0177,ADAMS TOURS,Transport,Hire,52000-WITH DRIVER-HIRE OF VEHICLES,Revenue,19/08/2015,375.00,Childrens
WC59 - 0178,ADAMS TOURS,Transport,Hire,52000-WITH DRIVER-HIRE OF VEHICLES,Revenue,14/08/2015,"1,020.00",Childrens
WC59 - 0179,REDACTED,Transfer Payments,Transfer Payments,76422-DIRECT PAYMENTS TO SOCIAL SERVICES CLIENTS,Revenue,07/08/2015,860.00,Social Care & Inclusion
WC59 - 0180,ADMIRAL SELF STORAGE LTD,Supplies & Services,Services,63000-PROFESSIONAL FEES AND SERVICES,Revenue,10/08/2015,419.32,Resources
WC59 - 0181,ADMIRAL SELF STORAGE LTD,Supplies & Services,Services,63000-PROFESSIONAL FEES AND SERVICES,Revenue,24/08/2015,419.32,Resources
WC59 - 0182,ADRIAN CARROLL LTD,Capital,Capital,01006-SITE WORKS MAIN CONTRACTORS,Capital,17/08/2015,"1,760.00",Childrens
WC59 - 0183,ADRIAN CARROLL LTD,Capital,Capital,01006-SITE WORKS MAIN CONTRACTORS,Capital,17/08/2015,"2,080.00",Childrens
WC59 - 0184,ADRIAN CARROLL LTD,Capital,Capital,01006-SITE WORKS MAIN CONTRACTORS,Capital,17/08/2015,"2,080.00",Childrens
WC59 - 0185,REDACTED,Third Party Payments,Private Contractor Fees,74510-RESIDENTS ORDERS,Revenue,12/08/2015,"3,407.50",Childrens
WC59 - 0186,ADVANCE HEALTH CARE (UK) LTD,Third Party Payments,Private Contractor Fees,73372-DOMICILIARY CARE,Revenue,26/08/2015,473.92,Social Care & Inclusion
WC59 - 0187,ADVANCE HEALTH CARE (UK) LTD,Third Party Payments,Private Contractor Fees,74000-OTHER AGENCY FEES,Revenue,14/08/2015,474.50,Social Care & Inclusion
WC59 - 0188,ADVANCE HEALTH CARE (UK) LTD,Third Party Payments,Private Contractor Fees,73372-DOMICILIARY CARE,Revenue,26/08/2015,482.58,Social Care & Inclusion
WC59 - 0189,ADVANCE HEALTH CARE (UK) LTD,Third Party Payments,Private Contractor Fees,73372-DOMICILIARY CARE,Revenue,26/08/2015,631.95,Social Care & Inclusion
WC59 - 0190,ADVANCE HEALTH CARE (UK) LTD,Third Party Payments,Private Contractor Fees,73372-DOMICILIARY CARE,Revenue,05/08/2015,"1,103.04",Social Care & Inclusion
WC59 - 0191,ADVANCE HEALTH CARE (UK) LTD,Third Party Payments,Private Contractor Fees,73372-DOMICILIARY CARE,Revenue,19/08/2015,"39,866.05",Social Care & Inclusion
WC59 - 0192,ADVANCE PHARMA LTD T/A PLECK PHARMACY,Third Party Payments,Joint Arrangements,71007-CONTRIBUTION TO PCT,Revenue,19/08/2015,325.89,Economy & Environment
WC59 - 0193,ADVENTURELAND DAY NURSERY,Employees,Other Staff Costs,32000-MISC FEES AND EXPENSES,Revenue,20/08/2015,375.00,Childrens
WC59 - 0194,AECOM INFRASTRUCTURE & ENVIRONMENT UK LIMITED,Third Party Payments,Private Contractor Fees,73025-PROFESSIONAL SERVICES-PRIV CONTRACTOR & OTHER AGENCIES,Revenue,14/08/2015,"2,500.00",Economy & Environment
WC59 - 0195,AECOM INFRASTRUCTURE & ENVIRONMENT UK LIMITED,Capital,Capital,01001-OTHER CONSULTANTS FEES,Capital,19/08/2015,"3,755.83",Economy & Environment
WC59 - 0196,AGE UK TRAINING,Third Party Payments,Grants to Other Orgs,66500-GRANTS TO OTHER ORGS,Revenue,14/08/2015,750.00,Economy & Environment
WC59 - 0197,AGE UK WALSALL,Transfer Payments,Transfer Payments,76423-DIRECT PAYMENTS SUPPORT,Revenue,11/08/2015,"6,280.00",Social Care & Inclusion
WC59 - 0198,AH!MEDIA,Supplies & Services,Subscriptions,64500-PUBLICATIONS/ORGANISATIONS-SUBSCRIPTIONS,Revenue,12/08/2015,"1,860.00",Resources
WC59 - 0199,REDACTED,Transfer Payments,Transfer Payments,76422-DIRECT PAYMENTS TO SOCIAL SERVICES CLIENTS,Revenue,07/08/2015,"1,882.00",Social Care & Inclusion
WC59 - 0200,AJ HEATING & PLUMBING,Premises,Premises-Repairs & Maintenance,"40000-REPAIRS,ALTERATIONS & MAINTENANCE-PREM",Revenue,12/08/2015,400.00,Economy & Environment
WC59 - 0201,REDACTED,Transfer Payments,Transfer Payments,76422-DIRECT PAYMENTS TO SOCIAL SERVICES CLIENTS,Revenue,07/08/2015,936.52,Social Care & Inclusion
WC59 - 0202,AJK TRAVEL,Transport,Hire,52000-WITH DRIVER-HIRE OF VEHICLES,Revenue,05/08/2015,938.70,Childrens
WC59 - 0203,AJK TRAVEL,Transport,Hire,52000-WITH DRIVER-HIRE OF VEHICLES,Revenue,05/08/2015,"1,877.40",Childrens
WC59 - 0204,REDACTED,Transfer Payments,Transfer Payments,76422-DIRECT PAYMENTS TO SOCIAL SERVICES CLIENTS,Revenue,07/08/2015,667.80,Social Care & Inclusion
WC59 - 0205,ALDER COPPICE PRIMARY SCHOOL,Transfer Payments,Transfer Payments,77300-ISB-FORMULA ALLOCATION,Revenue,14/08/2015,500.00,Childrens
WC59 - 0206,ALDER COPPICE PRIMARY SCHOOL,Transfer Payments,Transfer Payments,77300-ISB-FORMULA ALLOCATION,Revenue,14/08/2015,500.00,Childrens
WC59 - 0207,ALDERGROVE MANOR CARE HOME,Third Party Payments,Private Contractor Fees,73373-RESIDENTIAL & NURSING CARE PLACEMENTS,Revenue,11/08/2015,"1,839.68",Social Care & Inclusion
WC59 - 0208,ALDERGROVE MANOR CARE HOME,Third Party Payments,Private Contractor Fees,73373-RESIDENTIAL & NURSING CARE PLACEMENTS,Revenue,18/08/2015,"1,839.68",Social Care & Inclusion
WC59 - 0209,ALDRIDGE & BARONS LIMITED,Transport,Hire,52001-HIRE OF VEHICLES,Revenue,21/08/2015,400.00,Childrens
WC59 - 0210,ALDRIDGE & BARONS LIMITED,Transport,Hire,52001-HIRE OF VEHICLES,Revenue,21/08/2015,525.00,Childrens
WC59 - 0211,ALDRIDGE & BARONS LIMITED,Transport,Hire,52000-WITH DRIVER-HIRE OF VEHICLES,Revenue,05/08/2015,700.00,Childrens
WC59 - 0212,ALDRIDGE & BARONS LIMITED,Transport,Hire,52000-WITH DRIVER-HIRE OF VEHICLES,Revenue,05/08/2015,"1,015.00",Childrens
WC59 - 0213,ALDRIDGE & BARONS LIMITED,Transport,Hire,52000-WITH DRIVER-HIRE OF VEHICLES,Revenue,05/08/2015,"1,080.32",Childrens
WC59 - 0214,ALDRIDGE & BARONS LIMITED,Transport,Hire,52000-WITH DRIVER-HIRE OF VEHICLES,Revenue,07/08/2015,"1,181.25",Childrens
WC59 - 0215,ALDRIDGE & BARONS LIMITED,Transport,Hire,52000-WITH DRIVER-HIRE OF VEHICLES,Revenue,05/08/2015,"1,753.04",Childrens
WC59 - 0216,ALDRIDGE & BARONS LIMITED,Transport,Hire,52000-WITH DRIVER-HIRE OF VEHICLES,Revenue,05/08/2015,"1,804.60",Childrens
WC59 - 0217,ALDRIDGE & BARONS LIMITED,Transport,Hire,52000-WITH DRIVER-HIRE OF VEHICLES,Revenue,07/08/2015,"1,965.20",Childrens
WC59 - 0218,ALDRIDGE & BARONS LIMITED,Transport,Hire,52000-WITH DRIVER-HIRE OF VEHICLES,Revenue,07/08/2015,"2,178.04",Childrens
WC59 - 0219,ALDRIDGE & BARONS LIMITED,Transport,Hire,52000-WITH DRIVER-HIRE OF VEHICLES,Revenue,05/08/2015,"2,204.20",Childrens
WC59 - 0220,ALDRIDGE & BARONS LIMITED,Transport,Hire,52000-WITH DRIVER-HIRE OF VEHICLES,Revenue,05/08/2015,"2,310.00",Childrens
WC59 - 0221,ALDRIDGE & BARONS LIMITED,Transport,Hire,52000-WITH DRIVER-HIRE OF VEHICLES,Revenue,05/08/2015,"2,460.50",Childrens
WC59 - 0222,ALDRIDGE & BARONS LIMITED,Transport,Hire,52000-WITH DRIVER-HIRE OF VEHICLES,Revenue,05/08/2015,"2,645.20",Childrens
WC59 - 0223,ALDRIDGE & BARONS LIMITED,Transport,Hire,52000-WITH DRIVER-HIRE OF VEHICLES,Revenue,07/08/2015,"2,645.20",Childrens
WC59 - 0224,ALDRIDGE & BARONS LIMITED,Transport,Hire,52000-WITH DRIVER-HIRE OF VEHICLES,Revenue,05/08/2015,"3,024.00",Childrens
WC59 - 0225,ALDRIDGE & BARONS LIMITED,Transport,Hire,52000-WITH DRIVER-HIRE OF VEHICLES,Revenue,05/08/2015,"3,150.00",Childrens
WC59 - 0226,ALDRIDGE & BARONS LIMITED,Transport,Hire,52000-WITH DRIVER-HIRE OF VEHICLES,Revenue,05/08/2015,"3,240.00",Childrens
WC59 - 0227,ALDRIDGE & BARONS LIMITED,Transport,Hire,52000-WITH DRIVER-HIRE OF VEHICLES,Revenue,05/08/2015,"3,456.00",Childrens
WC59 - 0228,ALDRIDGE & BARONS LIMITED,Transport,Hire,52000-WITH DRIVER-HIRE OF VEHICLES,Revenue,07/08/2015,"4,176.00",Childrens
WC59 - 0229,ALDRIDGE & BARONS LIMITED,Transport,Hire,52000-WITH DRIVER-HIRE OF VEHICLES,Revenue,07/08/2015,"4,420.80",Childrens
WC59 - 0230,ALDRIDGE CRICKET CLUB,Third Party Payments,Grants to Other Orgs,66500-GRANTS TO OTHER ORGS,Revenue,25/08/2015,250.00,Economy & Environment
WC59 - 0231,ALDRIDGE RUNNING CLUB,Employees,Other Staff Costs,32000-MISC FEES AND EXPENSES,Revenue,26/08/2015,450.00,Economy & Environment
WC59 - 0232,ALDRIDGE SCHOOL A SCIENCE COLLEGE.,Transfer Payments,Transfer Payments,77300-ISB-FORMULA ALLOCATION,Revenue,17/08/2015,925.00,Childrens
WC59 - 0233,ALDRIDGE SCHOOL A SCIENCE COLLEGE.,Third Party Payments,Grants to Other Orgs,66502-TOP UP FUNDING -GRANTS TO SCHOOLS,Revenue,05/08/2015,"14,976.83",Childrens
WC59 - 0234,ALDRIDGE VILLAGE PARTNERSHIP,Supplies & Services,Other Supplies & Services,62515-MISCELLANEOUS SUPPLIES,Revenue,20/08/2015,"3,800.00",Economy & Environment
WC59 - 0235,REDACTED,Transfer Payments,Transfer Payments,76422-DIRECT PAYMENTS TO SOCIAL SERVICES CLIENTS,Revenue,07/08/2015,"1,204.00",Social Care & Inclusion
WC59 - 0236,REDACTED,Supplies & Services,Services,63000-PROFESSIONAL FEES AND SERVICES,Revenue,17/08/2015,324.00,Economy & Environment
WC59 - 0237,REDACTED,Supplies & Services,Services,63000-PROFESSIONAL FEES AND SERVICES,Revenue,19/08/2015,337.50,Economy & Environment
WC59 - 0238,REDACTED,Transfer Payments,Transfer Payments,76422-DIRECT PAYMENTS TO SOCIAL SERVICES CLIENTS,Revenue,07/08/2015,582.66,Childrens
WC59 - 0239,REDACTED,Transfer Payments,Transfer Payments,76422-DIRECT PAYMENTS TO SOCIAL SERVICES CLIENTS,Revenue,07/08/2015,854.00,Social Care & Inclusion
WC59 - 0240,REDACTED,Transfer Payments,Transfer Payments,76422-DIRECT PAYMENTS TO SOCIAL SERVICES CLIENTS,Revenue,07/08/2015,328.80,Social Care & Inclusion
WC59 - 0241,REDACTED,Third Party Payments,Private Contractor Fees,74006-HOLIDAY/CHRISTMAS ALLOWANCE-FOSTER CARERS-OTH AGENCY PROVISION,Revenue,17/08/2015,985.76,Childrens
WC59 - 0242,REDACTED,Supplies & Services,Other Supplies & Services,62515-MISCELLANEOUS SUPPLIES,Revenue,17/08/2015,"1,445.32",Childrens
WC59 - 0243,REDACTED,Third Party Payments,Private Contractor Fees,74006-HOLIDAY/CHRISTMAS ALLOWANCE-FOSTER CARERS-OTH AGENCY PROVISION,Revenue,03/08/2015,552.96,Childrens
WC59 - 0244,ALLSORTS OFFICE SUPPLIES LTD,Supplies & Services,"Equip,Furniture & Materials",60006-NEW-FURNITURE & EQUIPMENT,Revenue,03/08/2015,339.00,Economy & Environment
WC59 - 0245,ALLSORTS OFFICE SUPPLIES LTD,Supplies & Services,"Equip,Furniture & Materials",60006-NEW-FURNITURE & EQUIPMENT,Revenue,14/08/2015,543.00,Economy & Environment
WC59 - 0246,ALLSORTS OFFICE SUPPLIES LTD,Supplies & Services,"Equip,Furniture & Materials",60006-NEW-FURNITURE & EQUIPMENT,Revenue,17/08/2015,599.00,Economy & Environment
WC59 - 0247,ALLSORTS OFFICE SUPPLIES LTD,Supplies & Services,"Equip,Furniture & Materials",60006-NEW-FURNITURE & EQUIPMENT,Revenue,03/08/2015,814.50,Social Care & Inclusion
WC59 - 0248,ALLSORTS OFFICE SUPPLIES LTD,Supplies & Services,"Equip,Furniture & Materials",60006-NEW-FURNITURE & EQUIPMENT,Revenue,03/08/2015,"2,180.00",Economy & Environment
WC59 - 0249,ALMOZENE NURSERY & CHILDRENS CENTRE,Third Party Payments,Grants to Other Orgs,66505-OTHER-GRANTS TO OTHER ORGS,Revenue,24/08/2015,661.50,Childrens
WC59 - 0250,ALMOZENE NURSERY & CHILDRENS CENTRE,Employees,Other Staff Costs,32000-MISC FEES AND EXPENSES,Revenue,07/08/2015,756.00,Childrens
WC59 - 0251,ALPHA HEALTH CARE LTD,Third Party Payments,Private Contractor Fees,73373-RESIDENTIAL & NURSING CARE PLACEMENTS,Revenue,11/08/2015,"1,406.56",Social Care & Inclusion
WC59 - 0252,ALPHA HEALTH CARE LTD,Third Party Payments,Private Contractor Fees,73373-RESIDENTIAL & NURSING CARE PLACEMENTS,Revenue,11/08/2015,"1,413.08",Social Care & Inclusion
WC59 - 0253,ALPHA HEALTH CARE LTD,Third Party Payments,Private Contractor Fees,73373-RESIDENTIAL & NURSING CARE PLACEMENTS,Revenue,11/08/2015,"1,493.24",Social Care & Inclusion
WC59 - 0254,ALPHA HEALTH CARE LTD,Third Party Payments,Private Contractor Fees,73373-RESIDENTIAL & NURSING CARE PLACEMENTS,Revenue,11/08/2015,"1,510.08",Social Care & Inclusion
WC59 - 0255,ALPHA HEALTH CARE LTD,Third Party Payments,Private Contractor Fees,73373-RESIDENTIAL & NURSING CARE PLACEMENTS,Revenue,11/08/2015,"1,510.08",Social Care & Inclusion
WC59 - 0256,ALPHA HEALTH CARE LTD,Third Party Payments,Private Contractor Fees,73373-RESIDENTIAL & NURSING CARE PLACEMENTS,Revenue,18/08/2015,"1,510.08",Social Care & Inclusion
WC59 - 0257,ALPHA HEALTH CARE LTD,Third Party Payments,Private Contractor Fees,73373-RESIDENTIAL & NURSING CARE PLACEMENTS,Revenue,04/08/2015,"1,527.60",Social Care & Inclusion
WC59 - 0258,ALPHA HEALTH CARE LTD,Third Party Payments,Private Contractor Fees,73373-RESIDENTIAL & NURSING CARE PLACEMENTS,Revenue,11/08/2015,"1,527.60",Social Care & Inclusion
WC59 - 0259,ALPHA HEALTH CARE LTD,Third Party Payments,Private Contractor Fees,73373-RESIDENTIAL & NURSING CARE PLACEMENTS,Revenue,11/08/2015,"1,527.60",Social Care & Inclusion
WC59 - 0260,ALPHA HEALTH CARE LTD,Third Party Payments,Private Contractor Fees,73373-RESIDENTIAL & NURSING CARE PLACEMENTS,Revenue,11/08/2015,"1,527.60",Social Care & Inclusion
WC59 - 0261,ALPHA HEALTH CARE LTD,Third Party Payments,Private Contractor Fees,73373-RESIDENTIAL & NURSING CARE PLACEMENTS,Revenue,11/08/2015,"1,527.60",Social Care & Inclusion
WC59 - 0262,ALPHA HEALTH CARE LTD,Third Party Payments,Private Contractor Fees,73373-RESIDENTIAL & NURSING CARE PLACEMENTS,Revenue,11/08/2015,"1,527.60",Social Care & Inclusion
WC59 - 0263,ALPHA HEALTH CARE LTD,Third Party Payments,Private Contractor Fees,73373-RESIDENTIAL & NURSING CARE PLACEMENTS,Revenue,11/08/2015,"1,527.60",Social Care & Inclusion
WC59 - 0264,ALPHA HEALTH CARE LTD,Third Party Payments,Private Contractor Fees,73373-RESIDENTIAL & NURSING CARE PLACEMENTS,Revenue,11/08/2015,"1,527.60",Social Care & Inclusion
WC59 - 0265,ALPHA HEALTH CARE LTD,Third Party Payments,Private Contractor Fees,73373-RESIDENTIAL & NURSING CARE PLACEMENTS,Revenue,11/08/2015,"1,527.60",Social Care & Inclusion
WC59 - 0266,ALPHA HEALTH CARE LTD,Third Party Payments,Private Contractor Fees,73373-RESIDENTIAL & NURSING CARE PLACEMENTS,Revenue,11/08/2015,"1,527.60",Social Care & Inclusion
WC59 - 0267,ALPHA HEALTH CARE LTD,Third Party Payments,Private Contractor Fees,73373-RESIDENTIAL & NURSING CARE PLACEMENTS,Revenue,11/08/2015,"1,527.60",Social Care & Inclusion
WC59 - 0268,ALPHA HEALTH CARE LTD,Third Party Payments,Private Contractor Fees,73373-RESIDENTIAL & NURSING CARE PLACEMENTS,Revenue,11/08/2015,"1,527.60",Social Care & Inclusion
WC59 - 0269,ALPHA HEALTH CARE LTD,Third Party Payments,Private Contractor Fees,73373-RESIDENTIAL & NURSING CARE PLACEMENTS,Revenue,11/08/2015,"1,527.60",Social Care & Inclusion
WC59 - 0270,ALPHA HEALTH CARE LTD,Third Party Payments,Private Contractor Fees,73373-RESIDENTIAL & NURSING CARE PLACEMENTS,Revenue,18/08/2015,"1,527.60",Social Care & Inclusion
WC59 - 0271,ALPHA HEALTH CARE LTD,Third Party Payments,Private Contractor Fees,73373-RESIDENTIAL & NURSING CARE PLACEMENTS,Revenue,11/08/2015,"1,527.64",Social Care & Inclusion
WC59 - 0272,ALPHA HEALTH CARE LTD,Third Party Payments,Private Contractor Fees,73373-RESIDENTIAL & NURSING CARE PLACEMENTS,Revenue,11/08/2015,"1,568.64",Social Care & Inclusion
WC59 - 0273,ALPHA HEALTH CARE LTD,Third Party Payments,Private Contractor Fees,73373-RESIDENTIAL & NURSING CARE PLACEMENTS,Revenue,11/08/2015,"1,568.64",Social Care & Inclusion
WC59 - 0274,ALPHA HEALTH CARE LTD,Third Party Payments,Private Contractor Fees,73373-RESIDENTIAL & NURSING CARE PLACEMENTS,Revenue,11/08/2015,"1,568.64",Social Care & Inclusion
WC59 - 0275,ALPHA HEALTH CARE LTD,Third Party Payments,Private Contractor Fees,73373-RESIDENTIAL & NURSING CARE PLACEMENTS,Revenue,18/08/2015,"1,568.64",Social Care & Inclusion
WC59 - 0276,ALPHA HEALTH CARE LTD,Third Party Payments,Private Contractor Fees,73373-RESIDENTIAL & NURSING CARE PLACEMENTS,Revenue,11/08/2015,"1,568.80",Social Care & Inclusion
WC59 - 0277,ALPHA HEALTH CARE LTD,Third Party Payments,Private Contractor Fees,73373-RESIDENTIAL & NURSING CARE PLACEMENTS,Revenue,11/08/2015,"1,630.60",Social Care & Inclusion
WC59 - 0278,ALPHA HEALTH CARE LTD,Third Party Payments,Private Contractor Fees,73373-RESIDENTIAL & NURSING CARE PLACEMENTS,Revenue,11/08/2015,"2,057.88",Social Care & Inclusion
WC59 - 0279,ALPHA HEALTH CARE LTD,Third Party Payments,Private Contractor Fees,73373-RESIDENTIAL & NURSING CARE PLACEMENTS,Revenue,11/08/2015,"2,161.40",Social Care & Inclusion
WC59 - 0280,ALPHA HEALTH CARE LTD,Third Party Payments,Private Contractor Fees,73373-RESIDENTIAL & NURSING CARE PLACEMENTS,Revenue,11/08/2015,"5,413.72",Social Care & Inclusion
WC59 - 0281,ALPHA HEALTH CARE LTD,Third Party Payments,Private Contractor Fees,73373-RESIDENTIAL & NURSING CARE PLACEMENTS,Revenue,11/08/2015,"5,553.32",Social Care & Inclusion
WC59 - 0282,ALTODIGITAL NETWORKS LTD,Supplies & Services,"Equip,Furniture & Materials",60009-LEASING/HIRE/RENTAL-EQUIPMENT,Revenue,14/08/2015,612.23,Social Care & Inclusion
WC59 - 0283,ALTODIGITAL NETWORKS LTD,Supplies & Services,"Equip,Furniture & Materials",60009-LEASING/HIRE/RENTAL-EQUIPMENT,Revenue,19/08/2015,623.46,Childrens
WC59 - 0284,ALUMWELLIES NURSERY,Employees,Other Staff Costs,32000-MISC FEES AND EXPENSES,Revenue,13/08/2015,"1,947.00",Childrens
WC59 - 0285,REDACTED,Third Party Payments,Private Contractor Fees,74006-HOLIDAY/CHRISTMAS ALLOWANCE-FOSTER CARERS-OTH AGENCY PROVISION,Revenue,03/08/2015,"1,500.88",Childrens
WC59 - 0286,REDACTED,Supplies & Services,Other Supplies & Services,62515-MISCELLANEOUS SUPPLIES,Revenue,17/08/2015,354.48,Childrens
WC59 - 0287,REDACTED,Third Party Payments,Private Contractor Fees,74006-HOLIDAY/CHRISTMAS ALLOWANCE-FOSTER CARERS-OTH AGENCY PROVISION,Revenue,17/08/2015,746.44,Childrens
WC59 - 0288,REDACTED,Transfer Payments,Transfer Payments,76422-DIRECT PAYMENTS TO SOCIAL SERVICES CLIENTS,Revenue,07/08/2015,756.00,Social Care & Inclusion
WC59 - 0289,REDACTED,Transfer Payments,Transfer Payments,76422-DIRECT PAYMENTS TO SOCIAL SERVICES CLIENTS,Revenue,07/08/2015,654.50,Social Care & Inclusion
WC59 - 0290,REDACTED,Transfer Payments,Transfer Payments,76422-DIRECT PAYMENTS TO SOCIAL SERVICES CLIENTS,Revenue,07/08/2015,312.92,Childrens
WC59 - 0291,AMEC FOSTER WHEELER ENVIRONMENT & INFRASTRUTURE UK LIMITED,Supplies & Services,Services,63000-PROFESSIONAL FEES AND SERVICES,Revenue,01/08/2015,"3,362.06",Economy & Environment
WC59 - 0292,AMEC FOSTER WHEELER ENVIRONMENT & INFRASTRUTURE UK LIMITED,Supplies & Services,Services,63000-PROFESSIONAL FEES AND SERVICES,Revenue,05/08/2015,"23,000.00",Economy & Environment
WC59 - 0293,AMEY LG LIMITED,Third Party Payments,Private Contractor Fees,73025-PROFESSIONAL SERVICES-PRIV CONTRACTOR & OTHER AGENCIES,Revenue,01/08/2015,"-12,048.39",Economy & Environment
WC59 - 0294,AMEY LG LIMITED,Supplies & Services,"Equip,Furniture & Materials",60008-MAINTENANCE-FURNITURE & EQUIPMENT,Revenue,18/08/2015,92.54,Resources
WC59 - 0295,AMEY LG LIMITED,Supplies & Services,"Equip,Furniture & Materials",60008-MAINTENANCE-FURNITURE & EQUIPMENT,Revenue,18/08/2015,127.62,Resources
WC59 - 0296,AMEY LG LIMITED,Supplies & Services,"Equip,Furniture & Materials",60008-MAINTENANCE-FURNITURE & EQUIPMENT,Revenue,18/08/2015,127.62,Resources
WC59 - 0297,AMEY LG LIMITED,Supplies & Services,"Equip,Furniture & Materials",60008-MAINTENANCE-FURNITURE & EQUIPMENT,Revenue,18/08/2015,127.62,Resources
WC59 - 0298,AMEY LG LIMITED,Supplies & Services,"Equip,Furniture & Materials",60008-MAINTENANCE-FURNITURE & EQUIPMENT,Revenue,18/08/2015,127.62,Resources
WC59 - 0299,AMEY LG LIMITED,Supplies & Services,"Equip,Furniture & Materials",60008-MAINTENANCE-FURNITURE & EQUIPMENT,Revenue,18/08/2015,127.62,Resources
WC59 - 0300,AMEY LG LIMITED,Capital,Capital,01006-SITE WORKS MAIN CONTRACTORS,Capital,17/08/2015,611.52,Economy & Environment
WC59 - 0301,AMEY LG LIMITED,Capital,Capital,01006-SITE WORKS MAIN CONTRACTORS,Capital,24/08/2015,"10,515.59",Economy & Environment
WC59 - 0302,AMEY LG LIMITED,Third Party Payments,Private Contractor Fees,73025-PROFESSIONAL SERVICES-PRIV CONTRACTOR & OTHER AGENCIES,Revenue,06/08/2015,"12,048.39",Economy & Environment
WC59 - 0303,AMG NURSING CARE SERVICES,Third Party Payments,Private Contractor Fees,74036-EXTERNAL RESIDENTIAL CARE-OTH AGENCY PROVISION,Revenue,14/08/2015,"1,088.88",Childrens
WC59 - 0304,AMG NURSING CARE SERVICES,Supplies & Services,Services,63000-PROFESSIONAL FEES AND SERVICES,Revenue,17/08/2015,"1,088.88",Childrens
WC59 - 0305,AMG NURSING CARE SERVICES,Third Party Payments,Private Contractor Fees,74036-EXTERNAL RESIDENTIAL CARE-OTH AGENCY PROVISION,Revenue,14/08/2015,"2,228.76",Childrens
WC59 - 0306,AMG NURSING CARE SERVICES,Third Party Payments,Private Contractor Fees,74036-EXTERNAL RESIDENTIAL CARE-OTH AGENCY PROVISION,Revenue,10/08/2015,"2,229.76",Childrens
WC59 - 0307,REDACTED,Transfer Payments,Transfer Payments,76422-DIRECT PAYMENTS TO SOCIAL SERVICES CLIENTS,Revenue,07/08/2015,250.00,Social Care & Inclusion
WC59 - 0308,REDACTED,Transfer Payments,Transfer Payments,76422-DIRECT PAYMENTS TO SOCIAL SERVICES CLIENTS,Revenue,07/08/2015,945.00,Social Care & Inclusion
WC59 - 0309,REDACTED,Third Party Payments,Private Contractor Fees,74006-HOLIDAY/CHRISTMAS ALLOWANCE-FOSTER CARERS-OTH AGENCY PROVISION,Revenue,03/08/2015,425.08,Childrens
WC59 - 0310,REDACTED,Transfer Payments,Transfer Payments,76422-DIRECT PAYMENTS TO SOCIAL SERVICES CLIENTS,Revenue,07/08/2015,544.00,Social Care & Inclusion
WC59 - 0311,REDACTED,Transfer Payments,Transfer Payments,76422-DIRECT PAYMENTS TO SOCIAL SERVICES CLIENTS,Revenue,07/08/2015,714.00,Social Care & Inclusion
WC59 - 0312,REDACTED,Third Party Payments,Private Contractor Fees,74006-HOLIDAY/CHRISTMAS ALLOWANCE-FOSTER CARERS-OTH AGENCY PROVISION,Revenue,17/08/2015,"1,627.30",Childrens
WC59 - 0313,REDACTED,Supplies & Services,Other Supplies & Services,62515-MISCELLANEOUS SUPPLIES,Revenue,17/08/2015,"2,071.85",Childrens
WC59 - 0314,REDACTED,Transfer Payments,Transfer Payments,76422-DIRECT PAYMENTS TO SOCIAL SERVICES CLIENTS,Revenue,07/08/2015,378.00,Social Care & Inclusion
WC59 - 0315,REDACTED,Supplies & Services,Other Supplies & Services,62515-MISCELLANEOUS SUPPLIES,Revenue,17/08/2015,906.76,Childrens
WC59 - 0316,REDACTED,Third Party Payments,Private Contractor Fees,74006-HOLIDAY/CHRISTMAS ALLOWANCE-FOSTER CARERS-OTH AGENCY PROVISION,Revenue,17/08/2015,985.76,Childrens
WC59 - 0317,ANGEL COURT RESIDENTIAL CARE HOME,Third Party Payments,Private Contractor Fees,73373-RESIDENTIAL & NURSING CARE PLACEMENTS,Revenue,04/08/2015,746.62,Social Care & Inclusion
WC59 - 0318,ANGEL COURT RESIDENTIAL CARE HOME,Third Party Payments,Private Contractor Fees,73373-RESIDENTIAL & NURSING CARE PLACEMENTS,Revenue,18/08/2015,"1,736.71",Social Care & Inclusion
WC59 - 0319,ANGEL COURT RESIDENTIAL CARE HOME,Third Party Payments,Private Contractor Fees,73373-RESIDENTIAL & NURSING CARE PLACEMENTS,Revenue,18/08/2015,"1,899.10",Social Care & Inclusion
WC59 - 0320,ANGEL COURT RESIDENTIAL CARE HOME,Third Party Payments,Private Contractor Fees,73373-RESIDENTIAL & NURSING CARE PLACEMENTS,Revenue,11/08/2015,"3,786.43",Social Care & Inclusion
WC59 - 0321,REDACTED,Third Party Payments,Private Contractor Fees,74006-HOLIDAY/CHRISTMAS ALLOWANCE-FOSTER CARERS-OTH AGENCY PROVISION,Revenue,03/08/2015,"1,952.76",Childrens
WC59 - 0322,ANGLIA STAIRLIFTS LTD,Capital,Capital,01045-PRIVATE GRANTS,Capital,14/08/2015,"4,665.00",Resources
WC59 - 0323,REDACTED,Transfer Payments,Transfer Payments,76422-DIRECT PAYMENTS TO SOCIAL SERVICES CLIENTS,Revenue,07/08/2015,587.75,Social Care & Inclusion
WC59 - 0324,REDACTED,Supplies & Services,Other Supplies & Services,62515-MISCELLANEOUS SUPPLIES,Revenue,17/08/2015,"1,297.32",Childrens
WC59 - 0325,REDACTED,Third Party Payments,Private Contractor Fees,74006-HOLIDAY/CHRISTMAS ALLOWANCE-FOSTER CARERS-OTH AGENCY PROVISION,Revenue,17/08/2015,"1,461.24",Childrens
WC59 - 0326,REDACTED,Transfer Payments,Transfer Payments,76422-DIRECT PAYMENTS TO SOCIAL SERVICES CLIENTS,Revenue,07/08/2015,318.00,Social Care & Inclusion
WC59 - 0327,REDACTED,Third Party Payments,Private Contractor Fees,73374-SUPPORTED & OTHER ACCOMMODATION,Revenue,05/08/2015,805.68,Social Care & Inclusion
WC59 - 0328,REDACTED,Third Party Payments,Private Contractor Fees,73374-SUPPORTED & OTHER ACCOMMODATION,Revenue,14/08/2015,685.72,Social Care & Inclusion
WC59 - 0329,ANSON COURT RESIDENTIAL HOME,Third Party Payments,Private Contractor Fees,73373-RESIDENTIAL & NURSING CARE PLACEMENTS,Revenue,04/08/2015,"1,568.64",Social Care & Inclusion
WC59 - 0330,ANSON COURT RESIDENTIAL HOME,Third Party Payments,Private Contractor Fees,73373-RESIDENTIAL & NURSING CARE PLACEMENTS,Revenue,04/08/2015,"1,568.64",Social Care & Inclusion
WC59 - 0331,ANSON COURT RESIDENTIAL HOME,Third Party Payments,Private Contractor Fees,73373-RESIDENTIAL & NURSING CARE PLACEMENTS,Revenue,04/08/2015,"1,650.44",Social Care & Inclusion
WC59 - 0332,REDACTED,Third Party Payments,Private Contractor Fees,74006-HOLIDAY/CHRISTMAS ALLOWANCE-FOSTER CARERS-OTH AGENCY PROVISION,Revenue,03/08/2015,"1,369.84",Childrens
WC59 - 0333,REDACTED,Third Party Payments,Private Contractor Fees,74006-HOLIDAY/CHRISTMAS ALLOWANCE-FOSTER CARERS-OTH AGENCY PROVISION,Revenue,03/08/2015,671.44,Childrens
WC59 - 0334,APCOA PARKING SERVICES (UK) LTD,Third Party Payments,Private Contractor Fees,73025-PROFESSIONAL SERVICES-PRIV CONTRACTOR & OTHER AGENCIES,Revenue,13/08/2015,"47,684.16",Economy & Environment
WC59 - 0335,APEX RADIO SYSTEMS LTD,Supplies & Services,"Equip,Furniture & Materials",60008-MAINTENANCE-FURNITURE & EQUIPMENT,Revenue,27/08/2015,548.50,Social Care & Inclusion
WC59 - 0336,APNA HOUSE LTD,Third Party Payments,Private Contractor Fees,73373-RESIDENTIAL & NURSING CARE PLACEMENTS,Revenue,04/08/2015,"5,464.00",Social Care & Inclusion
WC59 - 0337,APNA HOUSE LTD,Third Party Payments,Private Contractor Fees,73373-RESIDENTIAL & NURSING CARE PLACEMENTS,Revenue,04/08/2015,"5,464.00",Social Care & Inclusion
WC59 - 0338,APPLEGREEN CHILDRENS CARE LTD,Third Party Payments,Private Contractor Fees,74036-EXTERNAL RESIDENTIAL CARE-OTH AGENCY PROVISION,Revenue,24/08/2015,"6,510.00",Childrens
WC59 - 0339,APPLEGREEN CHILDRENS CARE LTD,Third Party Payments,Private Contractor Fees,74036-EXTERNAL RESIDENTIAL CARE-OTH AGENCY PROVISION,Revenue,24/08/2015,"13,285.67",Childrens
WC59 - 0340,APSE 001,Employees,Training,30030-EXTERNAL TRAINING,Revenue,17/08/2015,458.00,Economy & Environment
WC59 - 0341,APSE 001,Supplies & Services,Subscriptions,64500-PUBLICATIONS/ORGANISATIONS-SUBSCRIPTIONS,Revenue,12/08/2015,"7,338.00",Economy & Environment
WC59 - 0342,AQUAMO LTD,Supplies & Services,"Equip,Furniture & Materials",60500-GENERAL MATERIALS,Revenue,05/08/2015,860.00,Economy & Environment
WC59 - 0343,AQUILA TRAINING SERVICES LTD,Employees,Training,30030-EXTERNAL TRAINING,Revenue,10/08/2015,693.00,Economy & Environment
WC59 - 0344,AQUILA TRAINING SERVICES LTD,Employees,Training,30030-EXTERNAL TRAINING,Revenue,10/08/2015,"1,485.00",Economy & Environment
WC59 - 0345,ARBORETUM NURSING HOME.,Third Party Payments,Private Contractor Fees,73373-RESIDENTIAL & NURSING CARE PLACEMENTS,Revenue,18/08/2015,"1,973.20",Social Care & Inclusion
WC59 - 0346,ARBORETUM NURSING HOME.,Third Party Payments,Private Contractor Fees,73373-RESIDENTIAL & NURSING CARE PLACEMENTS,Revenue,18/08/2015,"1,975.60",Social Care & Inclusion
WC59 - 0347,ARBORETUM NURSING HOME.,Third Party Payments,Private Contractor Fees,73373-RESIDENTIAL & NURSING CARE PLACEMENTS,Revenue,18/08/2015,"1,975.60",Social Care & Inclusion
WC59 - 0348,ARBORETUM NURSING HOME.,Third Party Payments,Private Contractor Fees,73373-RESIDENTIAL & NURSING CARE PLACEMENTS,Revenue,18/08/2015,"1,975.60",Social Care & Inclusion
WC59 - 0349,ARBORETUM NURSING HOME.,Third Party Payments,Private Contractor Fees,73373-RESIDENTIAL & NURSING CARE PLACEMENTS,Revenue,18/08/2015,"2,017.16",Social Care & Inclusion
WC59 - 0350,ARBORETUM NURSING HOME.,Third Party Payments,Private Contractor Fees,73373-RESIDENTIAL & NURSING CARE PLACEMENTS,Revenue,18/08/2015,"2,030.00",Social Care & Inclusion
WC59 - 0351,ARBORETUM NURSING HOME.,Third Party Payments,Private Contractor Fees,73373-RESIDENTIAL & NURSING CARE PLACEMENTS,Revenue,18/08/2015,"2,030.00",Social Care & Inclusion
WC59 - 0352,ARBORETUM NURSING HOME.,Third Party Payments,Private Contractor Fees,73373-RESIDENTIAL & NURSING CARE PLACEMENTS,Revenue,18/08/2015,"2,469.50",Social Care & Inclusion
WC59 - 0353,ARBORETUM NURSING HOME.,Third Party Payments,Private Contractor Fees,73019-PSE'S-PRIV CONTRACTOR FEES,Revenue,17/08/2015,"15,000.00",Social Care & Inclusion
WC59 - 0354,ARBORICULTURAL ASSOCIATION,Supplies & Services,"Equip,Furniture & Materials",60500-GENERAL MATERIALS,Revenue,04/08/2015,360.00,Economy & Environment
WC59 - 0355,ARDENCOTE MANOR HOTEL,Supplies & Services,"Equip,Furniture & Materials",60500-GENERAL MATERIALS,Revenue,07/08/2015,"5,030.83",Childrens
WC59 - 0356,ARJOHUNTLEIGH UK,Supplies & Services,"Equip,Furniture & Materials",60007-REPAIR OF EQUIPMENT-EQUIPMENT,Revenue,17/08/2015,305.00,Economy & Environment
WC59 - 0357,ASA AWARDS,Supplies & Services,"Equip,Furniture & Materials",60006-NEW-FURNITURE & EQUIPMENT,Revenue,01/08/2015,377.80,Economy & Environment
WC59 - 0358,ASA MERCHANDISING LTD,Supplies & Services,"Equip,Furniture & Materials",60500-GENERAL MATERIALS,Revenue,12/08/2015,340.80,Economy & Environment
WC59 - 0359,ASDA PHARMACY,Supplies & Services,Services,63000-PROFESSIONAL FEES AND SERVICES,Revenue,10/08/2015,167.50,Economy & Environment
WC59 - 0360,ASDA PHARMACY,Supplies & Services,Services,63000-PROFESSIONAL FEES AND SERVICES,Revenue,03/08/2015,195.00,Economy & Environment
WC59 - 0361,ASDA PHARMACY,Supplies & Services,Services,63000-PROFESSIONAL FEES AND SERVICES,Revenue,03/08/2015,275.50,Economy & Environment
WC59 - 0362,ASDA PHARMACY,Third Party Payments,Joint Arrangements,71007-CONTRIBUTION TO PCT,Revenue,11/08/2015,300.00,Economy & Environment
WC59 - 0363,ASDA PHARMACY,Supplies & Services,Services,63000-PROFESSIONAL FEES AND SERVICES,Revenue,10/08/2015,300.90,Economy & Environment
WC59 - 0364,ASDA PHARMACY,Third Party Payments,Joint Arrangements,71007-CONTRIBUTION TO PCT,Revenue,19/08/2015,338.43,Economy & Environment
WC59 - 0365,ASH GRANGE CARE HOME,Third Party Payments,Private Contractor Fees,73373-RESIDENTIAL & NURSING CARE PLACEMENTS,Revenue,04/08/2015,"-1,465.74",Social Care & Inclusion
WC59 - 0366,ASH GRANGE CARE HOME,Third Party Payments,Private Contractor Fees,73373-RESIDENTIAL & NURSING CARE PLACEMENTS,Revenue,25/08/2015,-678.04,Social Care & Inclusion
WC59 - 0367,ASH GRANGE CARE HOME,Third Party Payments,Private Contractor Fees,73373-RESIDENTIAL & NURSING CARE PLACEMENTS,Revenue,18/08/2015,487.47,Social Care & Inclusion
WC59 - 0368,ASH GRANGE CARE HOME,Third Party Payments,Private Contractor Fees,73373-RESIDENTIAL & NURSING CARE PLACEMENTS,Revenue,18/08/2015,487.47,Social Care & Inclusion
WC59 - 0369,ASH GRANGE CARE HOME,Third Party Payments,Private Contractor Fees,73373-RESIDENTIAL & NURSING CARE PLACEMENTS,Revenue,18/08/2015,568.05,Social Care & Inclusion
WC59 - 0370,ASH GRANGE CARE HOME,Third Party Payments,Private Contractor Fees,73373-RESIDENTIAL & NURSING CARE PLACEMENTS,Revenue,11/08/2015,568.06,Social Care & Inclusion
WC59 - 0371,ASH GRANGE CARE HOME,Third Party Payments,Private Contractor Fees,73373-RESIDENTIAL & NURSING CARE PLACEMENTS,Revenue,18/08/2015,852.09,Social Care & Inclusion
WC59 - 0372,ASH GRANGE CARE HOME,Third Party Payments,Private Contractor Fees,73373-RESIDENTIAL & NURSING CARE PLACEMENTS,Revenue,18/08/2015,974.94,Social Care & Inclusion
WC59 - 0373,ASH GRANGE CARE HOME,Third Party Payments,Private Contractor Fees,73373-RESIDENTIAL & NURSING CARE PLACEMENTS,Revenue,18/08/2015,"1,136.11",Social Care & Inclusion
WC59 - 0374,ASH GRANGE CARE HOME,Third Party Payments,Private Contractor Fees,73373-RESIDENTIAL & NURSING CARE PLACEMENTS,Revenue,18/08/2015,"1,207.12",Social Care & Inclusion
WC59 - 0375,ASH GRANGE CARE HOME,Third Party Payments,Private Contractor Fees,73373-RESIDENTIAL & NURSING CARE PLACEMENTS,Revenue,18/08/2015,"1,349.14",Social Care & Inclusion
WC59 - 0376,ASH GRANGE CARE HOME,Third Party Payments,Private Contractor Fees,73373-RESIDENTIAL & NURSING CARE PLACEMENTS,Revenue,18/08/2015,"1,420.14",Social Care & Inclusion
WC59 - 0377,ASH GRANGE CARE HOME,Third Party Payments,Private Contractor Fees,73373-RESIDENTIAL & NURSING CARE PLACEMENTS,Revenue,18/08/2015,"1,462.41",Social Care & Inclusion
WC59 - 0378,ASH GRANGE CARE HOME,Third Party Payments,Private Contractor Fees,73373-RESIDENTIAL & NURSING CARE PLACEMENTS,Revenue,11/08/2015,"1,505.56",Social Care & Inclusion
WC59 - 0379,ASH GRANGE CARE HOME,Third Party Payments,Private Contractor Fees,73373-RESIDENTIAL & NURSING CARE PLACEMENTS,Revenue,18/08/2015,"1,505.56",Social Care & Inclusion
WC59 - 0380,ASH GRANGE CARE HOME,Third Party Payments,Private Contractor Fees,73373-RESIDENTIAL & NURSING CARE PLACEMENTS,Revenue,18/08/2015,"1,505.56",Social Care & Inclusion
WC59 - 0381,ASH GRANGE CARE HOME,Third Party Payments,Private Contractor Fees,73373-RESIDENTIAL & NURSING CARE PLACEMENTS,Revenue,18/08/2015,"1,846.19",Social Care & Inclusion
WC59 - 0382,ASH GRANGE CARE HOME,Third Party Payments,Private Contractor Fees,73373-RESIDENTIAL & NURSING CARE PLACEMENTS,Revenue,18/08/2015,"1,949.88",Social Care & Inclusion
WC59 - 0383,ASH GRANGE CARE HOME,Third Party Payments,Private Contractor Fees,73373-RESIDENTIAL & NURSING CARE PLACEMENTS,Revenue,18/08/2015,"1,949.88",Social Care & Inclusion
WC59 - 0384,ASH GRANGE CARE HOME,Third Party Payments,Private Contractor Fees,73373-RESIDENTIAL & NURSING CARE PLACEMENTS,Revenue,18/08/2015,"1,949.88",Social Care & Inclusion
WC59 - 0385,ASH GRANGE CARE HOME,Third Party Payments,Private Contractor Fees,73373-RESIDENTIAL & NURSING CARE PLACEMENTS,Revenue,18/08/2015,"1,949.88",Social Care & Inclusion
WC59 - 0386,ASH GRANGE CARE HOME,Third Party Payments,Private Contractor Fees,73373-RESIDENTIAL & NURSING CARE PLACEMENTS,Revenue,18/08/2015,"1,949.88",Social Care & Inclusion
WC59 - 0387,ASH GRANGE CARE HOME,Third Party Payments,Private Contractor Fees,73373-RESIDENTIAL & NURSING CARE PLACEMENTS,Revenue,18/08/2015,"1,949.88",Social Care & Inclusion
WC59 - 0388,ASH GRANGE CARE HOME,Third Party Payments,Private Contractor Fees,73373-RESIDENTIAL & NURSING CARE PLACEMENTS,Revenue,18/08/2015,"1,949.88",Social Care & Inclusion
WC59 - 0389,ASH GRANGE CARE HOME,Third Party Payments,Private Contractor Fees,73373-RESIDENTIAL & NURSING CARE PLACEMENTS,Revenue,18/08/2015,"1,949.88",Social Care & Inclusion
WC59 - 0390,ASH GRANGE CARE HOME,Third Party Payments,Private Contractor Fees,73373-RESIDENTIAL & NURSING CARE PLACEMENTS,Revenue,18/08/2015,"1,949.88",Social Care & Inclusion
WC59 - 0391,ASH GRANGE CARE HOME,Third Party Payments,Private Contractor Fees,73373-RESIDENTIAL & NURSING CARE PLACEMENTS,Revenue,18/08/2015,"1,949.88",Social Care & Inclusion
WC59 - 0392,ASH GRANGE CARE HOME,Third Party Payments,Private Contractor Fees,73373-RESIDENTIAL & NURSING CARE PLACEMENTS,Revenue,18/08/2015,"1,949.88",Social Care & Inclusion
WC59 - 0393,ASH GRANGE CARE HOME,Third Party Payments,Private Contractor Fees,73373-RESIDENTIAL & NURSING CARE PLACEMENTS,Revenue,18/08/2015,"1,988.20",Social Care & Inclusion
WC59 - 0394,ASH GRANGE CARE HOME,Third Party Payments,Private Contractor Fees,73373-RESIDENTIAL & NURSING CARE PLACEMENTS,Revenue,18/08/2015,"1,988.20",Social Care & Inclusion
WC59 - 0395,ASH GRANGE CARE HOME,Third Party Payments,Private Contractor Fees,73373-RESIDENTIAL & NURSING CARE PLACEMENTS,Revenue,18/08/2015,"1,988.20",Social Care & Inclusion
WC59 - 0396,ASH GRANGE CARE HOME,Third Party Payments,Private Contractor Fees,73373-RESIDENTIAL & NURSING CARE PLACEMENTS,Revenue,18/08/2015,"1,988.20",Social Care & Inclusion
WC59 - 0397,ASH GRANGE CARE HOME,Third Party Payments,Private Contractor Fees,73373-RESIDENTIAL & NURSING CARE PLACEMENTS,Revenue,18/08/2015,"1,988.20",Social Care & Inclusion
WC59 - 0398,ASH GRANGE CARE HOME,Third Party Payments,Private Contractor Fees,73373-RESIDENTIAL & NURSING CARE PLACEMENTS,Revenue,18/08/2015,"1,988.20",Social Care & Inclusion
WC59 - 0399,ASH GRANGE CARE HOME,Third Party Payments,Private Contractor Fees,73373-RESIDENTIAL & NURSING CARE PLACEMENTS,Revenue,18/08/2015,"1,988.20",Social Care & Inclusion
WC59 - 0400,ASH GRANGE CARE HOME,Third Party Payments,Private Contractor Fees,73373-RESIDENTIAL & NURSING CARE PLACEMENTS,Revenue,18/08/2015,"1,988.20",Social Care & Inclusion
WC59 - 0401,ASH GRANGE CARE HOME,Third Party Payments,Private Contractor Fees,73373-RESIDENTIAL & NURSING CARE PLACEMENTS,Revenue,18/08/2015,"1,988.20",Social Care & Inclusion
WC59 - 0402,ASH GRANGE CARE HOME,Third Party Payments,Private Contractor Fees,73373-RESIDENTIAL & NURSING CARE PLACEMENTS,Revenue,18/08/2015,"1,988.20",Social Care & Inclusion
WC59 - 0403,ASH GRANGE CARE HOME,Third Party Payments,Private Contractor Fees,73373-RESIDENTIAL & NURSING CARE PLACEMENTS,Revenue,18/08/2015,"1,988.20",Social Care & Inclusion
WC59 - 0404,ASH GRANGE CARE HOME,Third Party Payments,Private Contractor Fees,73373-RESIDENTIAL & NURSING CARE PLACEMENTS,Revenue,18/08/2015,"1,988.20",Social Care & Inclusion
WC59 - 0405,ASH GRANGE CARE HOME,Third Party Payments,Private Contractor Fees,73373-RESIDENTIAL & NURSING CARE PLACEMENTS,Revenue,18/08/2015,"1,988.20",Social Care & Inclusion
WC59 - 0406,ASH GRANGE CARE HOME,Third Party Payments,Private Contractor Fees,73373-RESIDENTIAL & NURSING CARE PLACEMENTS,Revenue,11/08/2015,"2,065.64",Social Care & Inclusion
WC59 - 0407,ASH GRANGE CARE HOME,Third Party Payments,Private Contractor Fees,73373-RESIDENTIAL & NURSING CARE PLACEMENTS,Revenue,18/08/2015,"2,065.64",Social Care & Inclusion
WC59 - 0408,ASH GRANGE CARE HOME,Third Party Payments,Private Contractor Fees,73373-RESIDENTIAL & NURSING CARE PLACEMENTS,Revenue,18/08/2015,"2,943.72",Social Care & Inclusion
WC59 - 0409,ASH GRANGE CARE HOME,Third Party Payments,Private Contractor Fees,73019-PSE'S-PRIV CONTRACTOR FEES,Revenue,05/08/2015,"14,700.00",Social Care & Inclusion
WC59 - 0410,ASKEWS AND HOLTS LIBRARY SERVICES LTD,Supplies & Services,"Equip,Furniture & Materials",60501-LIBRARY BOOKS,Revenue,24/08/2015,251.49,Economy & Environment
WC59 - 0411,ASKEWS AND HOLTS LIBRARY SERVICES LTD,Supplies & Services,"Equip,Furniture & Materials",60501-LIBRARY BOOKS,Revenue,24/08/2015,255.79,Economy & Environment
WC59 - 0412,ASKEWS AND HOLTS LIBRARY SERVICES LTD,Supplies & Services,"Equip,Furniture & Materials",60501-LIBRARY BOOKS,Revenue,19/08/2015,301.98,Economy & Environment
WC59 - 0413,ASKEWS AND HOLTS LIBRARY SERVICES LTD,Supplies & Services,"Equip,Furniture & Materials",60501-LIBRARY BOOKS,Revenue,05/08/2015,308.40,Economy & Environment
WC59 - 0414,ASKEWS AND HOLTS LIBRARY SERVICES LTD,Supplies & Services,"Equip,Furniture & Materials",60501-LIBRARY BOOKS,Revenue,24/08/2015,309.54,Economy & Environment
WC59 - 0415,ASKEWS AND HOLTS LIBRARY SERVICES LTD,Supplies & Services,"Equip,Furniture & Materials",60501-LIBRARY BOOKS,Revenue,05/08/2015,313.01,Economy & Environment
WC59 - 0416,ASKEWS AND HOLTS LIBRARY SERVICES LTD,Supplies & Services,"Equip,Furniture & Materials",60501-LIBRARY BOOKS,Revenue,18/08/2015,490.47,Economy & Environment
WC59 - 0417,ASKEWS AND HOLTS LIBRARY SERVICES LTD,Supplies & Services,"Equip,Furniture & Materials",60501-LIBRARY BOOKS,Revenue,13/08/2015,658.59,Economy & Environment
WC59 - 0418,ASKEWS AND HOLTS LIBRARY SERVICES LTD,Supplies & Services,"Equip,Furniture & Materials",60501-LIBRARY BOOKS,Revenue,04/08/2015,771.19,Economy & Environment
WC59 - 0419,ASKEWS AND HOLTS LIBRARY SERVICES LTD,Supplies & Services,"Equip,Furniture & Materials",60501-LIBRARY BOOKS,Revenue,07/08/2015,"1,614.38",Economy & Environment
WC59 - 0420,REDACTED,Transfer Payments,Transfer Payments,76422-DIRECT PAYMENTS TO SOCIAL SERVICES CLIENTS,Revenue,07/08/2015,493.00,Social Care & Inclusion
WC59 - 0421,ASN FIRST AID & HYGIENE LTD,Supplies & Services,"Equip,Furniture & Materials",61502-PROTECTIVE CLOTHING & UNIFORM,Revenue,01/08/2015,-394.00,Social Care & Inclusion
WC59 - 0422,ASN FIRST AID & HYGIENE LTD,Supplies & Services,"Equip,Furniture & Materials",61502-PROTECTIVE CLOTHING & UNIFORM,Revenue,01/08/2015,-363.50,Social Care & Inclusion
WC59 - 0423,ASSOCIATION OF LOCAL GOVERNMENT COMMUNICATIONS,Supplies & Services,Subscriptions,64500-PUBLICATIONS/ORGANISATIONS-SUBSCRIPTIONS,Revenue,03/08/2015,250.00,Resources
WC59 - 0424,ASTON CHILDRENS CARE,Third Party Payments,Private Contractor Fees,74036-EXTERNAL RESIDENTIAL CARE-OTH AGENCY PROVISION,Revenue,19/08/2015,"10,628.35",Childrens
WC59 - 0425,ASTUTIS LIMITED,Employees,Training,30030-EXTERNAL TRAINING,Revenue,03/08/2015,"1,161.25",Economy & Environment
WC59 - 0426,ATHWAL NEWS LTD,Supplies & Services,"Equip,Furniture & Materials",60501-LIBRARY BOOKS,Revenue,24/08/2015,527.27,Economy & Environment
WC59 - 0427,AURORA GRAPHICS & DISPLAYS LTD,Supplies & Services,"Printing, Stationery & Office Exp",62008-OUTWORK-PRINT ROOM,Revenue,12/08/2015,297.36,Resources
WC59 - 0428,AURORA GRAPHICS & DISPLAYS LTD,Supplies & Services,"Printing, Stationery & Office Exp",62008-OUTWORK-PRINT ROOM,Revenue,01/08/2015,374.96,Resources
WC59 - 0429,AVANTGARDE PHARMA LTD T/A AL-SHAFA PHARMACY,Supplies & Services,Services,63000-PROFESSIONAL FEES AND SERVICES,Revenue,19/08/2015,110.00,Economy & Environment
WC59 - 0430,AVANTGARDE PHARMA LTD T/A AL-SHAFA PHARMACY,Third Party Payments,Joint Arrangements,71007-CONTRIBUTION TO PCT,Revenue,19/08/2015,725.66,Economy & Environment
WC59 - 0431,REDACTED,Transfer Payments,Transfer Payments,76422-DIRECT PAYMENTS TO SOCIAL SERVICES CLIENTS,Revenue,07/08/2015,777.00,Social Care & Inclusion
WC59 - 0432,AWKEYE,Supplies & Services,"Equip,Furniture & Materials",61500-CLOTHING & LAUNDRY,Revenue,10/08/2015,"1,883.95",Economy & Environment
WC59 - 0433,REDACTED,Transfer Payments,Transfer Payments,76422-DIRECT PAYMENTS TO SOCIAL SERVICES CLIENTS,Revenue,07/08/2015,"2,652.00",Social Care & Inclusion
WC59 - 0434,B & S CHAINS LTD,Supplies & Services,"Equip,Furniture & Materials",60006-NEW-FURNITURE & EQUIPMENT,Revenue,25/08/2015,"1,125.00",Economy & Environment
WC59 - 0435,B A MOON,Supplies & Services,"Equip,Furniture & Materials",60500-GENERAL MATERIALS,Revenue,05/08/2015,"1,000.00",Childrens
WC59 - 0436,REDACTED,Third Party Payments,Private Contractor Fees,74006-HOLIDAY/CHRISTMAS ALLOWANCE-FOSTER CARERS-OTH AGENCY PROVISION,Revenue,17/08/2015,"1,161.66",Childrens
WC59 - 0437,REDACTED,Supplies & Services,Other Supplies & Services,62515-MISCELLANEOUS SUPPLIES,Revenue,17/08/2015,"1,218.75",Childrens
WC59 - 0438,REDACTED,Supplies & Services,Other Supplies & Services,62515-MISCELLANEOUS SUPPLIES,Revenue,17/08/2015,"1,445.32",Childrens
WC59 - 0439,REDACTED,Third Party Payments,Private Contractor Fees,74006-HOLIDAY/CHRISTMAS ALLOWANCE-FOSTER CARERS-OTH AGENCY PROVISION,Revenue,17/08/2015,"1,971.52",Childrens
WC59 - 0440,REDACTED,Transfer Payments,Transfer Payments,76422-DIRECT PAYMENTS TO SOCIAL SERVICES CLIENTS,Revenue,07/08/2015,863.20,Social Care & Inclusion
WC59 - 0441,BAKER ROSS LTD,Supplies & Services,"Equip,Furniture & Materials",60500-GENERAL MATERIALS,Revenue,04/08/2015,319.32,Childrens
WC59 - 0442,BALFOUR BEATTY CIVILS LIMITED,Capital,Capital,01001-OTHER CONSULTANTS FEES,Capital,14/08/2015,"5,859.34",Economy & Environment
WC59 - 0443,REDACTED,Transfer Payments,Transfer Payments,76422-DIRECT PAYMENTS TO SOCIAL SERVICES CLIENTS,Revenue,07/08/2015,"2,849.92",Social Care & Inclusion
WC59 - 0444,REDACTED,Transfer Payments,Transfer Payments,76422-DIRECT PAYMENTS TO SOCIAL SERVICES CLIENTS,Revenue,07/08/2015,620.00,Social Care & Inclusion
WC59 - 0445,REDACTED,Transfer Payments,Transfer Payments,76422-DIRECT PAYMENTS TO SOCIAL SERVICES CLIENTS,Revenue,07/08/2015,"1,288.00",Social Care & Inclusion
WC59 - 0446,BANNERBRIDGE PLC,Supplies & Services,Communications & Computing,63800-COMPUTER EQUIPMENT AND SUPPLIES,Revenue,17/08/2015,"1,670.00",Resources
WC59 - 0447,REDACTED,Transfer Payments,Transfer Payments,76422-DIRECT PAYMENTS TO SOCIAL SERVICES CLIENTS,Revenue,07/08/2015,"2,117.80",Social Care & Inclusion
WC59 - 0448,REDACTED,Transfer Payments,Transfer Payments,76422-DIRECT PAYMENTS TO SOCIAL SERVICES CLIENTS,Revenue,07/08/2015,"1,536.08",Social Care & Inclusion
WC59 - 0449,REDACTED,Transfer Payments,Transfer Payments,76422-DIRECT PAYMENTS TO SOCIAL SERVICES CLIENTS,Revenue,07/08/2015,632.52,Social Care & Inclusion
WC59 - 0450,BARONS COURT HOTEL,Employees,Other Staff Costs,34329-HOTEL ACCOMMODATION-EMPLOYEES,Revenue,03/08/2015,295.83,Childrens
WC59 - 0451,BARONS COURT HOTEL,Third Party Payments,Private Contractor Fees,74036-EXTERNAL RESIDENTIAL CARE-OTH AGENCY PROVISION,Revenue,10/08/2015,991.67,Childrens
WC59 - 0452,BARR BEACON SCHOOL TRUST,Third Party Payments,Grants to Other Orgs,66502-TOP UP FUNDING -GRANTS TO SCHOOLS,Revenue,05/08/2015,"11,507.65",Childrens
WC59 - 0453,BEADEN POWERLEC LIMITED,Capital,Capital,01006-SITE WORKS MAIN CONTRACTORS,Capital,12/08/2015,"1,019.03",Childrens
WC59 - 0454,BEADEN POWERLEC LIMITED,Capital,Capital,01006-SITE WORKS MAIN CONTRACTORS,Capital,13/08/2015,"3,921.52",Childrens
WC59 - 0455,REDACTED,Supplies & Services,Other Supplies & Services,62515-MISCELLANEOUS SUPPLIES,Revenue,17/08/2015,925.00,Childrens
WC59 - 0456,REDACTED,Third Party Payments,Private Contractor Fees,74006-HOLIDAY/CHRISTMAS ALLOWANCE-FOSTER CARERS-OTH AGENCY PROVISION,Revenue,17/08/2015,"2,602.76",Childrens
WC59 - 0457,BEARWOOD NURSING HOME LTD,Third Party Payments,Private Contractor Fees,73373-RESIDENTIAL & NURSING CARE PLACEMENTS,Revenue,04/08/2015,"1,494.00",Social Care & Inclusion
WC59 - 0458,REDACTED,Transfer Payments,Transfer Payments,76422-DIRECT PAYMENTS TO SOCIAL SERVICES CLIENTS,Revenue,05/08/2015,283.48,Social Care & Inclusion
WC59 - 0459,REDACTED,Transfer Payments,Transfer Payments,76422-DIRECT PAYMENTS TO SOCIAL SERVICES CLIENTS,Revenue,07/08/2015,641.76,Social Care & Inclusion
WC59 - 0460,BEDFORD FENCING CO LTD,Supplies & Services,"Equip,Furniture & Materials",60008-MAINTENANCE-FURNITURE & EQUIPMENT,Revenue,24/08/2015,"3,911.40",Economy & Environment
WC59 - 0461,REDACTED,Supplies & Services,Other Supplies & Services,62515-MISCELLANEOUS SUPPLIES,Revenue,17/08/2015,463.70,Childrens
WC59 - 0462,REDACTED,Third Party Payments,Private Contractor Fees,74006-HOLIDAY/CHRISTMAS ALLOWANCE-FOSTER CARERS-OTH AGENCY PROVISION,Revenue,17/08/2015,571.44,Childrens
WC59 - 0463,BELLEVUE COURT CARE HOME,Third Party Payments,Private Contractor Fees,73373-RESIDENTIAL & NURSING CARE PLACEMENTS,Revenue,18/08/2015,"1,532.96",Social Care & Inclusion
WC59 - 0464,BELLEVUE COURT CARE HOME,Third Party Payments,Private Contractor Fees,73373-RESIDENTIAL & NURSING CARE PLACEMENTS,Revenue,18/08/2015,"1,540.20",Social Care & Inclusion
WC59 - 0465,BELLEVUE COURT CARE HOME,Third Party Payments,Private Contractor Fees,73373-RESIDENTIAL & NURSING CARE PLACEMENTS,Revenue,18/08/2015,"1,577.52",Social Care & Inclusion
WC59 - 0466,REDACTED,Transfer Payments,Transfer Payments,76422-DIRECT PAYMENTS TO SOCIAL SERVICES CLIENTS,Revenue,07/08/2015,"2,205.00",Social Care & Inclusion
WC59 - 0467,REDACTED,Supplies & Services,Services,63000-PROFESSIONAL FEES AND SERVICES,Revenue,14/08/2015,337.50,Economy & Environment
WC59 - 0468,REDACTED,Transfer Payments,Transfer Payments,76422-DIRECT PAYMENTS TO SOCIAL SERVICES CLIENTS,Revenue,07/08/2015,912.00,Social Care & Inclusion
WC59 - 0469,REDACTED,Supplies & Services,Other Supplies & Services,62515-MISCELLANEOUS SUPPLIES,Revenue,17/08/2015,"1,045.32",Childrens
WC59 - 0470,REDACTED,Third Party Payments,Private Contractor Fees,74006-HOLIDAY/CHRISTMAS ALLOWANCE-FOSTER CARERS-OTH AGENCY PROVISION,Revenue,17/08/2015,"1,142.88",Childrens
WC59 - 0471,REDACTED,Transfer Payments,Transfer Payments,76422-DIRECT PAYMENTS TO SOCIAL SERVICES CLIENTS,Revenue,07/08/2015,968.00,Social Care & Inclusion
WC59 - 0472,BESCOT LODGE RESIDENTIAL CARE HOME,Third Party Payments,Private Contractor Fees,73373-RESIDENTIAL & NURSING CARE PLACEMENTS,Revenue,04/08/2015,-401.82,Social Care & Inclusion
WC59 - 0473,BESCOT LODGE RESIDENTIAL CARE HOME,Third Party Payments,Private Contractor Fees,73373-RESIDENTIAL & NURSING CARE PLACEMENTS,Revenue,11/08/2015,319.98,Social Care & Inclusion
WC59 - 0474,BESCOT LODGE RESIDENTIAL CARE HOME,Third Party Payments,Private Contractor Fees,73373-RESIDENTIAL & NURSING CARE PLACEMENTS,Revenue,25/08/2015,392.16,Social Care & Inclusion
WC59 - 0475,BESCOT LODGE RESIDENTIAL CARE HOME,Third Party Payments,Private Contractor Fees,73373-RESIDENTIAL & NURSING CARE PLACEMENTS,Revenue,04/08/2015,678.04,Social Care & Inclusion
WC59 - 0476,BESCOT LODGE RESIDENTIAL CARE HOME,Third Party Payments,Private Contractor Fees,73373-RESIDENTIAL & NURSING CARE PLACEMENTS,Revenue,11/08/2015,"1,173.26",Social Care & Inclusion
WC59 - 0477,BESCOT LODGE RESIDENTIAL CARE HOME,Third Party Payments,Private Contractor Fees,73373-RESIDENTIAL & NURSING CARE PLACEMENTS,Revenue,25/08/2015,"1,460.40",Social Care & Inclusion
WC59 - 0478,BESCOT LODGE RESIDENTIAL CARE HOME,Third Party Payments,Private Contractor Fees,73373-RESIDENTIAL & NURSING CARE PLACEMENTS,Revenue,25/08/2015,"1,599.90",Social Care & Inclusion
WC59 - 0479,BESCOT LODGE RESIDENTIAL CARE HOME,Third Party Payments,Private Contractor Fees,73373-RESIDENTIAL & NURSING CARE PLACEMENTS,Revenue,25/08/2015,"1,599.90",Social Care & Inclusion
WC59 - 0480,BESCOT LODGE RESIDENTIAL CARE HOME,Third Party Payments,Private Contractor Fees,73373-RESIDENTIAL & NURSING CARE PLACEMENTS,Revenue,25/08/2015,"1,599.90",Social Care & Inclusion
WC59 - 0481,BESCOT LODGE RESIDENTIAL CARE HOME,Third Party Payments,Private Contractor Fees,73373-RESIDENTIAL & NURSING CARE PLACEMENTS,Revenue,25/08/2015,"1,599.90",Social Care & Inclusion
WC59 - 0482,BESCOT LODGE RESIDENTIAL CARE HOME,Third Party Payments,Private Contractor Fees,73373-RESIDENTIAL & NURSING CARE PLACEMENTS,Revenue,25/08/2015,"1,616.87",Social Care & Inclusion
WC59 - 0483,BESCOT LODGE RESIDENTIAL CARE HOME,Third Party Payments,Private Contractor Fees,73373-RESIDENTIAL & NURSING CARE PLACEMENTS,Revenue,25/08/2015,"1,653.23",Social Care & Inclusion
WC59 - 0484,BESCOT LODGE RESIDENTIAL CARE HOME,Third Party Payments,Private Contractor Fees,73373-RESIDENTIAL & NURSING CARE PLACEMENTS,Revenue,25/08/2015,"1,653.23",Social Care & Inclusion
WC59 - 0485,BESCOT LODGE RESIDENTIAL CARE HOME,Third Party Payments,Private Contractor Fees,73373-RESIDENTIAL & NURSING CARE PLACEMENTS,Revenue,25/08/2015,"1,736.71",Social Care & Inclusion
WC59 - 0486,BESCOT LODGE RESIDENTIAL CARE HOME,Third Party Payments,Private Contractor Fees,73373-RESIDENTIAL & NURSING CARE PLACEMENTS,Revenue,25/08/2015,"1,736.71",Social Care & Inclusion
WC59 - 0487,BESCOT LODGE RESIDENTIAL CARE HOME,Third Party Payments,Private Contractor Fees,73373-RESIDENTIAL & NURSING CARE PLACEMENTS,Revenue,25/08/2015,"1,736.71",Social Care & Inclusion
WC59 - 0488,BESCOT LODGE RESIDENTIAL CARE HOME,Third Party Payments,Private Contractor Fees,73373-RESIDENTIAL & NURSING CARE PLACEMENTS,Revenue,25/08/2015,"1,736.71",Social Care & Inclusion
WC59 - 0489,BESCOT LODGE RESIDENTIAL CARE HOME,Third Party Payments,Private Contractor Fees,73373-RESIDENTIAL & NURSING CARE PLACEMENTS,Revenue,25/08/2015,"1,755.35",Social Care & Inclusion
WC59 - 0490,BESCOT LODGE RESIDENTIAL CARE HOME,Third Party Payments,Private Contractor Fees,73373-RESIDENTIAL & NURSING CARE PLACEMENTS,Revenue,04/08/2015,"1,759.89",Social Care & Inclusion
WC59 - 0491,BESCOT STADIUM SUNDAY MARKET LTD,Third Party Payments,Private Contractor Fees,73025-PROFESSIONAL SERVICES-PRIV CONTRACTOR & OTHER AGENCIES,Revenue,05/08/2015,"3,250.00",Economy & Environment
WC59 - 0492,BESWICK HOUSE SUPPORTED ACCOMMODATION LTD,Third Party Payments,Private Contractor Fees,73365-BLOCK GROSS-SUPPORTING PEOPLE,Revenue,19/08/2015,"15,045.79",Social Care & Inclusion
WC59 - 0493,BETHPHAGE.,Third Party Payments,Private Contractor Fees,73374-SUPPORTED & OTHER ACCOMMODATION,Revenue,14/08/2015,650.00,Social Care & Inclusion
WC59 - 0494,BETHPHAGE.,Third Party Payments,Private Contractor Fees,73374-SUPPORTED & OTHER ACCOMMODATION,Revenue,14/08/2015,"1,439.24",Social Care & Inclusion
WC59 - 0495,BETHPHAGE.,Third Party Payments,Private Contractor Fees,73374-SUPPORTED & OTHER ACCOMMODATION,Revenue,14/08/2015,"1,439.24",Social Care & Inclusion
WC59 - 0496,BETHPHAGE.,Third Party Payments,Private Contractor Fees,73374-SUPPORTED & OTHER ACCOMMODATION,Revenue,14/08/2015,"1,439.24",Social Care & Inclusion
WC59 - 0497,BETHPHAGE.,Third Party Payments,Private Contractor Fees,73374-SUPPORTED & OTHER ACCOMMODATION,Revenue,14/08/2015,"1,474.51",Social Care & Inclusion
WC59 - 0498,BETHPHAGE.,Third Party Payments,Private Contractor Fees,73374-SUPPORTED & OTHER ACCOMMODATION,Revenue,05/08/2015,"3,831.92",Social Care & Inclusion
WC59 - 0499,REDACTED,Transfer Payments,Transfer Payments,76422-DIRECT PAYMENTS TO SOCIAL SERVICES CLIENTS,Revenue,07/08/2015,949.52,Social Care & Inclusion
WC59 - 0500,REDACTED,Transfer Payments,Transfer Payments,76422-DIRECT PAYMENTS TO SOCIAL SERVICES CLIENTS,Revenue,07/08/2015,"1,984.70",Social Care & Inclusion
WC59 - 0501,BIFFA WASTE SERVICES LTD,Third Party Payments,Private Contractor Fees,73005-LANDFILL PTYS-PRIV CONTRACTOR FEES,Revenue,06/08/2015,845.66,Economy & Environment
WC59 - 0502,BIFFA WASTE SERVICES LTD,Third Party Payments,Private Contractor Fees,73005-LANDFILL PTYS-PRIV CONTRACTOR FEES,Revenue,27/08/2015,"1,234.09",Economy & Environment
WC59 - 0503,BIFFA WASTE SERVICES LTD,Third Party Payments,Private Contractor Fees,73005-LANDFILL PTYS-PRIV CONTRACTOR FEES,Revenue,06/08/2015,"1,424.08",Economy & Environment
WC59 - 0504,BIFFA WASTE SERVICES LTD,Third Party Payments,Private Contractor Fees,73005-LANDFILL PTYS-PRIV CONTRACTOR FEES,Revenue,17/08/2015,"1,506.37",Economy & Environment
WC59 - 0505,BIFFA WASTE SERVICES LTD,Third Party Payments,Private Contractor Fees,73005-LANDFILL PTYS-PRIV CONTRACTOR FEES,Revenue,27/08/2015,"2,540.42",Economy & Environment
WC59 - 0506,BIFFA WASTE SERVICES LTD,Third Party Payments,Private Contractor Fees,73039-LANDFILL TAX-PRIV CONTRACTOR FEES,Revenue,06/08/2015,"5,279.79",Economy & Environment
WC59 - 0507,BIFFA WASTE SERVICES LTD,Third Party Payments,Private Contractor Fees,73039-LANDFILL TAX-PRIV CONTRACTOR FEES,Revenue,27/08/2015,"7,704.93",Economy & Environment
WC59 - 0508,BIFFA WASTE SERVICES LTD,Third Party Payments,Private Contractor Fees,73039-LANDFILL TAX-PRIV CONTRACTOR FEES,Revenue,06/08/2015,"8,891.06",Economy & Environment
WC59 - 0509,BIFFA WASTE SERVICES LTD,Third Party Payments,Private Contractor Fees,73039-LANDFILL TAX-PRIV CONTRACTOR FEES,Revenue,17/08/2015,"9,404.83",Economy & Environment
WC59 - 0510,BIFFA WASTE SERVICES LTD,Third Party Payments,Private Contractor Fees,73039-LANDFILL TAX-PRIV CONTRACTOR FEES,Revenue,27/08/2015,"15,860.86",Economy & Environment
WC59 - 0511,REDACTED,Transfer Payments,Transfer Payments,76422-DIRECT PAYMENTS TO SOCIAL SERVICES CLIENTS,Revenue,07/08/2015,487.72,Childrens
WC59 - 0512,REDACTED,Transfer Payments,Transfer Payments,76422-DIRECT PAYMENTS TO SOCIAL SERVICES CLIENTS,Revenue,07/08/2015,537.20,Childrens
WC59 - 0513,BIRCHILLS C OF E COMMUNITY ACADEMY,Third Party Payments,Grants to Other Orgs,66502-TOP UP FUNDING -GRANTS TO SCHOOLS,Revenue,06/08/2015,"14,699.93",Childrens
WC59 - 0514,BIRMINGHAM BOYS AND GIRLS UNION,Supplies & Services,Services,63000-PROFESSIONAL FEES AND SERVICES,Revenue,17/08/2015,420.00,Childrens
WC59 - 0515,BIRMINGHAM CITY COUNCIL,Third Party Payments,Private Contractor Fees,71000-PAYMENTS FOR SERVICES FROM OTHER LOCAL AUTHORITIES,Revenue,14/08/2015,"5,085.00",Economy & Environment
WC59 - 0516,BIRMINGHAM CITY COUNCIL,Third Party Payments,Private Contractor Fees,71000-PAYMENTS FOR SERVICES FROM OTHER LOCAL AUTHORITIES,Revenue,14/08/2015,"10,170.50",Economy & Environment
WC59 - 0517,BLACK COUNTRY CONSORTIUM LIMITED,Supplies & Services,Services,63000-PROFESSIONAL FEES AND SERVICES,Revenue,04/08/2015,"1,604.47",Economy & Environment
WC59 - 0518,BLACK COUNTRY CONSORTIUM LIMITED,Supplies & Services,Services,63000-PROFESSIONAL FEES AND SERVICES,Revenue,19/08/2015,"2,486.40",Economy & Environment
WC59 - 0519,BLACK COUNTRY CONSORTIUM LIMITED,Supplies & Services,Services,63000-PROFESSIONAL FEES AND SERVICES,Revenue,24/08/2015,"2,745.15",Economy & Environment
WC59 - 0520,BLACK COUNTRY CONSORTIUM LIMITED,Supplies & Services,Services,63000-PROFESSIONAL FEES AND SERVICES,Revenue,04/08/2015,"2,971.47",Economy & Environment
WC59 - 0521,BLACK COUNTRY CONSORTIUM LIMITED,Third Party Payments,Private Contractor Fees,73025-PROFESSIONAL SERVICES-PRIV CONTRACTOR & OTHER AGENCIES,Revenue,19/08/2015,"25,000.00",Economy & Environment
WC59 - 0522,BLACK COUNTRY CONSORTIUM LIMITED,Capital,Capital,01045-PRIVATE GRANTS,Capital,01/08/2015,"50,528.10",Economy & Environment
WC59 - 0523,BLACK COUNTRY PARTNERSHIP NHS,Third Party Payments,Private Contractor Fees,73375-IN PATIENT BEDS,Revenue,14/08/2015,"18,000.00",Social Care & Inclusion
WC59 - 0524,BLACK COUNTRY PARTNERSHIP NHS,Third Party Payments,Private Contractor Fees,73375-IN PATIENT BEDS,Revenue,14/08/2015,"27,030.00",Social Care & Inclusion
WC59 - 0525,BLACK COUNTRY PARTNERSHIP NHS,Third Party Payments,Joint Arrangements,71007-CONTRIBUTION TO PCT,Revenue,03/08/2015,"264,038.00",Social Care & Inclusion
WC59 - 0526,BLACK COUNTRY PARTNERSHIP NHS,Third Party Payments,Joint Arrangements,71007-CONTRIBUTION TO PCT,Revenue,14/08/2015,"264,038.00",Social Care & Inclusion
WC59 - 0527,BLACK COUNTRY UNIVERSITY TECHNICAL COLLEGE,Third Party Payments,Grants to Other Orgs,66502-TOP UP FUNDING -GRANTS TO SCHOOLS,Revenue,05/08/2015,"4,611.53",Childrens
WC59 - 0528,BLAKENALL HEATH JMI SCHOOL,Third Party Payments,Grants to Other Orgs,66502-TOP UP FUNDING -GRANTS TO SCHOOLS,Revenue,05/08/2015,"2,961.53",Childrens
WC59 - 0529,BLAKENALL HEATH JMI SCHOOL,Transfer Payments,Transfer Payments,77302-ISB-SCHOOL STANDARDS GRANT,Revenue,07/08/2015,"55,920.00",Childrens
WC59 - 0530,BLAKENALL HEATH JMI SCHOOL,Transfer Payments,Transfer Payments,77300-ISB-FORMULA ALLOCATION,Revenue,18/08/2015,"88,933.93",Childrens
WC59 - 0531,BLOXWICH RADIO TAXIS,Transport,Hire,52000-WITH DRIVER-HIRE OF VEHICLES,Revenue,01/08/2015,776.40,Childrens
WC59 - 0532,BLOXWICH RADIO TAXIS,Transport,Hire,52000-WITH DRIVER-HIRE OF VEHICLES,Revenue,01/08/2015,"1,000.00",Childrens
WC59 - 0533,BLOXWICH RUGBY FOOTBALL CLUB,Employees,Other Staff Costs,32000-MISC FEES AND EXPENSES,Revenue,14/08/2015,300.00,Economy & Environment
WC59 - 0534,BLUE COAT CHURCH OF ENGLAND ACADEMY,Third Party Payments,Grants to Other Orgs,66502-TOP UP FUNDING -GRANTS TO SCHOOLS,Revenue,05/08/2015,"11,380.71",Childrens
WC59 - 0535,BOLDMERE COURT CARE HOME,Third Party Payments,Private Contractor Fees,73373-RESIDENTIAL & NURSING CARE PLACEMENTS,Revenue,25/08/2015,"1,145.70",Social Care & Inclusion
WC59 - 0536,BOLDMERE COURT CARE HOME,Third Party Payments,Private Contractor Fees,73373-RESIDENTIAL & NURSING CARE PLACEMENTS,Revenue,25/08/2015,"1,636.71",Social Care & Inclusion
WC59 - 0537,BOLDMERE COURT CARE HOME,Third Party Payments,Private Contractor Fees,73373-RESIDENTIAL & NURSING CARE PLACEMENTS,Revenue,25/08/2015,"1,636.71",Social Care & Inclusion
WC59 - 0538,BOLDMERE COURT CARE HOME,Third Party Payments,Private Contractor Fees,73373-RESIDENTIAL & NURSING CARE PLACEMENTS,Revenue,25/08/2015,"1,691.27",Social Care & Inclusion
WC59 - 0539,BOLDMERE COURT CARE HOME,Third Party Payments,Private Contractor Fees,73373-RESIDENTIAL & NURSING CARE PLACEMENTS,Revenue,25/08/2015,"1,691.27",Social Care & Inclusion
WC59 - 0540,BOLDMERE COURT CARE HOME,Third Party Payments,Private Contractor Fees,73373-RESIDENTIAL & NURSING CARE PLACEMENTS,Revenue,25/08/2015,"1,691.27",Social Care & Inclusion
WC59 - 0541,BOLDMERE COURT CARE HOME,Third Party Payments,Private Contractor Fees,73373-RESIDENTIAL & NURSING CARE PLACEMENTS,Revenue,25/08/2015,"1,691.27",Social Care & Inclusion
WC59 - 0542,BOLDMERE COURT CARE HOME,Third Party Payments,Private Contractor Fees,73373-RESIDENTIAL & NURSING CARE PLACEMENTS,Revenue,25/08/2015,"1,691.27",Social Care & Inclusion
WC59 - 0543,BOLDMERE COURT CARE HOME,Third Party Payments,Private Contractor Fees,73373-RESIDENTIAL & NURSING CARE PLACEMENTS,Revenue,25/08/2015,"1,691.27",Social Care & Inclusion
WC59 - 0544,BORN TO PERFORM,Supplies & Services,Other Supplies & Services,62515-MISCELLANEOUS SUPPLIES,Revenue,20/08/2015,300.00,Economy & Environment
WC59 - 0545,BOWDEN DERRA PARK,Third Party Payments,Private Contractor Fees,73373-RESIDENTIAL & NURSING CARE PLACEMENTS,Revenue,04/08/2015,"10,271.64",Social Care & Inclusion
WC59 - 0546,BOWDEN DERRA PARK,Third Party Payments,Private Contractor Fees,73373-RESIDENTIAL & NURSING CARE PLACEMENTS,Revenue,25/08/2015,"10,502.76",Social Care & Inclusion
WC59 - 0547,BPH DATA LTD,Supplies & Services,Communications & Computing,63800-COMPUTER EQUIPMENT AND SUPPLIES,Revenue,28/08/2015,700.00,Economy & Environment
WC59 - 0548,BRADVALE LTD T/A INSPIRE HEALTHCARE SERVICES,Supplies & Services,"Equip,Furniture & Materials",60520-HEALTH & SAFETY-MATERIALS,Revenue,19/08/2015,414.57,Economy & Environment
WC59 - 0549,BRADVALE LTD T/A INSPIRE HEALTHCARE SERVICES,Supplies & Services,"Equip,Furniture & Materials",60520-HEALTH & SAFETY-MATERIALS,Revenue,19/08/2015,414.57,Economy & Environment
WC59 - 0550,BRADVALE LTD T/A INSPIRE HEALTHCARE SERVICES,Third Party Payments,Private Contractor Fees,73025-PROFESSIONAL SERVICES-PRIV CONTRACTOR & OTHER AGENCIES,Revenue,24/08/2015,"8,071.50",Economy & Environment
WC59 - 0551,BRELMAYNE LTD,Supplies & Services,"Equip,Furniture & Materials",60008-MAINTENANCE-FURNITURE & EQUIPMENT,Revenue,04/08/2015,278.25,Social Care & Inclusion
WC59 - 0552,BRELMAYNE LTD,Premises,Premises-Repairs & Maintenance,"40000-REPAIRS,ALTERATIONS & MAINTENANCE-PREM",Revenue,06/08/2015,"1,990.00",Resources
WC59 - 0553,BRELMAYNE LTD,Third Party Payments,Private Contractor Fees,73025-PROFESSIONAL SERVICES-PRIV CONTRACTOR & OTHER AGENCIES,Revenue,19/08/2015,"2,043.22",Resources
WC59 - 0554,BRELMAYNE LTD,Premises,Premises-Repairs & Maintenance,"40000-REPAIRS,ALTERATIONS & MAINTENANCE-PREM",Revenue,10/08/2015,"2,071.50",Resources
WC59 - 0555,BRELMAYNE LTD,Premises,Premises-Repairs & Maintenance,"40000-REPAIRS,ALTERATIONS & MAINTENANCE-PREM",Revenue,10/08/2015,"2,100.00",Resources
WC59 - 0556,BRELMAYNE LTD,Supplies & Services,"Equip,Furniture & Materials",60006-NEW-FURNITURE & EQUIPMENT,Revenue,12/08/2015,"2,652.00",Resources
WC59 - 0557,REDACTED,Transfer Payments,Transfer Payments,76422-DIRECT PAYMENTS TO SOCIAL SERVICES CLIENTS,Revenue,07/08/2015,440.00,Social Care & Inclusion
WC59 - 0558,REDACTED,Supplies & Services,Other Supplies & Services,62515-MISCELLANEOUS SUPPLIES,Revenue,17/08/2015,"1,575.97",Childrens
WC59 - 0559,REDACTED,Third Party Payments,Private Contractor Fees,74006-HOLIDAY/CHRISTMAS ALLOWANCE-FOSTER CARERS-OTH AGENCY PROVISION,Revenue,17/08/2015,"1,952.76",Childrens
WC59 - 0560,REDACTED,Transfer Payments,Transfer Payments,76422-DIRECT PAYMENTS TO SOCIAL SERVICES CLIENTS,Revenue,07/08/2015,544.00,Social Care & Inclusion
WC59 - 0561,BRENNTAG UK LIMITED,Transport,Other Transport,50301-FUEL-TRANSPORT RUN COSTS,Revenue,01/08/2015,710.56,Economy & Environment
WC59 - 0562,REDACTED,Third Party Payments,Private Contractor Fees,73374-SUPPORTED & OTHER ACCOMMODATION,Revenue,05/08/2015,"2,935.24",Social Care & Inclusion
WC59 - 0563,REDACTED,Transfer Payments,Transfer Payments,76422-DIRECT PAYMENTS TO SOCIAL SERVICES CLIENTS,Revenue,07/08/2015,493.20,Social Care & Inclusion
WC59 - 0564,REDACTED,Transfer Payments,Transfer Payments,76422-DIRECT PAYMENTS TO SOCIAL SERVICES CLIENTS,Revenue,07/08/2015,"1,294.80",Social Care & Inclusion
WC59 - 0565,REDACTED,Transfer Payments,Transfer Payments,76422-DIRECT PAYMENTS TO SOCIAL SERVICES CLIENTS,Revenue,07/08/2015,697.00,Social Care & Inclusion
WC59 - 0566,BRIDGEWOOD HEALTH CARE LTD,Third Party Payments,Private Contractor Fees,73373-RESIDENTIAL & NURSING CARE PLACEMENTS,Revenue,25/08/2015,"1,625.92",Social Care & Inclusion
WC59 - 0567,BRIDGEWOOD HEALTH CARE LTD,Third Party Payments,Private Contractor Fees,73373-RESIDENTIAL & NURSING CARE PLACEMENTS,Revenue,25/08/2015,"3,741.46",Social Care & Inclusion
WC59 - 0568,BRIDGEWOOD HEALTH CARE LTD,Third Party Payments,Private Contractor Fees,73373-RESIDENTIAL & NURSING CARE PLACEMENTS,Revenue,25/08/2015,"5,513.72",Social Care & Inclusion
WC59 - 0569,BRIDGEWOOD HEALTH CARE LTD,Third Party Payments,Private Contractor Fees,73373-RESIDENTIAL & NURSING CARE PLACEMENTS,Revenue,25/08/2015,"5,513.72",Social Care & Inclusion
WC59 - 0570,BRIDGEWOOD HEALTH CARE LTD,Third Party Payments,Private Contractor Fees,73373-RESIDENTIAL & NURSING CARE PLACEMENTS,Revenue,25/08/2015,"5,513.72",Social Care & Inclusion
WC59 - 0571,BRIDGEWOOD HEALTH CARE LTD,Third Party Payments,Private Contractor Fees,73373-RESIDENTIAL & NURSING CARE PLACEMENTS,Revenue,25/08/2015,"5,513.72",Social Care & Inclusion
WC59 - 0572,BRIGHTER FUTURES,Supplies & Services,Services,63000-PROFESSIONAL FEES AND SERVICES,Revenue,01/08/2015,"4,166.67",Resources
WC59 - 0573,BRISTOW & SUTOR,Supplies & Services,Services,63102-CONSULTANTS FEES - CORPORATE,Revenue,28/08/2015,274.61,Resources
WC59 - 0574,BRITANNIA APPRENTICESHIPS LTD,Third Party Payments,Grants to Other Orgs,66500-GRANTS TO OTHER ORGS,Revenue,25/08/2015,"1,125.00",Economy & Environment
WC59 - 0575,BRITANNIA APPRENTICESHIPS LTD,Third Party Payments,Grants to Other Orgs,66500-GRANTS TO OTHER ORGS,Revenue,25/08/2015,"1,125.00",Economy & Environment
WC59 - 0576,BRITANNIA APPRENTICESHIPS LTD,Third Party Payments,Grants to Other Orgs,66500-GRANTS TO OTHER ORGS,Revenue,25/08/2015,"6,000.00",Economy & Environment
WC59 - 0577,BRITANNIA APPRENTICESHIPS LTD,Third Party Payments,Grants to Other Orgs,65500-GRANTS TO ASSOCIATIONS,Revenue,05/08/2015,"6,330.14",Resources
WC59 - 0578,BRITISH GAS BUSINESS,Premises,Utilities,42000-GAS-ENERGY COSTS,Revenue,05/08/2015,"-6,863.55",Childrens
WC59 - 0579,BRITISH GAS BUSINESS,Premises,Utilities,42000-GAS-ENERGY COSTS,Revenue,27/08/2015,255.13,Resources
WC59 - 0580,BRITISH GAS BUSINESS,Premises,Utilities,42000-GAS-ENERGY COSTS,Revenue,05/08/2015,"2,099.56",Childrens
WC59 - 0581,BRITISH GAS BUSINESS,Premises,Utilities,42000-GAS-ENERGY COSTS,Revenue,05/08/2015,"6,870.36",Childrens
WC59 - 0582,BRITISH GAS BUSINESS,Premises,Utilities,42000-GAS-ENERGY COSTS,Revenue,05/08/2015,"7,406.40",Childrens
WC59 - 0583,BROADOAK CARE,Third Party Payments,Private Contractor Fees,73373-RESIDENTIAL & NURSING CARE PLACEMENTS,Revenue,06/08/2015,330.79,Social Care & Inclusion
WC59 - 0584,BROADOAK CARE,Third Party Payments,Private Contractor Fees,73373-RESIDENTIAL & NURSING CARE PLACEMENTS,Revenue,06/08/2015,459.19,Social Care & Inclusion
WC59 - 0585,BROADWAY PHARMACY,Supplies & Services,Services,63000-PROFESSIONAL FEES AND SERVICES,Revenue,19/08/2015,53.10,Economy & Environment
WC59 - 0586,BROADWAY PHARMACY,Third Party Payments,Joint Arrangements,71007-CONTRIBUTION TO PCT,Revenue,19/08/2015,388.02,Economy & Environment
WC59 - 0587,BROADWAY TRAVEL CONNECTIONS,Transport,Hire,52000-WITH DRIVER-HIRE OF VEHICLES,Revenue,12/08/2015,"2,400.00",Childrens
WC59 - 0588,BROOK DESIGN HARDWARE LTD T/A BROOKVENT,Supplies & Services,"Equip,Furniture & Materials",60500-GENERAL MATERIALS,Revenue,26/08/2015,455.90,Social Care & Inclusion
WC59 - 0589,BROWNHILLS ASPHALT TARMACADAM,Supplies & Services,"Equip,Furniture & Materials",60500-GENERAL MATERIALS,Revenue,10/08/2015,268.00,Economy & Environment
WC59 - 0590,BROWNHILLS ASPHALT TARMACADAM,Supplies & Services,"Equip,Furniture & Materials",60500-GENERAL MATERIALS,Revenue,05/08/2015,424.00,Economy & Environment
WC59 - 0591,BROWNHILLS ASPHALT TARMACADAM,Supplies & Services,"Equip,Furniture & Materials",60500-GENERAL MATERIALS,Revenue,12/08/2015,520.00,Economy & Environment
WC59 - 0592,BROWNHILLS ASPHALT TARMACADAM,Supplies & Services,"Equip,Furniture & Materials",60500-GENERAL MATERIALS,Revenue,19/08/2015,520.00,Economy & Environment
WC59 - 0593,BROWNHILLS ASPHALT TARMACADAM,Supplies & Services,"Equip,Furniture & Materials",60500-GENERAL MATERIALS,Revenue,05/08/2015,571.00,Economy & Environment
WC59 - 0594,BROWNHILLS ASPHALT TARMACADAM,Supplies & Services,"Equip,Furniture & Materials",60500-GENERAL MATERIALS,Revenue,05/08/2015,625.00,Economy & Environment
WC59 - 0595,BROWNHILLS ASPHALT TARMACADAM,Supplies & Services,"Equip,Furniture & Materials",60500-GENERAL MATERIALS,Revenue,05/08/2015,630.00,Economy & Environment
WC59 - 0596,BROWNHILLS ASPHALT TARMACADAM,Supplies & Services,"Equip,Furniture & Materials",60500-GENERAL MATERIALS,Revenue,05/08/2015,652.00,Economy & Environment
WC59 - 0597,BROWNHILLS ASPHALT TARMACADAM,Supplies & Services,"Equip,Furniture & Materials",60500-GENERAL MATERIALS,Revenue,10/08/2015,"1,475.00",Economy & Environment
WC59 - 0598,BROWNHILLS ASPHALT TARMACADAM,Supplies & Services,"Equip,Furniture & Materials",60500-GENERAL MATERIALS,Revenue,05/08/2015,"2,932.00",Economy & Environment
WC59 - 0599,BROWNHILLS ASPHALT TARMACADAM,Supplies & Services,Services,63000-PROFESSIONAL FEES AND SERVICES,Revenue,05/08/2015,"4,100.00",Economy & Environment
WC59 - 0600,BROWNHILLS ASPHALT TARMACADAM,Premises,Premises-Repairs & Maintenance,"40000-REPAIRS,ALTERATIONS & MAINTENANCE-PREM",Revenue,05/08/2015,"13,823.00",Economy & Environment
WC59 - 0601,BROWNHILLS ASPHALT TARMACADAM,Capital,Capital,01006-SITE WORKS MAIN CONTRACTORS,Capital,27/08/2015,"15,425.00",Social Care & Inclusion
WC59 - 0602,BROXAP LTD,Supplies & Services,"Equip,Furniture & Materials",60006-NEW-FURNITURE & EQUIPMENT,Revenue,04/08/2015,500.00,Economy & Environment
WC59 - 0603,REDACTED,Transfer Payments,Transfer Payments,76422-DIRECT PAYMENTS TO SOCIAL SERVICES CLIENTS,Revenue,07/08/2015,"1,445.00",Social Care & Inclusion
WC59 - 0604,BT PLC,Supplies & Services,Communications & Computing,63603-COST OF CALLS-TELEPHONES,Revenue,20/08/2015,397.58,Childrens
WC59 - 0605,BT PLC,Supplies & Services,Communications & Computing,63602-COST OF RENTAL-TELEPHONES,Revenue,21/08/2015,509.33,Childrens
WC59 - 0606,BT PLC,Supplies & Services,Communications & Computing,63603-COST OF CALLS-TELEPHONES,Revenue,12/08/2015,970.00,Resources
WC59 - 0607,BT PLC,Supplies & Services,Communications & Computing,63601-COSTS (NOT INTERNAL RECHARGES)-TELEPHONES,Revenue,10/08/2015,"1,487.22",Resources
WC59 - 0608,BT PLC,Supplies & Services,Communications & Computing,63601-COSTS (NOT INTERNAL RECHARGES)-TELEPHONES,Revenue,21/08/2015,"12,884.19",Resources
WC59 - 0609,BUNZL CLEANING AND HYGIENE SUPPLIES,Supplies & Services,"Equip,Furniture & Materials",60007-REPAIR OF EQUIPMENT-EQUIPMENT,Revenue,19/08/2015,657.70,Resources
WC59 - 0610,BUPA CARE HOMES (CFHCARE) LTD,Third Party Payments,Private Contractor Fees,73373-RESIDENTIAL & NURSING CARE PLACEMENTS,Revenue,25/08/2015,"1,533.16",Social Care & Inclusion
WC59 - 0611,BURTON ADDICTION CENTRE,Supplies & Services,Services,63000-PROFESSIONAL FEES AND SERVICES,Revenue,06/08/2015,"1,380.37",Economy & Environment
WC59 - 0612,BUSH HOME LTD,Third Party Payments,Private Contractor Fees,73373-RESIDENTIAL & NURSING CARE PLACEMENTS,Revenue,11/08/2015,"1,456.52",Social Care & Inclusion
WC59 - 0613,BUSH HOME LTD,Third Party Payments,Private Contractor Fees,73373-RESIDENTIAL & NURSING CARE PLACEMENTS,Revenue,11/08/2015,"1,460.40",Social Care & Inclusion
WC59 - 0614,BUSH HOME LTD,Third Party Payments,Private Contractor Fees,73373-RESIDENTIAL & NURSING CARE PLACEMENTS,Revenue,25/08/2015,"1,490.96",Social Care & Inclusion
WC59 - 0615,BUSH HOME LTD,Third Party Payments,Private Contractor Fees,73373-RESIDENTIAL & NURSING CARE PLACEMENTS,Revenue,25/08/2015,"1,493.24",Social Care & Inclusion
WC59 - 0616,BUSH HOME LTD,Third Party Payments,Private Contractor Fees,73373-RESIDENTIAL & NURSING CARE PLACEMENTS,Revenue,25/08/2015,"1,493.24",Social Care & Inclusion
WC59 - 0617,BUSH HOME LTD,Third Party Payments,Private Contractor Fees,73373-RESIDENTIAL & NURSING CARE PLACEMENTS,Revenue,25/08/2015,"1,493.24",Social Care & Inclusion
WC59 - 0618,BUSH HOME LTD,Third Party Payments,Private Contractor Fees,73373-RESIDENTIAL & NURSING CARE PLACEMENTS,Revenue,25/08/2015,"1,493.24",Social Care & Inclusion
WC59 - 0619,BUSH HOME LTD,Third Party Payments,Private Contractor Fees,73373-RESIDENTIAL & NURSING CARE PLACEMENTS,Revenue,25/08/2015,"1,534.12",Social Care & Inclusion
WC59 - 0620,BUSH HOME LTD,Third Party Payments,Private Contractor Fees,73373-RESIDENTIAL & NURSING CARE PLACEMENTS,Revenue,25/08/2015,"1,557.60",Social Care & Inclusion
WC59 - 0621,BUSH HOME LTD,Third Party Payments,Private Contractor Fees,73373-RESIDENTIAL & NURSING CARE PLACEMENTS,Revenue,11/08/2015,"1,568.56",Social Care & Inclusion
WC59 - 0622,BUSH HOME LTD,Third Party Payments,Private Contractor Fees,73373-RESIDENTIAL & NURSING CARE PLACEMENTS,Revenue,11/08/2015,"1,568.56",Social Care & Inclusion
WC59 - 0623,BUSH HOME LTD,Third Party Payments,Private Contractor Fees,73373-RESIDENTIAL & NURSING CARE PLACEMENTS,Revenue,11/08/2015,"1,568.56",Social Care & Inclusion
WC59 - 0624,BUSH HOME LTD,Third Party Payments,Private Contractor Fees,73373-RESIDENTIAL & NURSING CARE PLACEMENTS,Revenue,25/08/2015,"1,568.64",Social Care & Inclusion
WC59 - 0625,BUSH HOME LTD,Third Party Payments,Private Contractor Fees,73373-RESIDENTIAL & NURSING CARE PLACEMENTS,Revenue,25/08/2015,"1,568.64",Social Care & Inclusion
WC59 - 0626,BUSH HOME LTD,Third Party Payments,Private Contractor Fees,73373-RESIDENTIAL & NURSING CARE PLACEMENTS,Revenue,25/08/2015,"1,568.64",Social Care & Inclusion
WC59 - 0627,BUSH HOME LTD,Third Party Payments,Private Contractor Fees,73373-RESIDENTIAL & NURSING CARE PLACEMENTS,Revenue,25/08/2015,"1,568.64",Social Care & Inclusion
WC59 - 0628,BUSH HOME LTD,Third Party Payments,Private Contractor Fees,73373-RESIDENTIAL & NURSING CARE PLACEMENTS,Revenue,25/08/2015,"1,568.64",Social Care & Inclusion
WC59 - 0629,BUSH HOME LTD,Third Party Payments,Private Contractor Fees,73373-RESIDENTIAL & NURSING CARE PLACEMENTS,Revenue,25/08/2015,"1,568.64",Social Care & Inclusion
WC59 - 0630,BUSH HOME LTD,Third Party Payments,Private Contractor Fees,73373-RESIDENTIAL & NURSING CARE PLACEMENTS,Revenue,25/08/2015,"1,568.64",Social Care & Inclusion
WC59 - 0631,BUSH HOME LTD,Third Party Payments,Private Contractor Fees,73373-RESIDENTIAL & NURSING CARE PLACEMENTS,Revenue,25/08/2015,"1,568.64",Social Care & Inclusion
WC59 - 0632,BUSH HOME LTD,Third Party Payments,Private Contractor Fees,73373-RESIDENTIAL & NURSING CARE PLACEMENTS,Revenue,25/08/2015,"1,568.64",Social Care & Inclusion
WC59 - 0633,BUSH HOME LTD,Third Party Payments,Private Contractor Fees,73373-RESIDENTIAL & NURSING CARE PLACEMENTS,Revenue,11/08/2015,"1,621.94",Social Care & Inclusion
WC59 - 0634,BUSH HOME LTD,Third Party Payments,Private Contractor Fees,73373-RESIDENTIAL & NURSING CARE PLACEMENTS,Revenue,25/08/2015,"1,621.94",Social Care & Inclusion
WC59 - 0635,BUSH HOME LTD,Third Party Payments,Private Contractor Fees,73373-RESIDENTIAL & NURSING CARE PLACEMENTS,Revenue,25/08/2015,"1,621.94",Social Care & Inclusion
WC59 - 0636,BUSH HOME LTD,Third Party Payments,Private Contractor Fees,73373-RESIDENTIAL & NURSING CARE PLACEMENTS,Revenue,25/08/2015,"1,703.94",Social Care & Inclusion
WC59 - 0637,BUSH HOME LTD,Third Party Payments,Private Contractor Fees,73373-RESIDENTIAL & NURSING CARE PLACEMENTS,Revenue,11/08/2015,"4,711.94",Social Care & Inclusion
WC59 - 0638,BY THE BRIDGE,Third Party Payments,Private Contractor Fees,74037-INDEPENDENT FOSTER CARE-OTH AGENCY PROVISION,Revenue,14/08/2015,"6,121.39",Childrens
WC59 - 0639,C & V ORCHARD MANOR LTD,Third Party Payments,Private Contractor Fees,73373-RESIDENTIAL & NURSING CARE PLACEMENTS,Revenue,18/08/2015,"1,472.16",Social Care & Inclusion
WC59 - 0640,C & V ORCHARD MANOR LTD,Third Party Payments,Private Contractor Fees,73373-RESIDENTIAL & NURSING CARE PLACEMENTS,Revenue,18/08/2015,"1,472.16",Social Care & Inclusion
WC59 - 0641,C & V ORCHARD MANOR LTD,Third Party Payments,Private Contractor Fees,73373-RESIDENTIAL & NURSING CARE PLACEMENTS,Revenue,18/08/2015,"1,472.16",Social Care & Inclusion
WC59 - 0642,C & V ORCHARD MANOR LTD,Third Party Payments,Private Contractor Fees,73373-RESIDENTIAL & NURSING CARE PLACEMENTS,Revenue,18/08/2015,"1,493.24",Social Care & Inclusion
WC59 - 0643,C & V ORCHARD MANOR LTD,Third Party Payments,Private Contractor Fees,73373-RESIDENTIAL & NURSING CARE PLACEMENTS,Revenue,18/08/2015,"1,493.24",Social Care & Inclusion
WC59 - 0644,C & V ORCHARD MANOR LTD,Third Party Payments,Private Contractor Fees,73373-RESIDENTIAL & NURSING CARE PLACEMENTS,Revenue,18/08/2015,"1,493.24",Social Care & Inclusion
WC59 - 0645,C & V ORCHARD MANOR LTD,Third Party Payments,Private Contractor Fees,73373-RESIDENTIAL & NURSING CARE PLACEMENTS,Revenue,18/08/2015,"1,493.32",Social Care & Inclusion
WC59 - 0646,C & V ORCHARD MANOR LTD,Third Party Payments,Private Contractor Fees,73373-RESIDENTIAL & NURSING CARE PLACEMENTS,Revenue,18/08/2015,"1,566.20",Social Care & Inclusion
WC59 - 0647,C & V ORCHARD MANOR LTD,Third Party Payments,Private Contractor Fees,73373-RESIDENTIAL & NURSING CARE PLACEMENTS,Revenue,18/08/2015,"1,566.20",Social Care & Inclusion
WC59 - 0648,C & V ORCHARD RESIDENTIAL LTD,Third Party Payments,Private Contractor Fees,73373-RESIDENTIAL & NURSING CARE PLACEMENTS,Revenue,18/08/2015,"1,493.24",Social Care & Inclusion
WC59 - 0649,C & V ORCHARD RESIDENTIAL LTD,Third Party Payments,Private Contractor Fees,73373-RESIDENTIAL & NURSING CARE PLACEMENTS,Revenue,18/08/2015,"1,493.32",Social Care & Inclusion
WC59 - 0650,C & V ORCHARD RESIDENTIAL LTD,Third Party Payments,Private Contractor Fees,73373-RESIDENTIAL & NURSING CARE PLACEMENTS,Revenue,18/08/2015,"1,566.20",Social Care & Inclusion
WC59 - 0651,C & V ORCHARD RESIDENTIAL LTD,Third Party Payments,Private Contractor Fees,73373-RESIDENTIAL & NURSING CARE PLACEMENTS,Revenue,18/08/2015,"1,566.20",Social Care & Inclusion
WC59 - 0652,C & V ORCHARD RESIDENTIAL LTD,Third Party Payments,Private Contractor Fees,73373-RESIDENTIAL & NURSING CARE PLACEMENTS,Revenue,18/08/2015,"1,566.20",Social Care & Inclusion
WC59 - 0653,C & V ORCHARD RESIDENTIAL LTD,Third Party Payments,Private Contractor Fees,73373-RESIDENTIAL & NURSING CARE PLACEMENTS,Revenue,18/08/2015,"1,566.20",Social Care & Inclusion
WC59 - 0654,C & V ORCHARD RESIDENTIAL LTD,Third Party Payments,Private Contractor Fees,73373-RESIDENTIAL & NURSING CARE PLACEMENTS,Revenue,18/08/2015,"1,568.16",Social Care & Inclusion
WC59 - 0655,C & V ORCHARD RESIDENTIAL LTD,Third Party Payments,Private Contractor Fees,73373-RESIDENTIAL & NURSING CARE PLACEMENTS,Revenue,18/08/2015,"1,568.60",Social Care & Inclusion
WC59 - 0656,C & V ORCHARD RESIDENTIAL LTD,Third Party Payments,Private Contractor Fees,73373-RESIDENTIAL & NURSING CARE PLACEMENTS,Revenue,18/08/2015,"1,568.60",Social Care & Inclusion
WC59 - 0657,C ART ART TRANSPORT LTD,Third Party Payments,Private Contractor Fees,73032-TRANSPORTATION-PRIV CONTRACTOR FEES,Revenue,26/08/2015,265.00,Economy & Environment
WC59 - 0658,C ART ART TRANSPORT LTD,Third Party Payments,Private Contractor Fees,73032-TRANSPORTATION-PRIV CONTRACTOR FEES,Revenue,26/08/2015,437.50,Economy & Environment
WC59 - 0659,REDACTED,Supplies & Services,Other Supplies & Services,62515-MISCELLANEOUS SUPPLIES,Revenue,17/08/2015,"4,317.64",Childrens
WC59 - 0660,REDACTED,Third Party Payments,Private Contractor Fees,74006-HOLIDAY/CHRISTMAS ALLOWANCE-FOSTER CARERS-OTH AGENCY PROVISION,Revenue,17/08/2015,"4,783.89",Childrens
WC59 - 0661,REDACTED,Supplies & Services,Other Supplies & Services,62515-MISCELLANEOUS SUPPLIES,Revenue,17/08/2015,"1,445.32",Childrens
WC59 - 0662,REDACTED,Third Party Payments,Private Contractor Fees,74006-HOLIDAY/CHRISTMAS ALLOWANCE-FOSTER CARERS-OTH AGENCY PROVISION,Revenue,17/08/2015,"1,461.24",Childrens
WC59 - 0663,C P DAVIDSON & SONS LTD,Supplies & Services,"Equip,Furniture & Materials",60514-MATERIALS TO STORES,Revenue,13/08/2015,284.53,Economy & Environment
WC59 - 0664,C P DAVIDSON & SONS LTD,Supplies & Services,"Equip,Furniture & Materials",60514-MATERIALS TO STORES,Revenue,26/08/2015,928.96,Economy & Environment
WC59 - 0665,REDACTED,Third Party Payments,Private Contractor Fees,74006-HOLIDAY/CHRISTMAS ALLOWANCE-FOSTER CARERS-OTH AGENCY PROVISION,Revenue,03/08/2015,"1,985.75",Childrens
WC59 - 0666,CALDMORE AREA HOUSING ASS LTD,Third Party Payments,Private Contractor Fees,73372-DOMICILIARY CARE,Revenue,12/08/2015,295.92,Social Care & Inclusion
WC59 - 0667,CALDMORE AREA HOUSING ASS LTD,Third Party Payments,Private Contractor Fees,73372-DOMICILIARY CARE,Revenue,12/08/2015,328.80,Social Care & Inclusion
WC59 - 0668,CALDMORE AREA HOUSING ASS LTD,Third Party Payments,Private Contractor Fees,73372-DOMICILIARY CARE,Revenue,19/08/2015,378.12,Social Care & Inclusion
WC59 - 0669,CALDMORE AREA HOUSING ASS LTD,Third Party Payments,Private Contractor Fees,73373-RESIDENTIAL & NURSING CARE PLACEMENTS,Revenue,25/08/2015,530.85,Social Care & Inclusion
WC59 - 0670,CALDMORE AREA HOUSING ASS LTD,Third Party Payments,Private Contractor Fees,73372-DOMICILIARY CARE,Revenue,19/08/2015,777.48,Social Care & Inclusion
WC59 - 0671,CALDMORE AREA HOUSING ASS LTD,Third Party Payments,Private Contractor Fees,73372-DOMICILIARY CARE,Revenue,12/08/2015,"1,775.52",Social Care & Inclusion
WC59 - 0672,REDACTED,Third Party Payments,Private Contractor Fees,74006-HOLIDAY/CHRISTMAS ALLOWANCE-FOSTER CARERS-OTH AGENCY PROVISION,Revenue,03/08/2015,373.76,Childrens
WC59 - 0673,REDACTED,Transfer Payments,Transfer Payments,76422-DIRECT PAYMENTS TO SOCIAL SERVICES CLIENTS,Revenue,07/08/2015,287.70,Childrens
WC59 - 0674,CAMBIAN CHILDCARE LIMITED,Third Party Payments,Private Contractor Fees,74037-INDEPENDENT FOSTER CARE-OTH AGENCY PROVISION,Revenue,17/08/2015,"3,003.00",Childrens
WC59 - 0675,CAMBIAN CHILDCARE LIMITED,Third Party Payments,Private Contractor Fees,74037-INDEPENDENT FOSTER CARE-OTH AGENCY PROVISION,Revenue,17/08/2015,"3,081.90",Childrens
WC59 - 0676,CAMBIAN CHILDCARE LIMITED,Third Party Payments,Private Contractor Fees,74037-INDEPENDENT FOSTER CARE-OTH AGENCY PROVISION,Revenue,17/08/2015,"3,253.20",Childrens
WC59 - 0677,CAMBIAN LEARNING DISABILITES MIDLANDS LIMITED,Third Party Payments,Private Contractor Fees,73375-IN PATIENT BEDS,Revenue,14/08/2015,"10,908.90",Social Care & Inclusion
WC59 - 0678,CAMBRIDGESHIRE COMMUNITY SERVICES,Supplies & Services,Services,63000-PROFESSIONAL FEES AND SERVICES,Revenue,27/08/2015,261.15,Economy & Environment
WC59 - 0679,CAMERA ONE LIMITED,Third Party Payments,Private Contractor Fees,73025-PROFESSIONAL SERVICES-PRIV CONTRACTOR & OTHER AGENCIES,Revenue,10/08/2015,495.00,Economy & Environment
WC59 - 0680,CAMERA ONE LIMITED,Third Party Payments,Private Contractor Fees,73025-PROFESSIONAL SERVICES-PRIV CONTRACTOR & OTHER AGENCIES,Revenue,04/08/2015,"1,475.00",Economy & Environment
WC59 - 0681,CAPITA BUSINESS SERVICES LTD 001,Supplies & Services,Communications & Computing,63800-COMPUTER EQUIPMENT AND SUPPLIES,Revenue,11/08/2015,"2,090.00",Resources
WC59 - 0682,CAPITA CHILDREN'S SERVICES,Supplies & Services,Subscriptions,64500-PUBLICATIONS/ORGANISATIONS-SUBSCRIPTIONS,Revenue,11/08/2015,"3,000.00",Childrens
WC59 - 0683,CARE 2 U LIMITED,Third Party Payments,Private Contractor Fees,73372-DOMICILIARY CARE,Revenue,19/08/2015,778.68,Social Care & Inclusion
WC59 - 0684,CARE 2 U LIMITED,Third Party Payments,Private Contractor Fees,73372-DOMICILIARY CARE,Revenue,19/08/2015,778.68,Social Care & Inclusion
WC59 - 0685,CARE 2 U LIMITED,Third Party Payments,Private Contractor Fees,73372-DOMICILIARY CARE,Revenue,19/08/2015,"42,368.60",Social Care & Inclusion
WC59 - 0686,CARE AVENUES LTD,Third Party Payments,Private Contractor Fees,73372-DOMICILIARY CARE,Revenue,05/08/2015,805.00,Social Care & Inclusion
WC59 - 0687,CARE AVENUES LTD,Third Party Payments,Private Contractor Fees,73372-DOMICILIARY CARE,Revenue,19/08/2015,"13,541.25",Social Care & Inclusion
WC59 - 0688,CARE FIRST MANAGEMENT SERVICES LTD,Third Party Payments,Private Contractor Fees,73372-DOMICILIARY CARE,Revenue,05/08/2015,780.00,Social Care & Inclusion
WC59 - 0689,CARE FIRST MANAGEMENT SERVICES LTD,Third Party Payments,Private Contractor Fees,73372-DOMICILIARY CARE,Revenue,26/08/2015,780.00,Social Care & Inclusion
WC59 - 0690,CARE LEAVERS,Supplies & Services,Other Supplies & Services,64002-OTHER EXPENSES-EXPENSES,Revenue,06/08/2015,"1,112.46",Childrens
WC59 - 0691,CARE LEAVERS,Third Party Payments,Private Contractor Fees,74500-CARE LEAVERS MTCE PAYMENTS,Revenue,06/08/2015,"1,802.50",Childrens
WC59 - 0692,CARE LEAVERS,Transfer Payments,Transfer Payments,76400-RESIDENTS PERSONAL EXPENSES-ALLOWANCES TO S/S CLIENTS,Revenue,06/08/2015,"2,656.29",Childrens
WC59 - 0693,CARE LEAVERS,Transfer Payments,Transfer Payments,76010-ACCOMMODATION AND RELATED COSTS-ASSISTANCE TO S/S CLIENTS,Revenue,06/08/2015,"5,552.54",Childrens
WC59 - 0694,CARE SHOP,Supplies & Services,"Equip,Furniture & Materials",61502-PROTECTIVE CLOTHING & UNIFORM,Revenue,10/08/2015,375.90,Social Care & Inclusion
WC59 - 0695,CARE SHOP,Supplies & Services,"Equip,Furniture & Materials",60539-CLEANING MATERIALS,Revenue,21/08/2015,614.38,Social Care & Inclusion
WC59 - 0696,CARE SHOP,Supplies & Services,"Equip,Furniture & Materials",60539-CLEANING MATERIALS,Revenue,12/08/2015,865.47,Social Care & Inclusion
WC59 - 0697,CARE TODAY CHILDRENS SERVICES,Third Party Payments,Private Contractor Fees,74036-EXTERNAL RESIDENTIAL CARE-OTH AGENCY PROVISION,Revenue,07/08/2015,"2,594.97",Childrens
WC59 - 0698,CARE TODAY CHILDRENS SERVICES,Third Party Payments,Private Contractor Fees,74036-EXTERNAL RESIDENTIAL CARE-OTH AGENCY PROVISION,Revenue,26/08/2015,"7,784.91",Childrens
WC59 - 0699,CARE TODAY CHILDRENS SERVICES,Third Party Payments,Private Contractor Fees,74036-EXTERNAL RESIDENTIAL CARE-OTH AGENCY PROVISION,Revenue,07/08/2015,"8,639.49",Childrens
WC59 - 0700,CARE TODAY CHILDRENS SERVICES,Third Party Payments,Private Contractor Fees,74036-EXTERNAL RESIDENTIAL CARE-OTH AGENCY PROVISION,Revenue,07/08/2015,"11,121.30",Childrens
WC59 - 0701,CARE TODAY CHILDRENS SERVICES,Third Party Payments,Private Contractor Fees,74036-EXTERNAL RESIDENTIAL CARE-OTH AGENCY PROVISION,Revenue,07/08/2015,"11,492.01",Childrens
WC59 - 0702,CARE TODAY CHILDRENS SERVICES,Third Party Payments,Private Contractor Fees,74036-EXTERNAL RESIDENTIAL CARE-OTH AGENCY PROVISION,Revenue,19/08/2015,"11,492.01",Childrens
WC59 - 0703,CARE TODAY CHILDRENS SERVICES,Third Party Payments,Private Contractor Fees,74036-EXTERNAL RESIDENTIAL CARE-OTH AGENCY PROVISION,Revenue,07/08/2015,"13,641.30",Childrens
WC59 - 0704,CARE TODAY CHILDRENS SERVICES,Third Party Payments,Private Contractor Fees,74036-EXTERNAL RESIDENTIAL CARE-OTH AGENCY PROVISION,Revenue,07/08/2015,"13,641.30",Childrens
WC59 - 0705,CARE TODAY CHILDRENS SERVICES,Third Party Payments,Private Contractor Fees,74036-EXTERNAL RESIDENTIAL CARE-OTH AGENCY PROVISION,Revenue,07/08/2015,"14,096.01",Childrens
WC59 - 0706,CARE TODAY CHILDRENS SERVICES,Third Party Payments,Private Contractor Fees,74036-EXTERNAL RESIDENTIAL CARE-OTH AGENCY PROVISION,Revenue,19/08/2015,"14,096.01",Childrens
WC59 - 0707,CARE4HEALTH LTD.,Employees,Agency,34305-AGENCY STAFF-EMPLOYEES,Revenue,24/08/2015,"1,035.00",Social Care & Inclusion
WC59 - 0708,CARE4HEALTH LTD.,Third Party Payments,Private Contractor Fees,73019-PSE'S-PRIV CONTRACTOR FEES,Revenue,10/08/2015,"1,253.25",Social Care & Inclusion
WC59 - 0709,CAREFIRST SERVICES LIMITED,Transfer Payments,Transfer Payments,76010-ACCOMMODATION AND RELATED COSTS-ASSISTANCE TO S/S CLIENTS,Revenue,03/08/2015,857.10,Childrens
WC59 - 0710,CAREFIRST SERVICES LIMITED,Transfer Payments,Transfer Payments,76010-ACCOMMODATION AND RELATED COSTS-ASSISTANCE TO S/S CLIENTS,Revenue,03/08/2015,886.80,Childrens
WC59 - 0711,CAREFIRST SERVICES LIMITED,Transfer Payments,Transfer Payments,76010-ACCOMMODATION AND RELATED COSTS-ASSISTANCE TO S/S CLIENTS,Revenue,03/08/2015,"1,714.20",Childrens
WC59 - 0712,CAREFIRST SERVICES LIMITED,Transfer Payments,Transfer Payments,76010-ACCOMMODATION AND RELATED COSTS-ASSISTANCE TO S/S CLIENTS,Revenue,03/08/2015,"1,757.40",Childrens
WC59 - 0713,CAREFIRST SERVICES LIMITED,Transfer Payments,Transfer Payments,76010-ACCOMMODATION AND RELATED COSTS-ASSISTANCE TO S/S CLIENTS,Revenue,03/08/2015,"1,795.80",Childrens
WC59 - 0714,CAREFIRST SERVICES LIMITED,Transfer Payments,Transfer Payments,76010-ACCOMMODATION AND RELATED COSTS-ASSISTANCE TO S/S CLIENTS,Revenue,03/08/2015,"1,805.26",Childrens
WC59 - 0715,CAREFIRST SERVICES LIMITED,Transfer Payments,Transfer Payments,76010-ACCOMMODATION AND RELATED COSTS-ASSISTANCE TO S/S CLIENTS,Revenue,03/08/2015,"1,843.66",Childrens
WC59 - 0716,CAREFIRST SERVICES LIMITED,Transfer Payments,Transfer Payments,76010-ACCOMMODATION AND RELATED COSTS-ASSISTANCE TO S/S CLIENTS,Revenue,03/08/2015,"1,843.66",Childrens
WC59 - 0717,CAREFIRST SERVICES LIMITED,Transfer Payments,Transfer Payments,76010-ACCOMMODATION AND RELATED COSTS-ASSISTANCE TO S/S CLIENTS,Revenue,03/08/2015,"1,885.66",Childrens
WC59 - 0718,CAREFIRST SERVICES LIMITED,Transfer Payments,Transfer Payments,76010-ACCOMMODATION AND RELATED COSTS-ASSISTANCE TO S/S CLIENTS,Revenue,03/08/2015,"1,933.66",Childrens
WC59 - 0719,CAREFIRST SERVICES LIMITED,Transfer Payments,Transfer Payments,76010-ACCOMMODATION AND RELATED COSTS-ASSISTANCE TO S/S CLIENTS,Revenue,03/08/2015,"2,165.26",Childrens
WC59 - 0720,CAREFIRST SERVICES LIMITED,Transfer Payments,Transfer Payments,76010-ACCOMMODATION AND RELATED COSTS-ASSISTANCE TO S/S CLIENTS,Revenue,03/08/2015,"2,185.30",Childrens
WC59 - 0721,CAREFIRST SERVICES LIMITED,Transfer Payments,Transfer Payments,76010-ACCOMMODATION AND RELATED COSTS-ASSISTANCE TO S/S CLIENTS,Revenue,03/08/2015,"2,571.30",Childrens
WC59 - 0722,CAREFIRST SERVICES LIMITED,Transfer Payments,Transfer Payments,76010-ACCOMMODATION AND RELATED COSTS-ASSISTANCE TO S/S CLIENTS,Revenue,03/08/2015,"2,657.01",Childrens
WC59 - 0723,CAREFIRST SERVICES LIMITED,Transfer Payments,Transfer Payments,76010-ACCOMMODATION AND RELATED COSTS-ASSISTANCE TO S/S CLIENTS,Revenue,03/08/2015,"2,974.32",Childrens
WC59 - 0724,CAREVIEW SERVICES LTD,Third Party Payments,Private Contractor Fees,73373-RESIDENTIAL & NURSING CARE PLACEMENTS,Revenue,18/08/2015,"6,802.80",Social Care & Inclusion
WC59 - 0725,CARING CARE LIMITED,Third Party Payments,Private Contractor Fees,73372-DOMICILIARY CARE,Revenue,19/08/2015,"54,308.83",Social Care & Inclusion
WC59 - 0726,CARING HANDS LIMITED,Third Party Payments,Private Contractor Fees,73372-DOMICILIARY CARE,Revenue,19/08/2015,"53,772.56",Social Care & Inclusion
WC59 - 0727,REDACTED,Employees,Other Staff Costs,32000-MISC FEES AND EXPENSES,Revenue,05/08/2015,12.38,Social Care & Inclusion
WC59 - 0728,REDACTED,Third Party Payments,Private Contractor Fees,73374-SUPPORTED & OTHER ACCOMMODATION,Revenue,05/08/2015,555.74,Social Care & Inclusion
WC59 - 0729,REDACTED,Third Party Payments,Private Contractor Fees,73374-SUPPORTED & OTHER ACCOMMODATION,Revenue,05/08/2015,"4,912.20",Social Care & Inclusion
WC59 - 0730,REDACTED,Transfer Payments,Transfer Payments,76422-DIRECT PAYMENTS TO SOCIAL SERVICES CLIENTS,Revenue,07/08/2015,450.00,Social Care & Inclusion
WC59 - 0731,REDACTED,Third Party Payments,Private Contractor Fees,74006-HOLIDAY/CHRISTMAS ALLOWANCE-FOSTER CARERS-OTH AGENCY PROVISION,Revenue,17/08/2015,469.80,Childrens
WC59 - 0732,REDACTED,Supplies & Services,Other Supplies & Services,62515-MISCELLANEOUS SUPPLIES,Revenue,17/08/2015,540.20,Childrens
WC59 - 0733,REDACTED,Third Party Payments,Private Contractor Fees,74006-HOLIDAY/CHRISTMAS ALLOWANCE-FOSTER CARERS-OTH AGENCY PROVISION,Revenue,03/08/2015,365.60,Childrens
WC59 - 0734,CARTER SYNERGY LTD,Premises,Premises-Repairs & Maintenance,40011-SECURITY SYSTEM-OP MTCE,Revenue,01/08/2015,-610.04,Economy & Environment
WC59 - 0735,CARTER SYNERGY LTD,Premises,Premises-Repairs & Maintenance,40007-JOINERY-OP MTCE,Revenue,14/08/2015,333.44,Economy & Environment
WC59 - 0736,CARTER SYNERGY LTD,Premises,Premises-Repairs & Maintenance,40011-SECURITY SYSTEM-OP MTCE,Revenue,14/08/2015,355.30,Economy & Environment
WC59 - 0737,CARTER SYNERGY LTD,Premises,Premises-Repairs & Maintenance,"40000-REPAIRS,ALTERATIONS & MAINTENANCE-PREM",Revenue,17/08/2015,874.50,Economy & Environment
WC59 - 0738,CARTER SYNERGY LTD,Capital,Capital,01044-PURCHASE OF FURNITURE & EQUIPMENT,Capital,05/08/2015,"5,295.00",Economy & Environment
WC59 - 0739,CARTER SYNERGY LTD,Premises,Premises-Repairs & Maintenance,40216-OTHER-PLAN MTCE,Revenue,05/08/2015,"9,939.41",Economy & Environment
WC59 - 0740,CARTER SYNERGY LTD,Capital,Capital,01044-PURCHASE OF FURNITURE & EQUIPMENT,Capital,01/08/2015,"24,699.29",Economy & Environment
WC59 - 0741,REDACTED,Transfer Payments,Transfer Payments,76422-DIRECT PAYMENTS TO SOCIAL SERVICES CLIENTS,Revenue,07/08/2015,622.68,Social Care & Inclusion
WC59 - 0742,REDACTED,Transfer Payments,Transfer Payments,76422-DIRECT PAYMENTS TO SOCIAL SERVICES CLIENTS,Revenue,07/08/2015,690.48,Social Care & Inclusion
WC59 - 0743,REDACTED,Third Party Payments,Private Contractor Fees,74006-HOLIDAY/CHRISTMAS ALLOWANCE-FOSTER CARERS-OTH AGENCY PROVISION,Revenue,03/08/2015,425.08,Childrens
WC59 - 0744,REDACTED,Transfer Payments,Transfer Payments,76422-DIRECT PAYMENTS TO SOCIAL SERVICES CLIENTS,Revenue,07/08/2015,388.40,Social Care & Inclusion
WC59 - 0745,REDACTED,Transfer Payments,Transfer Payments,76422-DIRECT PAYMENTS TO SOCIAL SERVICES CLIENTS,Revenue,07/08/2015,"1,014.26",Childrens
WC59 - 0746,REDACTED,Third Party Payments,Private Contractor Fees,74006-HOLIDAY/CHRISTMAS ALLOWANCE-FOSTER CARERS-OTH AGENCY PROVISION,Revenue,03/08/2015,425.08,Childrens
WC59 - 0747,CE RISK SAFETY AND SECURITY LTD,Third Party Payments,Private Contractor Fees,73002-SECURITY-PRIV CONTRACTOR FEES,Revenue,01/08/2015,"5,050.80",Resources
WC59 - 0748,CERTAS ENERGY UK LIMITED,Transport,Other Transport,50301-FUEL-TRANSPORT RUN COSTS,Revenue,05/08/2015,438.00,Economy & Environment
WC59 - 0749,CERTAS ENERGY UK LIMITED,Transport,Other Transport,50301-FUEL-TRANSPORT RUN COSTS,Revenue,26/08/2015,614.70,Economy & Environment
WC59 - 0750,CERTAS ENERGY UK LIMITED,Transport,Other Transport,50301-FUEL-TRANSPORT RUN COSTS,Revenue,21/08/2015,647.70,Economy & Environment
WC59 - 0751,CERTAS ENERGY UK LIMITED,Transport,Other Transport,50301-FUEL-TRANSPORT RUN COSTS,Revenue,26/08/2015,"1,220.40",Economy & Environment
WC59 - 0752,CERTAS ENERGY UK LIMITED,Transport,Other Transport,50301-FUEL-TRANSPORT RUN COSTS,Revenue,05/08/2015,"2,170.00",Economy & Environment
WC59 - 0753,CERTAS ENERGY UK LIMITED,Transport,Other Transport,50301-FUEL-TRANSPORT RUN COSTS,Revenue,26/08/2015,"16,621.82",Economy & Environment
WC59 - 0754,CERTAS ENERGY UK LIMITED,Transport,Other Transport,50301-FUEL-TRANSPORT RUN COSTS,Revenue,21/08/2015,"17,550.00",Economy & Environment
WC59 - 0755,CERTAS ENERGY UK LIMITED,Transport,Other Transport,50301-FUEL-TRANSPORT RUN COSTS,Revenue,19/08/2015,"17,759.78",Economy & Environment
WC59 - 0756,CERTAS ENERGY UK LIMITED,Transport,Other Transport,50301-FUEL-TRANSPORT RUN COSTS,Revenue,05/08/2015,"17,880.52",Economy & Environment
WC59 - 0757,CERTERO LTD,Supplies & Services,Communications & Computing,63820-RECHARGE FOR MAINTENANCE/APPLICATION COSTS-COMPUTER,Revenue,17/08/2015,"1,692.72",Resources
WC59 - 0758,CEXC LIMITED,Supplies & Services,Communications & Computing,63800-COMPUTER EQUIPMENT AND SUPPLIES,Revenue,13/08/2015,490.00,Resources
WC59 - 0759,CEXC LIMITED,Supplies & Services,Communications & Computing,63800-COMPUTER EQUIPMENT AND SUPPLIES,Revenue,14/08/2015,550.92,Resources
WC59 - 0760,CEXC LIMITED,Supplies & Services,Communications & Computing,63800-COMPUTER EQUIPMENT AND SUPPLIES,Revenue,14/08/2015,758.37,Resources
WC59 - 0761,CEXC LIMITED,Supplies & Services,Communications & Computing,63800-COMPUTER EQUIPMENT AND SUPPLIES,Revenue,14/08/2015,"14,000.00",Resources
WC59 - 0762,CF ASSET FINANCE LIMITED,Supplies & Services,"Equip,Furniture & Materials",60009-LEASING/HIRE/RENTAL-EQUIPMENT,Revenue,17/08/2015,272.86,Resources
WC59 - 0763,CF ASSET FINANCE LIMITED,Supplies & Services,"Equip,Furniture & Materials",60500-GENERAL MATERIALS,Revenue,26/08/2015,330.80,Social Care & Inclusion
WC59 - 0764,CF CORPORATE FINANCE LTD,Supplies & Services,"Equip,Furniture & Materials",60009-LEASING/HIRE/RENTAL-EQUIPMENT,Revenue,07/08/2015,"1,290.34",Childrens
WC59 - 0765,CHANDOS LODGE CARE HOME,Third Party Payments,Private Contractor Fees,73373-RESIDENTIAL & NURSING CARE PLACEMENTS,Revenue,04/08/2015,"1,632.00",Social Care & Inclusion
WC59 - 0766,CHANDOS LODGE CARE HOME,Third Party Payments,Private Contractor Fees,73373-RESIDENTIAL & NURSING CARE PLACEMENTS,Revenue,04/08/2015,"1,632.00",Social Care & Inclusion
WC59 - 0767,REDACTED,Transfer Payments,Transfer Payments,76422-DIRECT PAYMENTS TO SOCIAL SERVICES CLIENTS,Revenue,07/08/2015,748.00,Social Care & Inclusion
WC59 - 0768,REDACTED,Third Party Payments,Private Contractor Fees,74006-HOLIDAY/CHRISTMAS ALLOWANCE-FOSTER CARERS-OTH AGENCY PROVISION,Revenue,03/08/2015,"1,055.92",Childrens
WC59 - 0769,CHARLES CODDY WALKER ACADEMY,Third Party Payments,Grants to Other Orgs,66502-TOP UP FUNDING -GRANTS TO SCHOOLS,Revenue,05/08/2015,"2,284.59",Childrens
WC59 - 0770,REDACTED,Transfer Payments,Transfer Payments,76422-DIRECT PAYMENTS TO SOCIAL SERVICES CLIENTS,Revenue,07/08/2015,258.96,Childrens
WC59 - 0771,CHARMEND LTD,Third Party Payments,Private Contractor Fees,73373-RESIDENTIAL & NURSING CARE PLACEMENTS,Revenue,04/08/2015,"1,868.36",Social Care & Inclusion
WC59 - 0772,CHARMEND LTD,Third Party Payments,Private Contractor Fees,73019-PSE'S-PRIV CONTRACTOR FEES,Revenue,14/08/2015,"26,571.43",Social Care & Inclusion
WC59 - 0773,CHARTER CARE,Third Party Payments,Private Contractor Fees,73372-DOMICILIARY CARE,Revenue,19/08/2015,"38,579.27",Social Care & Inclusion
WC59 - 0774,CHASE HOME IMPROVEMENTS,Capital,Capital,01045-PRIVATE GRANTS,Capital,24/08/2015,"8,740.00",Resources
WC59 - 0775,CHASE HOUSE AND PARTNER,Third Party Payments,Private Contractor Fees,73373-RESIDENTIAL & NURSING CARE PLACEMENTS,Revenue,18/08/2015,"4,545.68",Social Care & Inclusion
WC59 - 0776,CHASE HOUSE AND PARTNER,Third Party Payments,Private Contractor Fees,73373-RESIDENTIAL & NURSING CARE PLACEMENTS,Revenue,18/08/2015,"4,555.68",Social Care & Inclusion
WC59 - 0777,CHASE HOUSE AND PARTNER,Third Party Payments,Private Contractor Fees,73373-RESIDENTIAL & NURSING CARE PLACEMENTS,Revenue,18/08/2015,"4,665.12",Social Care & Inclusion
WC59 - 0778,CHASE HOUSE AND PARTNER,Third Party Payments,Private Contractor Fees,73373-RESIDENTIAL & NURSING CARE PLACEMENTS,Revenue,18/08/2015,"4,860.72",Social Care & Inclusion
WC59 - 0779,CHELSEA AND WESTMINSTER HOSPITAL,Supplies & Services,Services,63000-PROFESSIONAL FEES AND SERVICES,Revenue,10/08/2015,274.02,Economy & Environment
WC59 - 0780,CHELSEA AND WESTMINSTER HOSPITAL,Supplies & Services,Services,63000-PROFESSIONAL FEES AND SERVICES,Revenue,13/08/2015,274.02,Economy & Environment
WC59 - 0781,CHELSEA AND WESTMINSTER HOSPITAL,Supplies & Services,Services,63000-PROFESSIONAL FEES AND SERVICES,Revenue,13/08/2015,339.02,Economy & Environment
WC59 - 0782,CHERISH HOME CARE,Third Party Payments,Private Contractor Fees,73372-DOMICILIARY CARE,Revenue,03/08/2015,297.08,Social Care & Inclusion
WC59 - 0783,CHERISH HOME CARE,Third Party Payments,Private Contractor Fees,73372-DOMICILIARY CARE,Revenue,07/08/2015,297.08,Social Care & Inclusion
WC59 - 0784,CHERISH HOME CARE,Third Party Payments,Private Contractor Fees,73372-DOMICILIARY CARE,Revenue,14/08/2015,318.60,Social Care & Inclusion
WC59 - 0785,CHERISH HOME CARE,Third Party Payments,Private Contractor Fees,73372-DOMICILIARY CARE,Revenue,03/08/2015,322.00,Social Care & Inclusion
WC59 - 0786,CHERISH HOME CARE,Third Party Payments,Private Contractor Fees,73372-DOMICILIARY CARE,Revenue,07/08/2015,327.81,Social Care & Inclusion
WC59 - 0787,CHERISH HOME CARE,Third Party Payments,Private Contractor Fees,73372-DOMICILIARY CARE,Revenue,03/08/2015,339.84,Social Care & Inclusion
WC59 - 0788,CHERISH HOME CARE,Third Party Payments,Private Contractor Fees,73372-DOMICILIARY CARE,Revenue,07/08/2015,498.79,Social Care & Inclusion
WC59 - 0789,CHERISH HOME CARE,Third Party Payments,Private Contractor Fees,73372-DOMICILIARY CARE,Revenue,03/08/2015,594.72,Social Care & Inclusion
WC59 - 0790,CHERISH HOME CARE,Third Party Payments,Private Contractor Fees,73372-DOMICILIARY CARE,Revenue,07/08/2015,594.72,Social Care & Inclusion
WC59 - 0791,CHERISH HOME CARE,Third Party Payments,Private Contractor Fees,73372-DOMICILIARY CARE,Revenue,03/08/2015,615.52,Social Care & Inclusion
WC59 - 0792,CHERISH HOME CARE,Third Party Payments,Private Contractor Fees,73372-DOMICILIARY CARE,Revenue,03/08/2015,644.00,Social Care & Inclusion
WC59 - 0793,CHERISH HOME CARE,Third Party Payments,Private Contractor Fees,73372-DOMICILIARY CARE,Revenue,07/08/2015,644.00,Social Care & Inclusion
WC59 - 0794,CHERISH HOME CARE,Third Party Payments,Private Contractor Fees,73372-DOMICILIARY CARE,Revenue,03/08/2015,732.50,Social Care & Inclusion
WC59 - 0795,CHERISH HOME CARE,Third Party Payments,Private Contractor Fees,73372-DOMICILIARY CARE,Revenue,03/08/2015,735.16,Social Care & Inclusion
WC59 - 0796,CHERISH HOME CARE,Third Party Payments,Private Contractor Fees,73372-DOMICILIARY CARE,Revenue,07/08/2015,737.81,Social Care & Inclusion
WC59 - 0797,CHERISH HOME CARE,Third Party Payments,Private Contractor Fees,73372-DOMICILIARY CARE,Revenue,07/08/2015,743.12,Social Care & Inclusion
WC59 - 0798,REDACTED,Transfer Payments,Transfer Payments,76422-DIRECT PAYMENTS TO SOCIAL SERVICES CLIENTS,Revenue,07/08/2015,450.00,Social Care & Inclusion
WC59 - 0799,REDACTED,Transfer Payments,Transfer Payments,76422-DIRECT PAYMENTS TO SOCIAL SERVICES CLIENTS,Revenue,07/08/2015,"1,601.60",Social Care & Inclusion
WC59 - 0800,CHILDCARE BUREAU LTD,Third Party Payments,Private Contractor Fees,74037-INDEPENDENT FOSTER CARE-OTH AGENCY PROVISION,Revenue,26/08/2015,"3,731.00",Childrens
WC59 - 0801,CHILDCARE BUREAU LTD,Third Party Payments,Private Contractor Fees,74037-INDEPENDENT FOSTER CARE-OTH AGENCY PROVISION,Revenue,26/08/2015,"3,733.52",Childrens
WC59 - 0802,CHILDCARE BUREAU LTD,Third Party Payments,Private Contractor Fees,74037-INDEPENDENT FOSTER CARE-OTH AGENCY PROVISION,Revenue,26/08/2015,"6,939.80",Childrens
WC59 - 0803,CHILDLINK,Supplies & Services,Other Supplies & Services,63128-HIRE OF ROOM-SERVICES-FEES,Revenue,24/08/2015,16.00,Childrens
WC59 - 0804,CHILDLINK,Transport,Car Allowances,53001-OTHER/VOLUNTEERS-CAR ALLOWANCES,Revenue,11/08/2015,25.60,Childrens
WC59 - 0805,CHILDLINK,Transport,Car Allowances,53001-OTHER/VOLUNTEERS-CAR ALLOWANCES,Revenue,19/08/2015,29.20,Childrens
WC59 - 0806,CHILDLINK,Transport,Car Allowances,53001-OTHER/VOLUNTEERS-CAR ALLOWANCES,Revenue,07/08/2015,31.20,Childrens
WC59 - 0807,CHILDLINK,Supplies & Services,Other Supplies & Services,63128-HIRE OF ROOM-SERVICES-FEES,Revenue,12/08/2015,40.00,Childrens
WC59 - 0808,CHILDLINK,Supplies & Services,Other Supplies & Services,63128-HIRE OF ROOM-SERVICES-FEES,Revenue,12/08/2015,40.00,Childrens
WC59 - 0809,CHILDLINK,Supplies & Services,Other Supplies & Services,63128-HIRE OF ROOM-SERVICES-FEES,Revenue,19/08/2015,40.00,Childrens
WC59 - 0810,CHILDLINK,Transport,Car Allowances,53001-OTHER/VOLUNTEERS-CAR ALLOWANCES,Revenue,12/08/2015,44.40,Childrens
WC59 - 0811,CHILDLINK,Transport,Car Allowances,53001-OTHER/VOLUNTEERS-CAR ALLOWANCES,Revenue,12/08/2015,44.40,Childrens
WC59 - 0812,CHILDLINK,Transport,Car Allowances,53003-OTHER-TRAVEL ALLOWANCES,Revenue,07/08/2015,52.00,Childrens
WC59 - 0813,CHILDLINK,Transport,Car Allowances,53003-OTHER-TRAVEL ALLOWANCES,Revenue,11/08/2015,52.00,Childrens
WC59 - 0814,CHILDLINK,Transport,Car Allowances,53003-OTHER-TRAVEL ALLOWANCES,Revenue,12/08/2015,52.00,Childrens
WC59 - 0815,CHILDLINK,Transport,Car Allowances,53003-OTHER-TRAVEL ALLOWANCES,Revenue,12/08/2015,52.00,Childrens
WC59 - 0816,CHILDLINK,Transport,Car Allowances,53003-OTHER-TRAVEL ALLOWANCES,Revenue,19/08/2015,52.00,Childrens
WC59 - 0817,CHILDLINK,Third Party Payments,Private Contractor Fees,76003-SECTION 34 (CONTACT),Revenue,12/08/2015,156.00,Childrens
WC59 - 0818,CHILDLINK,Third Party Payments,Private Contractor Fees,76003-SECTION 34 (CONTACT),Revenue,12/08/2015,156.00,Childrens
WC59 - 0819,CHILDLINK,Third Party Payments,Private Contractor Fees,76003-SECTION 34 (CONTACT),Revenue,07/08/2015,260.00,Childrens
WC59 - 0820,CHILDLINK,Third Party Payments,Private Contractor Fees,76003-SECTION 34 (CONTACT),Revenue,11/08/2015,260.00,Childrens
WC59 - 0821,CHILDLINK,Third Party Payments,Private Contractor Fees,76003-SECTION 34 (CONTACT),Revenue,19/08/2015,260.00,Childrens
WC59 - 0822,CHILDLINK,Third Party Payments,Private Contractor Fees,76003-SECTION 34 (CONTACT),Revenue,12/08/2015,312.00,Childrens
WC59 - 0823,CHILDLINK,Third Party Payments,Private Contractor Fees,76003-SECTION 34 (CONTACT),Revenue,12/08/2015,312.00,Childrens
WC59 - 0824,CHILDLINK,Third Party Payments,Private Contractor Fees,76003-SECTION 34 (CONTACT),Revenue,19/08/2015,312.00,Childrens
WC59 - 0825,CHILDLINK,Third Party Payments,Private Contractor Fees,76003-SECTION 34 (CONTACT),Revenue,24/08/2015,312.00,Childrens
WC59 - 0826,CHOICECARE 2000 LIMITED,Third Party Payments,Private Contractor Fees,73373-RESIDENTIAL & NURSING CARE PLACEMENTS,Revenue,25/08/2015,"4,156.44",Social Care & Inclusion
WC59 - 0827,REDACTED,Transfer Payments,Transfer Payments,76422-DIRECT PAYMENTS TO SOCIAL SERVICES CLIENTS,Revenue,07/08/2015,"1,489.62",Social Care & Inclusion
WC59 - 0828,REDACTED,Transfer Payments,Transfer Payments,76422-DIRECT PAYMENTS TO SOCIAL SERVICES CLIENTS,Revenue,07/08/2015,489.60,Social Care & Inclusion
WC59 - 0829,REDACTED,Third Party Payments,Private Contractor Fees,74006-HOLIDAY/CHRISTMAS ALLOWANCE-FOSTER CARERS-OTH AGENCY PROVISION,Revenue,03/08/2015,256.36,Childrens
WC59 - 0830,REDACTED,Transfer Payments,Transfer Payments,76422-DIRECT PAYMENTS TO SOCIAL SERVICES CLIENTS,Revenue,07/08/2015,"1,125.97",Social Care & Inclusion
WC59 - 0831,REDACTED,Third Party Payments,Private Contractor Fees,74006-HOLIDAY/CHRISTMAS ALLOWANCE-FOSTER CARERS-OTH AGENCY PROVISION,Revenue,03/08/2015,746.96,Childrens
WC59 - 0832,REDACTED,Transfer Payments,Transfer Payments,76422-DIRECT PAYMENTS TO SOCIAL SERVICES CLIENTS,Revenue,07/08/2015,276.00,Social Care & Inclusion
WC59 - 0833,REDACTED,Transfer Payments,Transfer Payments,76422-DIRECT PAYMENTS TO SOCIAL SERVICES CLIENTS,Revenue,07/08/2015,822.16,Social Care & Inclusion
WC59 - 0834,REDACTED,Transfer Payments,Transfer Payments,76422-DIRECT PAYMENTS TO SOCIAL SERVICES CLIENTS,Revenue,07/08/2015,588.00,Social Care & Inclusion
WC59 - 0835,CHUBB FIRE & SECURITY LTD,Third Party Payments,Private Contractor Fees,73002-SECURITY-PRIV CONTRACTOR FEES,Revenue,05/08/2015,809.32,Resources
WC59 - 0836,CIEH,Employees,Training,30030-EXTERNAL TRAINING,Revenue,05/08/2015,"1,180.25",Social Care & Inclusion
WC59 - 0837,REDACTED,Third Party Payments,Private Contractor Fees,73374-SUPPORTED & OTHER ACCOMMODATION,Revenue,17/08/2015,727.26,Social Care & Inclusion
WC59 - 0838,REDACTED,Third Party Payments,Private Contractor Fees,73374-SUPPORTED & OTHER ACCOMMODATION,Revenue,05/08/2015,"1,452.12",Social Care & Inclusion
WC59 - 0839,CIPFA 001,Employees,Training,30030-EXTERNAL TRAINING,Revenue,12/08/2015,500.00,Resources
WC59 - 0840,CITY & GUILDS,Supplies & Services,Other Supplies & Services,63013-EXAMINATIONS-SERVICES,Revenue,17/08/2015,150.00,Resources
WC59 - 0841,CITY & GUILDS,Supplies & Services,Other Supplies & Services,63013-EXAMINATIONS-SERVICES,Revenue,26/08/2015,345.00,Resources
WC59 - 0842,CITY & GUILDS,Supplies & Services,Other Supplies & Services,63013-EXAMINATIONS-SERVICES,Revenue,17/08/2015,550.50,Resources
WC59 - 0843,CITY & GUILDS,Supplies & Services,Other Supplies & Services,63013-EXAMINATIONS-SERVICES,Revenue,12/08/2015,884.00,Resources
WC59 - 0844,CITY & GUILDS,Supplies & Services,Communications & Computing,63806-APPLICATIONS-COMPUTER,Revenue,17/08/2015,"2,700.00",Resources
WC59 - 0845,CITY OF STOKE ON TRENT #2,Supplies & Services,Provisions,61305-CATERING,Revenue,01/08/2015,333.33,Economy & Environment
WC59 - 0846,CIVICARE MIDLANDS LTD,Third Party Payments,Private Contractor Fees,73374-SUPPORTED & OTHER ACCOMMODATION,Revenue,21/08/2015,443.52,Social Care & Inclusion
WC59 - 0847,CIVICARE MIDLANDS LTD,Third Party Payments,Private Contractor Fees,73374-SUPPORTED & OTHER ACCOMMODATION,Revenue,21/08/2015,443.52,Social Care & Inclusion
WC59 - 0848,CIVICARE MIDLANDS LTD,Third Party Payments,Private Contractor Fees,73374-SUPPORTED & OTHER ACCOMMODATION,Revenue,21/08/2015,443.52,Social Care & Inclusion
WC59 - 0849,CIVICARE MIDLANDS LTD,Third Party Payments,Private Contractor Fees,73374-SUPPORTED & OTHER ACCOMMODATION,Revenue,21/08/2015,443.52,Social Care & Inclusion
WC59 - 0850,CIVICARE MIDLANDS LTD,Third Party Payments,Private Contractor Fees,73372-DOMICILIARY CARE,Revenue,19/08/2015,"34,343.60",Social Care & Inclusion
WC59 - 0851,REDACTED,Transfer Payments,Transfer Payments,76422-DIRECT PAYMENTS TO SOCIAL SERVICES CLIENTS,Revenue,07/08/2015,"1,088.00",Social Care & Inclusion
WC59 - 0852,REDACTED,Transfer Payments,Transfer Payments,76422-DIRECT PAYMENTS TO SOCIAL SERVICES CLIENTS,Revenue,07/08/2015,"1,535.08",Social Care & Inclusion
WC59 - 0853,REDACTED,Transfer Payments,Transfer Payments,76422-DIRECT PAYMENTS TO SOCIAL SERVICES CLIENTS,Revenue,07/08/2015,504.90,Social Care & Inclusion
WC59 - 0854,REDACTED,Third Party Payments,Private Contractor Fees,74006-HOLIDAY/CHRISTMAS ALLOWANCE-FOSTER CARERS-OTH AGENCY PROVISION,Revenue,03/08/2015,474.64,Childrens
WC59 - 0855,CLIFFORD HOUSE FOSTERING LTD,Third Party Payments,Private Contractor Fees,74037-INDEPENDENT FOSTER CARE-OTH AGENCY PROVISION,Revenue,14/08/2015,"2,522.80",Childrens
WC59 - 0856,CLIFFORD HOUSE FOSTERING LTD,Third Party Payments,Private Contractor Fees,74037-INDEPENDENT FOSTER CARE-OTH AGENCY PROVISION,Revenue,14/08/2015,"2,949.56",Childrens
WC59 - 0857,CLIFFORD HOUSE FOSTERING LTD,Third Party Payments,Private Contractor Fees,74037-INDEPENDENT FOSTER CARE-OTH AGENCY PROVISION,Revenue,14/08/2015,"3,006.00",Childrens
WC59 - 0858,CLOSE CIRCUIT SECURITY SERVICES LTD,Capital,Capital,01045-PRIVATE GRANTS,Capital,10/08/2015,"3,067.14",Resources
WC59 - 0859,COIN A DRINK LTD,Supplies & Services,Provisions,61305-CATERING,Revenue,12/08/2015,345.00,Resources
WC59 - 0860,REDACTED,Third Party Payments,Private Contractor Fees,74006-HOLIDAY/CHRISTMAS ALLOWANCE-FOSTER CARERS-OTH AGENCY PROVISION,Revenue,03/08/2015,"2,763.08",Childrens
WC59 - 0861,COMMERCIAL & DOMESTIC,Premises,Premises-Repairs & Maintenance,40705-TESTING-ELEC SERVICES,Revenue,07/08/2015,1.00,Resources
WC59 - 0862,COMMERCIAL & DOMESTIC,Premises,Premises-Repairs & Maintenance,40705-TESTING-ELEC SERVICES,Revenue,07/08/2015,1.00,Resources
WC59 - 0863,COMMERCIAL & DOMESTIC,Premises,Premises-Repairs & Maintenance,40705-TESTING-ELEC SERVICES,Revenue,07/08/2015,1.00,Resources
WC59 - 0864,COMMERCIAL & DOMESTIC,Premises,Premises-Repairs & Maintenance,40705-TESTING-ELEC SERVICES,Revenue,07/08/2015,1.00,Resources
WC59 - 0865,COMMERCIAL & DOMESTIC,Premises,Premises-Repairs & Maintenance,40705-TESTING-ELEC SERVICES,Revenue,07/08/2015,1.00,Resources
WC59 - 0866,COMMERCIAL & DOMESTIC,Premises,Premises-Repairs & Maintenance,40705-TESTING-ELEC SERVICES,Revenue,07/08/2015,1.00,Resources
WC59 - 0867,COMMERCIAL & DOMESTIC,Premises,Premises-Repairs & Maintenance,40705-TESTING-ELEC SERVICES,Revenue,07/08/2015,1.00,Resources
WC59 - 0868,COMMERCIAL & DOMESTIC,Premises,Premises-Repairs & Maintenance,40705-TESTING-ELEC SERVICES,Revenue,07/08/2015,1.00,Resources
WC59 - 0869,COMMERCIAL & DOMESTIC,Premises,Premises-Repairs & Maintenance,40705-TESTING-ELEC SERVICES,Revenue,07/08/2015,1.00,Resources
WC59 - 0870,COMMERCIAL & DOMESTIC,Premises,Premises-Repairs & Maintenance,40705-TESTING-ELEC SERVICES,Revenue,07/08/2015,1.00,Resources
WC59 - 0871,COMMERCIAL & DOMESTIC,Premises,Premises-Repairs & Maintenance,40705-TESTING-ELEC SERVICES,Revenue,07/08/2015,1.00,Resources
WC59 - 0872,COMMERCIAL & DOMESTIC,Premises,Premises-Repairs & Maintenance,40705-TESTING-ELEC SERVICES,Revenue,10/08/2015,1.00,Resources
WC59 - 0873,COMMERCIAL & DOMESTIC,Premises,Premises-Repairs & Maintenance,40705-TESTING-ELEC SERVICES,Revenue,10/08/2015,1.00,Resources
WC59 - 0874,COMMERCIAL & DOMESTIC,Premises,Premises-Repairs & Maintenance,40705-TESTING-ELEC SERVICES,Revenue,10/08/2015,1.00,Resources
WC59 - 0875,COMMERCIAL & DOMESTIC,Premises,Premises-Repairs & Maintenance,40705-TESTING-ELEC SERVICES,Revenue,10/08/2015,1.00,Resources
WC59 - 0876,COMMERCIAL & DOMESTIC,Premises,Premises-Repairs & Maintenance,40705-TESTING-ELEC SERVICES,Revenue,10/08/2015,1.00,Resources
WC59 - 0877,COMMERCIAL & DOMESTIC,Premises,Premises-Repairs & Maintenance,40705-TESTING-ELEC SERVICES,Revenue,10/08/2015,1.00,Resources
WC59 - 0878,COMMERCIAL & DOMESTIC,Premises,Premises-Repairs & Maintenance,40705-TESTING-ELEC SERVICES,Revenue,10/08/2015,1.00,Resources
WC59 - 0879,COMMERCIAL & DOMESTIC,Premises,Premises-Repairs & Maintenance,40705-TESTING-ELEC SERVICES,Revenue,10/08/2015,1.00,Resources
WC59 - 0880,COMMERCIAL & DOMESTIC,Premises,Premises-Repairs & Maintenance,40705-TESTING-ELEC SERVICES,Revenue,10/08/2015,1.00,Resources
WC59 - 0881,COMMERCIAL & DOMESTIC,Premises,Premises-Repairs & Maintenance,40705-TESTING-ELEC SERVICES,Revenue,10/08/2015,1.00,Resources
WC59 - 0882,COMMERCIAL & DOMESTIC,Premises,Premises-Repairs & Maintenance,40705-TESTING-ELEC SERVICES,Revenue,10/08/2015,1.00,Resources
WC59 - 0883,COMMERCIAL & DOMESTIC,Premises,Premises-Repairs & Maintenance,40705-TESTING-ELEC SERVICES,Revenue,10/08/2015,1.00,Resources
WC59 - 0884,COMMERCIAL & DOMESTIC,Premises,Premises-Repairs & Maintenance,40705-TESTING-ELEC SERVICES,Revenue,10/08/2015,1.00,Resources
WC59 - 0885,COMMERCIAL & DOMESTIC,Premises,Premises-Repairs & Maintenance,40705-TESTING-ELEC SERVICES,Revenue,10/08/2015,1.00,Resources
WC59 - 0886,COMMERCIAL & DOMESTIC,Premises,Premises-Repairs & Maintenance,40705-TESTING-ELEC SERVICES,Revenue,07/08/2015,2.00,Resources
WC59 - 0887,COMMERCIAL & DOMESTIC,Premises,Premises-Repairs & Maintenance,40705-TESTING-ELEC SERVICES,Revenue,07/08/2015,2.00,Resources
WC59 - 0888,COMMERCIAL & DOMESTIC,Premises,Premises-Repairs & Maintenance,40705-TESTING-ELEC SERVICES,Revenue,07/08/2015,2.00,Resources
WC59 - 0889,COMMERCIAL & DOMESTIC,Premises,Premises-Repairs & Maintenance,40705-TESTING-ELEC SERVICES,Revenue,07/08/2015,2.00,Resources
WC59 - 0890,COMMERCIAL & DOMESTIC,Premises,Premises-Repairs & Maintenance,40705-TESTING-ELEC SERVICES,Revenue,07/08/2015,2.00,Resources
WC59 - 0891,COMMERCIAL & DOMESTIC,Premises,Premises-Repairs & Maintenance,40705-TESTING-ELEC SERVICES,Revenue,10/08/2015,2.00,Resources
WC59 - 0892,COMMERCIAL & DOMESTIC,Premises,Premises-Repairs & Maintenance,40705-TESTING-ELEC SERVICES,Revenue,10/08/2015,2.00,Resources
WC59 - 0893,COMMERCIAL & DOMESTIC,Premises,Premises-Repairs & Maintenance,40705-TESTING-ELEC SERVICES,Revenue,10/08/2015,2.00,Resources
WC59 - 0894,COMMERCIAL & DOMESTIC,Premises,Premises-Repairs & Maintenance,40705-TESTING-ELEC SERVICES,Revenue,10/08/2015,5.00,Resources
WC59 - 0895,COMMERCIAL & DOMESTIC,Premises,Premises-Repairs & Maintenance,40705-TESTING-ELEC SERVICES,Revenue,07/08/2015,6.00,Resources
WC59 - 0896,COMMERCIAL & DOMESTIC,Supplies & Services,"Equip,Furniture & Materials",60007-REPAIR OF EQUIPMENT-EQUIPMENT,Revenue,07/08/2015,15.00,Resources
WC59 - 0897,COMMERCIAL & DOMESTIC,Supplies & Services,"Equip,Furniture & Materials",60007-REPAIR OF EQUIPMENT-EQUIPMENT,Revenue,07/08/2015,15.00,Resources
WC59 - 0898,COMMERCIAL & DOMESTIC,Supplies & Services,"Equip,Furniture & Materials",60007-REPAIR OF EQUIPMENT-EQUIPMENT,Revenue,07/08/2015,15.00,Resources
WC59 - 0899,COMMERCIAL & DOMESTIC,Supplies & Services,"Equip,Furniture & Materials",60007-REPAIR OF EQUIPMENT-EQUIPMENT,Revenue,07/08/2015,15.00,Resources
WC59 - 0900,COMMERCIAL & DOMESTIC,Supplies & Services,"Equip,Furniture & Materials",60007-REPAIR OF EQUIPMENT-EQUIPMENT,Revenue,07/08/2015,15.00,Resources
WC59 - 0901,COMMERCIAL & DOMESTIC,Supplies & Services,"Equip,Furniture & Materials",60007-REPAIR OF EQUIPMENT-EQUIPMENT,Revenue,07/08/2015,15.00,Resources
WC59 - 0902,COMMERCIAL & DOMESTIC,Supplies & Services,"Equip,Furniture & Materials",60007-REPAIR OF EQUIPMENT-EQUIPMENT,Revenue,07/08/2015,15.00,Resources
WC59 - 0903,COMMERCIAL & DOMESTIC,Supplies & Services,"Equip,Furniture & Materials",60007-REPAIR OF EQUIPMENT-EQUIPMENT,Revenue,10/08/2015,15.00,Resources
WC59 - 0904,COMMERCIAL & DOMESTIC,Supplies & Services,"Equip,Furniture & Materials",60007-REPAIR OF EQUIPMENT-EQUIPMENT,Revenue,10/08/2015,15.00,Resources
WC59 - 0905,COMMERCIAL & DOMESTIC,Supplies & Services,"Equip,Furniture & Materials",60007-REPAIR OF EQUIPMENT-EQUIPMENT,Revenue,10/08/2015,15.00,Resources
WC59 - 0906,COMMERCIAL & DOMESTIC,Supplies & Services,"Equip,Furniture & Materials",60007-REPAIR OF EQUIPMENT-EQUIPMENT,Revenue,10/08/2015,15.00,Resources
WC59 - 0907,COMMERCIAL & DOMESTIC,Supplies & Services,"Equip,Furniture & Materials",60007-REPAIR OF EQUIPMENT-EQUIPMENT,Revenue,10/08/2015,15.00,Resources
WC59 - 0908,COMMERCIAL & DOMESTIC,Supplies & Services,"Equip,Furniture & Materials",60007-REPAIR OF EQUIPMENT-EQUIPMENT,Revenue,10/08/2015,15.00,Resources
WC59 - 0909,COMMERCIAL & DOMESTIC,Supplies & Services,"Equip,Furniture & Materials",60007-REPAIR OF EQUIPMENT-EQUIPMENT,Revenue,10/08/2015,15.00,Resources
WC59 - 0910,COMMERCIAL & DOMESTIC,Supplies & Services,"Equip,Furniture & Materials",60007-REPAIR OF EQUIPMENT-EQUIPMENT,Revenue,07/08/2015,20.00,Resources
WC59 - 0911,COMMERCIAL & DOMESTIC,Supplies & Services,"Equip,Furniture & Materials",60007-REPAIR OF EQUIPMENT-EQUIPMENT,Revenue,07/08/2015,20.00,Resources
WC59 - 0912,COMMERCIAL & DOMESTIC,Supplies & Services,"Equip,Furniture & Materials",60007-REPAIR OF EQUIPMENT-EQUIPMENT,Revenue,07/08/2015,20.00,Resources
WC59 - 0913,COMMERCIAL & DOMESTIC,Supplies & Services,"Equip,Furniture & Materials",60007-REPAIR OF EQUIPMENT-EQUIPMENT,Revenue,07/08/2015,20.00,Resources
WC59 - 0914,COMMERCIAL & DOMESTIC,Supplies & Services,"Equip,Furniture & Materials",60007-REPAIR OF EQUIPMENT-EQUIPMENT,Revenue,07/08/2015,20.00,Resources
WC59 - 0915,COMMERCIAL & DOMESTIC,Supplies & Services,"Equip,Furniture & Materials",60007-REPAIR OF EQUIPMENT-EQUIPMENT,Revenue,07/08/2015,20.00,Resources
WC59 - 0916,COMMERCIAL & DOMESTIC,Supplies & Services,"Equip,Furniture & Materials",60007-REPAIR OF EQUIPMENT-EQUIPMENT,Revenue,10/08/2015,20.00,Resources
WC59 - 0917,COMMERCIAL & DOMESTIC,Supplies & Services,"Equip,Furniture & Materials",60007-REPAIR OF EQUIPMENT-EQUIPMENT,Revenue,10/08/2015,20.00,Resources
WC59 - 0918,COMMERCIAL & DOMESTIC,Supplies & Services,"Equip,Furniture & Materials",60007-REPAIR OF EQUIPMENT-EQUIPMENT,Revenue,10/08/2015,20.00,Resources
WC59 - 0919,COMMERCIAL & DOMESTIC,Supplies & Services,"Equip,Furniture & Materials",60007-REPAIR OF EQUIPMENT-EQUIPMENT,Revenue,10/08/2015,20.00,Resources
WC59 - 0920,COMMERCIAL & DOMESTIC,Supplies & Services,"Equip,Furniture & Materials",60007-REPAIR OF EQUIPMENT-EQUIPMENT,Revenue,10/08/2015,25.00,Resources
WC59 - 0921,COMMERCIAL & DOMESTIC,Supplies & Services,"Equip,Furniture & Materials",60007-REPAIR OF EQUIPMENT-EQUIPMENT,Revenue,07/08/2015,30.00,Resources
WC59 - 0922,COMMERCIAL & DOMESTIC,Supplies & Services,"Equip,Furniture & Materials",60007-REPAIR OF EQUIPMENT-EQUIPMENT,Revenue,07/08/2015,30.00,Resources
WC59 - 0923,COMMERCIAL & DOMESTIC,Supplies & Services,"Equip,Furniture & Materials",60007-REPAIR OF EQUIPMENT-EQUIPMENT,Revenue,07/08/2015,30.00,Resources
WC59 - 0924,COMMERCIAL & DOMESTIC,Supplies & Services,"Equip,Furniture & Materials",60007-REPAIR OF EQUIPMENT-EQUIPMENT,Revenue,07/08/2015,30.00,Resources
WC59 - 0925,COMMERCIAL & DOMESTIC,Supplies & Services,"Equip,Furniture & Materials",60007-REPAIR OF EQUIPMENT-EQUIPMENT,Revenue,10/08/2015,30.00,Resources
WC59 - 0926,COMMERCIAL & DOMESTIC,Supplies & Services,"Equip,Furniture & Materials",60007-REPAIR OF EQUIPMENT-EQUIPMENT,Revenue,07/08/2015,35.00,Resources
WC59 - 0927,COMMERCIAL & DOMESTIC,Supplies & Services,"Equip,Furniture & Materials",60007-REPAIR OF EQUIPMENT-EQUIPMENT,Revenue,07/08/2015,35.00,Resources
WC59 - 0928,COMMERCIAL & DOMESTIC,Supplies & Services,"Equip,Furniture & Materials",60007-REPAIR OF EQUIPMENT-EQUIPMENT,Revenue,10/08/2015,35.00,Resources
WC59 - 0929,COMMERCIAL & DOMESTIC,Supplies & Services,"Equip,Furniture & Materials",60007-REPAIR OF EQUIPMENT-EQUIPMENT,Revenue,07/08/2015,40.00,Resources
WC59 - 0930,COMMERCIAL & DOMESTIC,Supplies & Services,"Equip,Furniture & Materials",60007-REPAIR OF EQUIPMENT-EQUIPMENT,Revenue,10/08/2015,40.00,Resources
WC59 - 0931,COMMERCIAL & DOMESTIC,Supplies & Services,"Equip,Furniture & Materials",60007-REPAIR OF EQUIPMENT-EQUIPMENT,Revenue,10/08/2015,45.00,Resources
WC59 - 0932,COMMERCIAL & DOMESTIC,Supplies & Services,"Equip,Furniture & Materials",60007-REPAIR OF EQUIPMENT-EQUIPMENT,Revenue,07/08/2015,55.00,Resources
WC59 - 0933,COMMERCIAL & DOMESTIC,Supplies & Services,"Equip,Furniture & Materials",60007-REPAIR OF EQUIPMENT-EQUIPMENT,Revenue,10/08/2015,60.00,Resources
WC59 - 0934,COMMERCIAL & DOMESTIC,Supplies & Services,"Equip,Furniture & Materials",60007-REPAIR OF EQUIPMENT-EQUIPMENT,Revenue,10/08/2015,100.00,Resources
WC59 - 0935,COMMERCIAL & DOMESTIC,Supplies & Services,"Equip,Furniture & Materials",60007-REPAIR OF EQUIPMENT-EQUIPMENT,Revenue,07/08/2015,115.00,Resources
WC59 - 0936,COMPASS FOSTERING CENTRAL LIMITED,Third Party Payments,Private Contractor Fees,74037-INDEPENDENT FOSTER CARE-OTH AGENCY PROVISION,Revenue,13/08/2015,"2,325.00",Childrens
WC59 - 0937,COMPASS FOSTERING CENTRAL LIMITED,Third Party Payments,Private Contractor Fees,74037-INDEPENDENT FOSTER CARE-OTH AGENCY PROVISION,Revenue,13/08/2015,"2,529.60",Childrens
WC59 - 0938,COMPLETE CARE SERVICES,Third Party Payments,Private Contractor Fees,73372-DOMICILIARY CARE,Revenue,26/08/2015,291.04,Social Care & Inclusion
WC59 - 0939,COMPLETE CARE SERVICES,Third Party Payments,Private Contractor Fees,73372-DOMICILIARY CARE,Revenue,26/08/2015,379.06,Social Care & Inclusion
WC59 - 0940,COMPLETE CARE SERVICES,Third Party Payments,Private Contractor Fees,73372-DOMICILIARY CARE,Revenue,26/08/2015,397.03,Social Care & Inclusion
WC59 - 0941,COMPLETE CARE SERVICES,Third Party Payments,Private Contractor Fees,73372-DOMICILIARY CARE,Revenue,26/08/2015,848.70,Social Care & Inclusion
WC59 - 0942,COMPLETE CARE SERVICES,Third Party Payments,Private Contractor Fees,73372-DOMICILIARY CARE,Revenue,26/08/2015,863.69,Social Care & Inclusion
WC59 - 0943,COMPLETE CARE SERVICES,Third Party Payments,Private Contractor Fees,73372-DOMICILIARY CARE,Revenue,26/08/2015,"1,006.10",Social Care & Inclusion
WC59 - 0944,COMPLETE CARE SERVICES,Third Party Payments,Private Contractor Fees,73372-DOMICILIARY CARE,Revenue,26/08/2015,"1,006.10",Social Care & Inclusion
WC59 - 0945,COMPLETE CARE SERVICES,Third Party Payments,Private Contractor Fees,73372-DOMICILIARY CARE,Revenue,26/08/2015,"1,030.86",Social Care & Inclusion
WC59 - 0946,COMPLETE CARE SERVICES,Third Party Payments,Private Contractor Fees,73372-DOMICILIARY CARE,Revenue,26/08/2015,"1,150.92",Social Care & Inclusion
WC59 - 0947,COMPLETE CARE SERVICES,Third Party Payments,Private Contractor Fees,73372-DOMICILIARY CARE,Revenue,26/08/2015,"1,159.20",Social Care & Inclusion
WC59 - 0948,COMPLETE CARE SERVICES,Third Party Payments,Private Contractor Fees,73372-DOMICILIARY CARE,Revenue,26/08/2015,"1,159.20",Social Care & Inclusion
WC59 - 0949,COMPLETE CARE SERVICES,Third Party Payments,Private Contractor Fees,73372-DOMICILIARY CARE,Revenue,26/08/2015,"1,159.20",Social Care & Inclusion
WC59 - 0950,COMPLETE CARE SERVICES,Third Party Payments,Private Contractor Fees,73372-DOMICILIARY CARE,Revenue,19/08/2015,"66,357.57",Social Care & Inclusion
WC59 - 0951,CONCEPT ELEVATORS (UK) LIMITED,Premises,Premises-Repairs & Maintenance,"40000-REPAIRS,ALTERATIONS & MAINTENANCE-PREM",Revenue,14/08/2015,609.00,Resources
WC59 - 0952,CONCORDE GRAPHICS,Supplies & Services,"Equip,Furniture & Materials",62527-VISUAL ARTS,Revenue,14/08/2015,861.00,Economy & Environment
WC59 - 0953,CONCRETE SPORTS LTD,Supplies & Services,"Equip,Furniture & Materials",60006-NEW-FURNITURE & EQUIPMENT,Revenue,03/08/2015,300.00,Economy & Environment
WC59 - 0954,CONDOVER COLLEGE LTD,Third Party Payments,Private Contractor Fees,73373-RESIDENTIAL & NURSING CARE PLACEMENTS,Revenue,18/08/2015,737.68,Social Care & Inclusion
WC59 - 0955,CONDOVER COLLEGE LTD,Third Party Payments,Private Contractor Fees,73373-RESIDENTIAL & NURSING CARE PLACEMENTS,Revenue,18/08/2015,892.65,Social Care & Inclusion
WC59 - 0956,CONDOVER COLLEGE LTD,Third Party Payments,Private Contractor Fees,73373-RESIDENTIAL & NURSING CARE PLACEMENTS,Revenue,18/08/2015,"13,285.71",Social Care & Inclusion
WC59 - 0957,CONDOVER COLLEGE LTD,Third Party Payments,Private Contractor Fees,73373-RESIDENTIAL & NURSING CARE PLACEMENTS,Revenue,18/08/2015,"16,077.84",Social Care & Inclusion
WC59 - 0958,CONNOLLY MUSICAL INSTRUMENT REPAIRS,Supplies & Services,"Equip,Furniture & Materials",60008-MAINTENANCE-FURNITURE & EQUIPMENT,Revenue,10/08/2015,510.00,Economy & Environment
WC59 - 0959,CONSTABLES,Transport,Hire,52000-WITH DRIVER-HIRE OF VEHICLES,Revenue,14/08/2015,325.00,Childrens
WC59 - 0960,CONSTABLES,Transport,Hire,52000-WITH DRIVER-HIRE OF VEHICLES,Revenue,05/08/2015,"4,788.00",Childrens
WC59 - 0961,CO-OPERATIVE FUNERAL SERVICES,Supplies & Services,Other Supplies & Services,63110-BURIAL & CREMATION-SERVICES-FEES,Revenue,01/08/2015,500.00,Economy & Environment
WC59 - 0962,CO-OPERATIVE FUNERAL SERVICES,Supplies & Services,Other Supplies & Services,63110-BURIAL & CREMATION-SERVICES-FEES,Revenue,01/08/2015,500.00,Economy & Environment
WC59 - 0963,CO-OPERATIVE FUNERAL SERVICES,Supplies & Services,Other Supplies & Services,63110-BURIAL & CREMATION-SERVICES-FEES,Revenue,01/08/2015,500.00,Economy & Environment
WC59 - 0964,CO-OPERATIVE FUNERAL SERVICES,Supplies & Services,Other Supplies & Services,63110-BURIAL & CREMATION-SERVICES-FEES,Revenue,01/08/2015,500.00,Economy & Environment
WC59 - 0965,CORE ASSETS CHILDRENS SERVICES LIMITED,Supplies & Services,Services,63000-PROFESSIONAL FEES AND SERVICES,Revenue,05/08/2015,946.40,Childrens
WC59 - 0966,CORELOGIC LIMITED,Capital,Capital,01006-SITE WORKS MAIN CONTRACTORS,Capital,03/08/2015,400.00,Childrens
WC59 - 0967,CORY ENVIRONMENTAL (CENTRAL) LTD,Third Party Payments,Private Contractor Fees,73005-LANDFILL PTYS-PRIV CONTRACTOR FEES,Revenue,17/08/2015,320.28,Economy & Environment
WC59 - 0968,CORY ENVIRONMENTAL (CENTRAL) LTD,Third Party Payments,Private Contractor Fees,73005-LANDFILL PTYS-PRIV CONTRACTOR FEES,Revenue,17/08/2015,322.69,Economy & Environment
WC59 - 0969,CORY ENVIRONMENTAL (CENTRAL) LTD,Third Party Payments,Private Contractor Fees,73005-LANDFILL PTYS-PRIV CONTRACTOR FEES,Revenue,17/08/2015,322.84,Economy & Environment
WC59 - 0970,CORY ENVIRONMENTAL (CENTRAL) LTD,Third Party Payments,Private Contractor Fees,73005-LANDFILL PTYS-PRIV CONTRACTOR FEES,Revenue,17/08/2015,327.96,Economy & Environment
WC59 - 0971,CORY ENVIRONMENTAL (CENTRAL) LTD,Third Party Payments,Private Contractor Fees,73005-LANDFILL PTYS-PRIV CONTRACTOR FEES,Revenue,26/08/2015,"1,641.52",Economy & Environment
WC59 - 0972,CORY ENVIRONMENTAL (CENTRAL) LTD,Third Party Payments,Private Contractor Fees,73039-LANDFILL TAX-PRIV CONTRACTOR FEES,Revenue,17/08/2015,"1,751.95",Economy & Environment
WC59 - 0973,CORY ENVIRONMENTAL (CENTRAL) LTD,Third Party Payments,Private Contractor Fees,73039-LANDFILL TAX-PRIV CONTRACTOR FEES,Revenue,17/08/2015,"1,765.16",Economy & Environment
WC59 - 0974,CORY ENVIRONMENTAL (CENTRAL) LTD,Third Party Payments,Private Contractor Fees,73039-LANDFILL TAX-PRIV CONTRACTOR FEES,Revenue,17/08/2015,"1,765.99",Economy & Environment
WC59 - 0975,CORY ENVIRONMENTAL (CENTRAL) LTD,Third Party Payments,Private Contractor Fees,73039-LANDFILL TAX-PRIV CONTRACTOR FEES,Revenue,17/08/2015,"1,794.07",Economy & Environment
WC59 - 0976,CORY ENVIRONMENTAL (CENTRAL) LTD,Third Party Payments,Private Contractor Fees,73039-LANDFILL TAX-PRIV CONTRACTOR FEES,Revenue,26/08/2015,"8,979.47",Economy & Environment
WC59 - 0977,CPC TRAINING CONSULTANTS LTD,Third Party Payments,Grants to Other Orgs,65500-GRANTS TO ASSOCIATIONS,Revenue,05/08/2015,"42,888.27",Resources
WC59 - 0978,CRAEGMOOR,Third Party Payments,Private Contractor Fees,73373-RESIDENTIAL & NURSING CARE PLACEMENTS,Revenue,04/08/2015,521.82,Social Care & Inclusion
WC59 - 0979,CRAEGMOOR,Third Party Payments,Private Contractor Fees,73373-RESIDENTIAL & NURSING CARE PLACEMENTS,Revenue,04/08/2015,"8,077.63",Social Care & Inclusion
WC59 - 0980,CRAEGMOOR,Third Party Payments,Private Contractor Fees,73373-RESIDENTIAL & NURSING CARE PLACEMENTS,Revenue,18/08/2015,"8,077.63",Social Care & Inclusion
WC59 - 0981,CREATIVE DIVERSITY RESIDENTIAL CARE LTD,Transfer Payments,Transfer Payments,76010-ACCOMMODATION AND RELATED COSTS-ASSISTANCE TO S/S CLIENTS,Revenue,13/08/2015,"4,714.28",Childrens
WC59 - 0982,CREATIVE DIVERSITY RESIDENTIAL CARE LTD,Transfer Payments,Transfer Payments,76010-ACCOMMODATION AND RELATED COSTS-ASSISTANCE TO S/S CLIENTS,Revenue,13/08/2015,"4,871.42",Childrens
WC59 - 0983,CREATIVE DIVERSITY RESIDENTIAL CARE LTD,Transfer Payments,Transfer Payments,76010-ACCOMMODATION AND RELATED COSTS-ASSISTANCE TO S/S CLIENTS,Revenue,13/08/2015,"4,871.42",Childrens
WC59 - 0984,CREATIVITY TEAM LIMITED,Employees,Other Staff Costs,32000-MISC FEES AND EXPENSES,Revenue,19/08/2015,250.00,Economy & Environment
WC59 - 0985,CREDENTIAL ENVIRONMENTAL LIMITED,Third Party Payments,Private Contractor Fees,73001-RECYCLING OF WASTE TYRES-PRIV CONTRACTOR FEES,Revenue,05/08/2015,272.60,Economy & Environment
WC59 - 0986,CROFT ACADEMY,Third Party Payments,Grants to Other Orgs,66502-TOP UP FUNDING -GRANTS TO SCHOOLS,Revenue,05/08/2015,761.53,Childrens
WC59 - 0987,CROMWELL HOUSE,Third Party Payments,Private Contractor Fees,73373-RESIDENTIAL & NURSING CARE PLACEMENTS,Revenue,25/08/2015,635.73,Social Care & Inclusion
WC59 - 0988,CROMWELL HOUSE,Third Party Payments,Private Contractor Fees,73373-RESIDENTIAL & NURSING CARE PLACEMENTS,Revenue,25/08/2015,"1,475.86",Social Care & Inclusion
WC59 - 0989,CROMWELL HOUSE,Third Party Payments,Private Contractor Fees,73373-RESIDENTIAL & NURSING CARE PLACEMENTS,Revenue,25/08/2015,"5,903.44",Social Care & Inclusion
WC59 - 0990,CROSSWAYS RESIDENTIAL HOME,Third Party Payments,Private Contractor Fees,73373-RESIDENTIAL & NURSING CARE PLACEMENTS,Revenue,25/08/2015,"1,232.50",Social Care & Inclusion
WC59 - 0991,CROSSWAYS RESIDENTIAL HOME,Third Party Payments,Private Contractor Fees,73373-RESIDENTIAL & NURSING CARE PLACEMENTS,Revenue,25/08/2015,"1,653.23",Social Care & Inclusion
WC59 - 0992,CROSSWAYS RESIDENTIAL HOME,Third Party Payments,Private Contractor Fees,73373-RESIDENTIAL & NURSING CARE PLACEMENTS,Revenue,18/08/2015,"1,692.69",Social Care & Inclusion
WC59 - 0993,CROSSWAYS RESIDENTIAL HOME,Third Party Payments,Private Contractor Fees,73373-RESIDENTIAL & NURSING CARE PLACEMENTS,Revenue,18/08/2015,"1,692.69",Social Care & Inclusion
WC59 - 0994,CROSSWAYS RESIDENTIAL HOME,Third Party Payments,Private Contractor Fees,73373-RESIDENTIAL & NURSING CARE PLACEMENTS,Revenue,18/08/2015,"1,736.71",Social Care & Inclusion
WC59 - 0995,CROSSWAYS RESIDENTIAL HOME,Third Party Payments,Private Contractor Fees,73373-RESIDENTIAL & NURSING CARE PLACEMENTS,Revenue,18/08/2015,"1,759.96",Social Care & Inclusion
WC59 - 0996,CROSSWAYS RESIDENTIAL HOME,Third Party Payments,Private Contractor Fees,73373-RESIDENTIAL & NURSING CARE PLACEMENTS,Revenue,18/08/2015,"1,830.11",Social Care & Inclusion
WC59 - 0997,CROSSWAYS RESIDENTIAL HOME,Third Party Payments,Private Contractor Fees,73373-RESIDENTIAL & NURSING CARE PLACEMENTS,Revenue,18/08/2015,"1,875.56",Social Care & Inclusion
WC59 - 0998,CROSSWAYS RESIDENTIAL HOME,Third Party Payments,Private Contractor Fees,73373-RESIDENTIAL & NURSING CARE PLACEMENTS,Revenue,18/08/2015,"1,938.08",Social Care & Inclusion
WC59 - 0999,CROSSWAYS RESIDENTIAL HOME,Third Party Payments,Private Contractor Fees,73373-RESIDENTIAL & NURSING CARE PLACEMENTS,Revenue,18/08/2015,"1,938.08",Social Care & Inclusion
WC59 - 1000,CROWN COMPUTING,Supplies & Services,Communications & Computing,63800-COMPUTER EQUIPMENT AND SUPPLIES,Revenue,17/08/2015,875.00,Resources
WC59 - 1001,CS COMMUNICATION SERVICES LTD,Supplies & Services,Communications & Computing,63800-COMPUTER EQUIPMENT AND SUPPLIES,Revenue,03/08/2015,295.00,Resources
WC59 - 1002,CS COMMUNICATION SERVICES LTD,Supplies & Services,Communications & Computing,63800-COMPUTER EQUIPMENT AND SUPPLIES,Revenue,03/08/2015,295.00,Resources
WC59 - 1003,CS COMMUNICATION SERVICES LTD,Supplies & Services,Communications & Computing,63800-COMPUTER EQUIPMENT AND SUPPLIES,Revenue,03/08/2015,350.00,Resources
WC59 - 1004,CS COMMUNICATION SERVICES LTD,Supplies & Services,Communications & Computing,63800-COMPUTER EQUIPMENT AND SUPPLIES,Revenue,03/08/2015,400.00,Resources
WC59 - 1005,CS COMMUNICATION SERVICES LTD,Supplies & Services,Communications & Computing,63601-COSTS (NOT INTERNAL RECHARGES)-TELEPHONES,Revenue,03/08/2015,400.00,Resources
WC59 - 1006,CUMMINS-ALLISON LTD,Supplies & Services,Communications & Computing,63800-COMPUTER EQUIPMENT AND SUPPLIES,Revenue,19/08/2015,"1,500.00",Resources
WC59 - 1007,REDACTED,Transfer Payments,Transfer Payments,76422-DIRECT PAYMENTS TO SOCIAL SERVICES CLIENTS,Revenue,07/08/2015,"3,828.46",Social Care & Inclusion
WC59 - 1008,REDACTED,Supplies & Services,Other Supplies & Services,62515-MISCELLANEOUS SUPPLIES,Revenue,17/08/2015,540.20,Childrens
WC59 - 1009,REDACTED,Third Party Payments,Private Contractor Fees,74006-HOLIDAY/CHRISTMAS ALLOWANCE-FOSTER CARERS-OTH AGENCY PROVISION,Revenue,17/08/2015,571.44,Childrens
WC59 - 1010,REDACTED,Third Party Payments,Private Contractor Fees,74006-HOLIDAY/CHRISTMAS ALLOWANCE-FOSTER CARERS-OTH AGENCY PROVISION,Revenue,03/08/2015,650.92,Childrens
WC59 - 1011,REDACTED,Third Party Payments,Private Contractor Fees,74006-HOLIDAY/CHRISTMAS ALLOWANCE-FOSTER CARERS-OTH AGENCY PROVISION,Revenue,03/08/2015,"1,952.76",Childrens
WC59 - 1012,REDACTED,Third Party Payments,Private Contractor Fees,74006-HOLIDAY/CHRISTMAS ALLOWANCE-FOSTER CARERS-OTH AGENCY PROVISION,Revenue,17/08/2015,918.39,Childrens
WC59 - 1013,REDACTED,Supplies & Services,Other Supplies & Services,62515-MISCELLANEOUS SUPPLIES,Revenue,17/08/2015,"1,445.32",Childrens
WC59 - 1014,REDACTED,Supplies & Services,Other Supplies & Services,62515-MISCELLANEOUS SUPPLIES,Revenue,17/08/2015,540.20,Childrens
WC59 - 1015,REDACTED,Third Party Payments,Private Contractor Fees,74006-HOLIDAY/CHRISTMAS ALLOWANCE-FOSTER CARERS-OTH AGENCY PROVISION,Revenue,17/08/2015,"1,338.70",Childrens
WC59 - 1016,DAISYBROOK LTD,Supplies & Services,Services,63000-PROFESSIONAL FEES AND SERVICES,Revenue,03/08/2015,"1,407.00",Childrens
WC59 - 1017,REDACTED,Transfer Payments,Transfer Payments,76422-DIRECT PAYMENTS TO SOCIAL SERVICES CLIENTS,Revenue,07/08/2015,878.11,Social Care & Inclusion
WC59 - 1018,REDACTED,Transfer Payments,Transfer Payments,76422-DIRECT PAYMENTS TO SOCIAL SERVICES CLIENTS,Revenue,07/08/2015,"1,492.80",Social Care & Inclusion
WC59 - 1019,REDACTED,Transfer Payments,Transfer Payments,76422-DIRECT PAYMENTS TO SOCIAL SERVICES CLIENTS,Revenue,07/08/2015,"1,622.36",Social Care & Inclusion
WC59 - 1020,REDACTED,Transfer Payments,Transfer Payments,76422-DIRECT PAYMENTS TO SOCIAL SERVICES CLIENTS,Revenue,07/08/2015,906.36,Childrens
WC59 - 1021,REDACTED,Transfer Payments,Transfer Payments,76422-DIRECT PAYMENTS TO SOCIAL SERVICES CLIENTS,Revenue,07/08/2015,"1,890.00",Social Care & Inclusion
WC59 - 1022,REDACTED,Transfer Payments,Transfer Payments,76422-DIRECT PAYMENTS TO SOCIAL SERVICES CLIENTS,Revenue,07/08/2015,755.30,Social Care & Inclusion
WC59 - 1023,REDACTED,Transfer Payments,Transfer Payments,76422-DIRECT PAYMENTS TO SOCIAL SERVICES CLIENTS,Revenue,07/08/2015,923.48,Social Care & Inclusion
WC59 - 1024,DARLASTON BOYS CLUB,Supplies & Services,Services,63000-PROFESSIONAL FEES AND SERVICES,Revenue,04/08/2015,"2,100.00",Childrens
WC59 - 1025,DARLASTON FELLOWSHIP DISABLED,Transport,Hire,52000-WITH DRIVER-HIRE OF VEHICLES,Revenue,05/08/2015,344.00,Childrens
WC59 - 1026,DARLASTON FELLOWSHIP DISABLED,Transport,Hire,52000-WITH DRIVER-HIRE OF VEHICLES,Revenue,05/08/2015,368.00,Childrens
WC59 - 1027,DARLASTON FELLOWSHIP DISABLED,Transport,Hire,52000-WITH DRIVER-HIRE OF VEHICLES,Revenue,05/08/2015,430.00,Childrens
WC59 - 1028,DARLASTON FELLOWSHIP DISABLED,Transport,Hire,52000-WITH DRIVER-HIRE OF VEHICLES,Revenue,05/08/2015,448.00,Childrens
WC59 - 1029,DARLASTON FELLOWSHIP DISABLED,Transport,Hire,52000-WITH DRIVER-HIRE OF VEHICLES,Revenue,05/08/2015,660.00,Childrens
WC59 - 1030,REDACTED,Transfer Payments,Transfer Payments,76422-DIRECT PAYMENTS TO SOCIAL SERVICES CLIENTS,Revenue,07/08/2015,595.00,Social Care & Inclusion
WC59 - 1031,REDACTED,Transfer Payments,Transfer Payments,76422-DIRECT PAYMENTS TO SOCIAL SERVICES CLIENTS,Revenue,07/08/2015,251.84,Social Care & Inclusion
WC59 - 1032,REDACTED,Transfer Payments,Transfer Payments,76422-DIRECT PAYMENTS TO SOCIAL SERVICES CLIENTS,Revenue,07/08/2015,338.38,Social Care & Inclusion
WC59 - 1033,REDACTED,Transfer Payments,Transfer Payments,76422-DIRECT PAYMENTS TO SOCIAL SERVICES CLIENTS,Revenue,07/08/2015,"6,123.61",Social Care & Inclusion
WC59 - 1034,DARWIN COURT CARE CENTRE,Third Party Payments,Private Contractor Fees,73373-RESIDENTIAL & NURSING CARE PLACEMENTS,Revenue,04/08/2015,"12,455.36",Social Care & Inclusion
WC59 - 1035,REDACTED,Transfer Payments,Transfer Payments,76000-TRANSFER PAYMENTS - SOCIAL SERVICES CLIENTS,Revenue,04/08/2015,464.00,Childrens
WC59 - 1036,REDACTED,Transfer Payments,Transfer Payments,76000-TRANSFER PAYMENTS - SOCIAL SERVICES CLIENTS,Revenue,19/08/2015,464.00,Childrens
WC59 - 1037,REDACTED,Supplies & Services,Other Supplies & Services,62515-MISCELLANEOUS SUPPLIES,Revenue,17/08/2015,706.76,Childrens
WC59 - 1038,REDACTED,Third Party Payments,Private Contractor Fees,74006-HOLIDAY/CHRISTMAS ALLOWANCE-FOSTER CARERS-OTH AGENCY PROVISION,Revenue,17/08/2015,985.76,Childrens
WC59 - 1039,REDACTED,Transfer Payments,Transfer Payments,76422-DIRECT PAYMENTS TO SOCIAL SERVICES CLIENTS,Revenue,07/08/2015,"1,617.56",Social Care & Inclusion
WC59 - 1040,REDACTED,Supplies & Services,Other Supplies & Services,62515-MISCELLANEOUS SUPPLIES,Revenue,17/08/2015,540.20,Childrens
WC59 - 1041,REDACTED,Third Party Payments,Private Contractor Fees,74006-HOLIDAY/CHRISTMAS ALLOWANCE-FOSTER CARERS-OTH AGENCY PROVISION,Revenue,17/08/2015,985.76,Childrens
WC59 - 1042,REDACTED,Transfer Payments,Transfer Payments,76422-DIRECT PAYMENTS TO SOCIAL SERVICES CLIENTS,Revenue,07/08/2015,"1,054.00",Social Care & Inclusion
WC59 - 1043,REDACTED,Transfer Payments,Transfer Payments,76422-DIRECT PAYMENTS TO SOCIAL SERVICES CLIENTS,Revenue,07/08/2015,"1,071.00",Social Care & Inclusion
WC59 - 1044,DAVID GELL CONSULTANCY,Employees,Training,30030-EXTERNAL TRAINING,Revenue,27/08/2015,720.00,Social Care & Inclusion
WC59 - 1045,DAVID GELL CONSULTANCY,Employees,Training,30030-EXTERNAL TRAINING,Revenue,27/08/2015,"2,160.00",Social Care & Inclusion
WC59 - 1046,REDACTED,Transfer Payments,Transfer Payments,76422-DIRECT PAYMENTS TO SOCIAL SERVICES CLIENTS,Revenue,07/08/2015,"1,584.00",Social Care & Inclusion
WC59 - 1047,DAVID MOSS MFL,Supplies & Services,Services,63000-PROFESSIONAL FEES AND SERVICES,Revenue,03/08/2015,"2,625.00",Childrens
WC59 - 1048,REDACTED,Transfer Payments,Transfer Payments,76422-DIRECT PAYMENTS TO SOCIAL SERVICES CLIENTS,Revenue,07/08/2015,519.24,Social Care & Inclusion
WC59 - 1049,REDACTED,Transfer Payments,Transfer Payments,76422-DIRECT PAYMENTS TO SOCIAL SERVICES CLIENTS,Revenue,07/08/2015,"1,242.50",Social Care & Inclusion
WC59 - 1050,REDACTED,Transfer Payments,Transfer Payments,76422-DIRECT PAYMENTS TO SOCIAL SERVICES CLIENTS,Revenue,07/08/2015,"2,280.68",Social Care & Inclusion
WC59 - 1051,REDACTED,Transfer Payments,Transfer Payments,76422-DIRECT PAYMENTS TO SOCIAL SERVICES CLIENTS,Revenue,07/08/2015,880.00,Social Care & Inclusion
WC59 - 1052,REDACTED,Transfer Payments,Transfer Payments,76422-DIRECT PAYMENTS TO SOCIAL SERVICES CLIENTS,Revenue,07/08/2015,"1,564.00",Social Care & Inclusion
WC59 - 1053,REDACTED,Transfer Payments,Transfer Payments,76422-DIRECT PAYMENTS TO SOCIAL SERVICES CLIENTS,Revenue,07/08/2015,437.00,Social Care & Inclusion
WC59 - 1054,DAWNUS CONSTRUCTION LTD,Capital,Capital,01001-OTHER CONSULTANTS FEES,Capital,10/08/2015,"792,423.11",Economy & Environment
WC59 - 1055,DAWSON RENTALS SWEEPERS,Transport,Hire,52001-HIRE OF VEHICLES,Revenue,07/08/2015,"1,627.52",Economy & Environment
WC59 - 1056,DAWSON RENTALS SWEEPERS,Transport,Hire,52001-HIRE OF VEHICLES,Revenue,26/08/2015,"1,627.52",Economy & Environment
WC59 - 1057,DAWSON RENTALS SWEEPERS,Transport,Hire,52001-HIRE OF VEHICLES,Revenue,07/08/2015,"1,999.28",Economy & Environment
WC59 - 1058,DAWSON RENTALS SWEEPERS,Transport,Hire,52001-HIRE OF VEHICLES,Revenue,07/08/2015,"1,999.28",Economy & Environment
WC59 - 1059,DAWSON RENTALS SWEEPERS,Transport,Hire,52001-HIRE OF VEHICLES,Revenue,07/08/2015,"1,999.28",Economy & Environment
WC59 - 1060,DAWSON RENTALS SWEEPERS,Transport,Hire,52001-HIRE OF VEHICLES,Revenue,07/08/2015,"1,999.28",Economy & Environment
WC59 - 1061,DAWSON RENTALS SWEEPERS,Transport,Hire,52001-HIRE OF VEHICLES,Revenue,07/08/2015,"1,999.28",Economy & Environment
WC59 - 1062,DAWSON RENTALS SWEEPERS,Transport,Hire,52001-HIRE OF VEHICLES,Revenue,07/08/2015,"1,999.28",Economy & Environment
WC59 - 1063,DAWSON RENTALS SWEEPERS,Transport,Hire,52001-HIRE OF VEHICLES,Revenue,26/08/2015,"1,999.28",Economy & Environment
WC59 - 1064,DAWSON RENTALS SWEEPERS,Transport,Hire,52001-HIRE OF VEHICLES,Revenue,26/08/2015,"1,999.28",Economy & Environment
WC59 - 1065,DAWSON RENTALS SWEEPERS,Transport,Hire,52001-HIRE OF VEHICLES,Revenue,26/08/2015,"1,999.28",Economy & Environment
WC59 - 1066,DAWSON RENTALS SWEEPERS,Transport,Hire,52001-HIRE OF VEHICLES,Revenue,26/08/2015,"1,999.28",Economy & Environment
WC59 - 1067,DAWSON RENTALS SWEEPERS,Transport,Hire,52001-HIRE OF VEHICLES,Revenue,26/08/2015,"1,999.28",Economy & Environment
WC59 - 1068,DAWSON RENTALS SWEEPERS,Transport,Hire,52001-HIRE OF VEHICLES,Revenue,26/08/2015,"1,999.28",Economy & Environment
WC59 - 1069,DAWSON RENTALS SWEEPERS,Transport,Hire,52001-HIRE OF VEHICLES,Revenue,07/08/2015,"2,064.46",Economy & Environment
WC59 - 1070,DAWSON RENTALS SWEEPERS,Transport,Hire,52001-HIRE OF VEHICLES,Revenue,26/08/2015,"2,064.46",Economy & Environment
WC59 - 1071,REDACTED,Supplies & Services,Other Supplies & Services,62515-MISCELLANEOUS SUPPLIES,Revenue,17/08/2015,540.20,Childrens
WC59 - 1072,REDACTED,Third Party Payments,Private Contractor Fees,74006-HOLIDAY/CHRISTMAS ALLOWANCE-FOSTER CARERS-OTH AGENCY PROVISION,Revenue,17/08/2015,810.32,Childrens
WC59 - 1073,REDACTED,Third Party Payments,Private Contractor Fees,74006-HOLIDAY/CHRISTMAS ALLOWANCE-FOSTER CARERS-OTH AGENCY PROVISION,Revenue,17/08/2015,571.44,Childrens
WC59 - 1074,REDACTED,Supplies & Services,Other Supplies & Services,62515-MISCELLANEOUS SUPPLIES,Revenue,17/08/2015,700.35,Childrens
WC59 - 1075,REDACTED,Third Party Payments,Private Contractor Fees,74006-HOLIDAY/CHRISTMAS ALLOWANCE-FOSTER CARERS-OTH AGENCY PROVISION,Revenue,03/08/2015,650.92,Childrens
WC59 - 1076,REDACTED,Supplies & Services,Other Supplies & Services,62515-MISCELLANEOUS SUPPLIES,Revenue,17/08/2015,925.00,Childrens
WC59 - 1077,REDACTED,Third Party Payments,Private Contractor Fees,74006-HOLIDAY/CHRISTMAS ALLOWANCE-FOSTER CARERS-OTH AGENCY PROVISION,Revenue,17/08/2015,"1,837.53",Childrens
WC59 - 1078,REDACTED,Transfer Payments,Transfer Payments,76422-DIRECT PAYMENTS TO SOCIAL SERVICES CLIENTS,Revenue,07/08/2015,"1,906.56",Social Care & Inclusion
WC59 - 1079,REDACTED,Transfer Payments,Transfer Payments,76422-DIRECT PAYMENTS TO SOCIAL SERVICES CLIENTS,Revenue,07/08/2015,575.40,Social Care & Inclusion
WC59 - 1080,REDACTED,Transfer Payments,Transfer Payments,76422-DIRECT PAYMENTS TO SOCIAL SERVICES CLIENTS,Revenue,07/08/2015,"2,092.50",Social Care & Inclusion
WC59 - 1081,REDACTED,Transfer Payments,Transfer Payments,76422-DIRECT PAYMENTS TO SOCIAL SERVICES CLIENTS,Revenue,07/08/2015,"1,530.00",Social Care & Inclusion
WC59 - 1082,DEP HEALTH & SAFETY LIMITED,Capital,Capital,01006-SITE WORKS MAIN CONTRACTORS,Capital,03/08/2015,600.00,Childrens
WC59 - 1083,DEP HEALTH & SAFETY LIMITED,Capital,Capital,01006-SITE WORKS MAIN CONTRACTORS,Capital,20/08/2015,600.00,Childrens
WC59 - 1084,DEP HEALTH & SAFETY LIMITED,Capital,Capital,01006-SITE WORKS MAIN CONTRACTORS,Capital,12/08/2015,750.00,Childrens
WC59 - 1085,DEPARTMENT OF ENERGY AND CLIMATE CHANGE,Premises,Utilities,42007-CRC ALLOWANCES,Revenue,05/08/2015,"158,686.40",Resources
WC59 - 1086,REDACTED,Transfer Payments,Transfer Payments,76422-DIRECT PAYMENTS TO SOCIAL SERVICES CLIENTS,Revenue,07/08/2015,820.04,Social Care & Inclusion
WC59 - 1087,REDACTED,Transfer Payments,Transfer Payments,76422-DIRECT PAYMENTS TO SOCIAL SERVICES CLIENTS,Revenue,07/08/2015,416.16,Social Care & Inclusion
WC59 - 1088,REDACTED,Third Party Payments,Private Contractor Fees,74006-HOLIDAY/CHRISTMAS ALLOWANCE-FOSTER CARERS-OTH AGENCY PROVISION,Revenue,03/08/2015,425.08,Childrens
WC59 - 1089,REDACTED,Third Party Payments,Private Contractor Fees,74006-HOLIDAY/CHRISTMAS ALLOWANCE-FOSTER CARERS-OTH AGENCY PROVISION,Revenue,17/08/2015,"1,142.88",Childrens
WC59 - 1090,REDACTED,Supplies & Services,Other Supplies & Services,62515-MISCELLANEOUS SUPPLIES,Revenue,17/08/2015,"1,652.55",Childrens
WC59 - 1091,REDACTED,Transfer Payments,Transfer Payments,76422-DIRECT PAYMENTS TO SOCIAL SERVICES CLIENTS,Revenue,07/08/2015,"1,035.62",Social Care & Inclusion
WC59 - 1092,REDACTED,Supplies & Services,Other Supplies & Services,62515-MISCELLANEOUS SUPPLIES,Revenue,17/08/2015,"1,610.42",Childrens
WC59 - 1093,REDACTED,Third Party Payments,Private Contractor Fees,74006-HOLIDAY/CHRISTMAS ALLOWANCE-FOSTER CARERS-OTH AGENCY PROVISION,Revenue,17/08/2015,"3,183.91",Childrens
WC59 - 1094,DIGNUS HEALTHCARE T/A EBENEZER HOUSE,Third Party Payments,Private Contractor Fees,73373-RESIDENTIAL & NURSING CARE PLACEMENTS,Revenue,18/08/2015,"4,473.48",Social Care & Inclusion
WC59 - 1095,DIGNUS HEALTHCARE T/A EBENEZER HOUSE,Third Party Payments,Private Contractor Fees,73373-RESIDENTIAL & NURSING CARE PLACEMENTS,Revenue,18/08/2015,"4,473.48",Social Care & Inclusion
WC59 - 1096,DIGNUS HEALTHCARE T/A EBENEZER HOUSE,Third Party Payments,Private Contractor Fees,73373-RESIDENTIAL & NURSING CARE PLACEMENTS,Revenue,18/08/2015,"4,479.50",Social Care & Inclusion
WC59 - 1097,DIMENSIONS (UK) LTD,Third Party Payments,Private Contractor Fees,73373-RESIDENTIAL & NURSING CARE PLACEMENTS,Revenue,18/08/2015,"5,960.90",Social Care & Inclusion
WC59 - 1098,DIRECTOR FOR SOCIAL SERVICES,Third Party Payments,Private Contractor Fees,76003-SECTION 34 (CONTACT),Revenue,18/08/2015,5.30,Childrens
WC59 - 1099,DIRECTOR FOR SOCIAL SERVICES,Third Party Payments,Private Contractor Fees,76002-SUPPORT UNDER SECTION 23 OF THE CHILDRENS ACT,Revenue,18/08/2015,580.20,Childrens
WC59 - 1100,DISABLE AIDS CANNOCK LTD,Premises,Premises-Repairs & Maintenance,"40000-REPAIRS,ALTERATIONS & MAINTENANCE-PREM",Revenue,05/08/2015,388.50,Childrens
WC59 - 1101,DISCLOSURE & BARRING SERVICE,Supplies & Services,Other Supplies & Services,63103-CRIMINAL RECORDS BUREAU-SERVICES-FEES,Revenue,13/08/2015,"15,504.00",Resources
WC59 - 1102,REDACTED,Third Party Payments,Private Contractor Fees,73373-RESIDENTIAL & NURSING CARE PLACEMENTS,Revenue,04/08/2015,"1,974.30",Social Care & Inclusion
WC59 - 1103,REDACTED,Third Party Payments,Private Contractor Fees,73373-RESIDENTIAL & NURSING CARE PLACEMENTS,Revenue,11/08/2015,"1,974.30",Social Care & Inclusion
WC59 - 1104,DLH (VISUAL COMMUNICATIONS SOLUTIONS),Supplies & Services,Services,63000-PROFESSIONAL FEES AND SERVICES,Revenue,25/08/2015,350.00,Childrens
WC59 - 1105,REDACTED,Supplies & Services,Other Supplies & Services,63124-FEES & LICENCES-SERVICES,Revenue,05/08/2015,617.02,Childrens
WC59 - 1106,DMW ENVIRONMENTAL SAFETY LTD,Capital,Capital,01006-SITE WORKS MAIN CONTRACTORS,Capital,17/08/2015,425.00,Childrens
WC59 - 1107,DOLPHIN LTD,Capital,Capital,01006-SITE WORKS MAIN CONTRACTORS,Capital,17/08/2015,324.00,Resources
WC59 - 1108,DOLPHIN LTD,Capital,Capital,01006-SITE WORKS MAIN CONTRACTORS,Capital,13/08/2015,378.00,Resources
WC59 - 1109,DOLPHIN LTD,Capital,Capital,01006-SITE WORKS MAIN CONTRACTORS,Capital,01/08/2015,385.00,Resources
WC59 - 1110,DOLPHIN LTD,Capital,Capital,01006-SITE WORKS MAIN CONTRACTORS,Capital,07/08/2015,396.00,Resources
WC59 - 1111,DOLPHIN LTD,Capital,Capital,01006-SITE WORKS MAIN CONTRACTORS,Capital,10/08/2015,432.00,Resources
WC59 - 1112,DOLPHIN LTD,Capital,Capital,01006-SITE WORKS MAIN CONTRACTORS,Capital,17/08/2015,507.42,Resources
WC59 - 1113,DOLPHIN LTD,Capital,Capital,01006-SITE WORKS MAIN CONTRACTORS,Capital,05/08/2015,568.59,Resources
WC59 - 1114,DOLPHIN LTD,Capital,Capital,01006-SITE WORKS MAIN CONTRACTORS,Capital,07/08/2015,726.00,Resources
WC59 - 1115,DOLPHIN LTD,Capital,Capital,01006-SITE WORKS MAIN CONTRACTORS,Capital,10/08/2015,792.00,Resources
WC59 - 1116,DOLPHIN LTD,Capital,Capital,01006-SITE WORKS MAIN CONTRACTORS,Capital,24/08/2015,825.48,Resources
WC59 - 1117,DOLPHIN LTD,Capital,Capital,01045-PRIVATE GRANTS,Capital,11/08/2015,900.00,Resources
WC59 - 1118,DOLPHIN LTD,Capital,Capital,01045-PRIVATE GRANTS,Capital,24/08/2015,900.00,Resources
WC59 - 1119,DOLPHIN LTD,Capital,Capital,01045-PRIVATE GRANTS,Capital,24/08/2015,900.00,Resources
WC59 - 1120,DOLPHIN LTD,Capital,Capital,01006-SITE WORKS MAIN CONTRACTORS,Capital,01/08/2015,"1,014.40",Resources
WC59 - 1121,DOLPHIN LTD,Capital,Capital,01006-SITE WORKS MAIN CONTRACTORS,Capital,07/08/2015,"1,074.00",Resources
WC59 - 1122,DOLPHIN LTD,Capital,Capital,01006-SITE WORKS MAIN CONTRACTORS,Capital,24/08/2015,"1,155.00",Resources
WC59 - 1123,DOLPHIN LTD,Capital,Capital,01006-SITE WORKS MAIN CONTRACTORS,Capital,07/08/2015,"1,598.40",Resources
WC59 - 1124,DOLPHIN LTD,Capital,Capital,01006-SITE WORKS MAIN CONTRACTORS,Capital,13/08/2015,"1,848.00",Resources
WC59 - 1125,DOLPHIN LTD,Capital,Capital,01006-SITE WORKS MAIN CONTRACTORS,Capital,07/08/2015,"2,484.00",Resources
WC59 - 1126,DOLPHIN LTD,Capital,Capital,01006-SITE WORKS MAIN CONTRACTORS,Capital,24/08/2015,"2,651.56",Resources
WC59 - 1127,DOLPHIN LTD,Capital,Capital,01045-PRIVATE GRANTS,Capital,17/08/2015,"2,695.00",Resources
WC59 - 1128,DOLPHIN LTD,Capital,Capital,01006-SITE WORKS MAIN CONTRACTORS,Capital,07/08/2015,"2,794.88",Resources
WC59 - 1129,DOLPHIN LTD,Supplies & Services,"Equip,Furniture & Materials",60007-REPAIR OF EQUIPMENT-EQUIPMENT,Revenue,10/08/2015,"3,530.00",Social Care & Inclusion
WC59 - 1130,DOLPHIN LTD,Capital,Capital,01006-SITE WORKS MAIN CONTRACTORS,Capital,24/08/2015,"5,476.88",Resources
WC59 - 1131,DOLPHIN LTD,Capital,Capital,01006-SITE WORKS MAIN CONTRACTORS,Capital,07/08/2015,"6,500.00",Social Care & Inclusion
WC59 - 1132,REDACTED,Transfer Payments,Transfer Payments,76422-DIRECT PAYMENTS TO SOCIAL SERVICES CLIENTS,Revenue,07/08/2015,"5,854.60",Social Care & Inclusion
WC59 - 1133,REDACTED,Third Party Payments,Private Contractor Fees,74006-HOLIDAY/CHRISTMAS ALLOWANCE-FOSTER CARERS-OTH AGENCY PROVISION,Revenue,03/08/2015,672.20,Childrens
WC59 - 1134,REDACTED,Transfer Payments,Transfer Payments,76422-DIRECT PAYMENTS TO SOCIAL SERVICES CLIENTS,Revenue,07/08/2015,"1,800.00",Social Care & Inclusion
WC59 - 1135,REDACTED,Transfer Payments,Transfer Payments,74501-MAINTENANCE ALLOWANCE-FOSTER CARERS,Revenue,14/08/2015,-23.25,Childrens
WC59 - 1136,REDACTED,Supplies & Services,"Equip,Furniture & Materials",60006-NEW-FURNITURE & EQUIPMENT,Revenue,14/08/2015,11.22,Childrens
WC59 - 1137,REDACTED,Transfer Payments,Transfer Payments,74506-TRAVEL-FOSTER CARERS,Revenue,14/08/2015,209.22,Childrens
WC59 - 1138,REDACTED,Transfer Payments,Transfer Payments,74508-INTERNAL FOSTER CARERS-CARER FEES,Revenue,14/08/2015,644.74,Childrens
WC59 - 1139,REDACTED,Third Party Payments,Private Contractor Fees,74006-HOLIDAY/CHRISTMAS ALLOWANCE-FOSTER CARERS-OTH AGENCY PROVISION,Revenue,03/08/2015,"1,336.12",Childrens
WC59 - 1140,REDACTED,Transfer Payments,Transfer Payments,76422-DIRECT PAYMENTS TO SOCIAL SERVICES CLIENTS,Revenue,07/08/2015,679.20,Social Care & Inclusion
WC59 - 1141,REDACTED,Transfer Payments,Transfer Payments,76422-DIRECT PAYMENTS TO SOCIAL SERVICES CLIENTS,Revenue,07/08/2015,550.00,Social Care & Inclusion
WC59 - 1142,REDACTED,Transfer Payments,Transfer Payments,76422-DIRECT PAYMENTS TO SOCIAL SERVICES CLIENTS,Revenue,07/08/2015,506.00,Social Care & Inclusion
WC59 - 1143,REDACTED,Transfer Payments,Transfer Payments,76422-DIRECT PAYMENTS TO SOCIAL SERVICES CLIENTS,Revenue,07/08/2015,"1,464.00",Social Care & Inclusion
WC59 - 1144,REDACTED,Transfer Payments,Transfer Payments,76422-DIRECT PAYMENTS TO SOCIAL SERVICES CLIENTS,Revenue,07/08/2015,629.00,Social Care & Inclusion
WC59 - 1145,REDACTED,Transfer Payments,Transfer Payments,76422-DIRECT PAYMENTS TO SOCIAL SERVICES CLIENTS,Revenue,07/08/2015,"1,416.00",Social Care & Inclusion
WC59 - 1146,REDACTED,Transfer Payments,Transfer Payments,76422-DIRECT PAYMENTS TO SOCIAL SERVICES CLIENTS,Revenue,07/08/2015,625.56,Social Care & Inclusion
WC59 - 1147,REDACTED,Transfer Payments,Transfer Payments,76422-DIRECT PAYMENTS TO SOCIAL SERVICES CLIENTS,Revenue,07/08/2015,700.40,Social Care & Inclusion
WC59 - 1148,REDACTED,Transfer Payments,Transfer Payments,76422-DIRECT PAYMENTS TO SOCIAL SERVICES CLIENTS,Revenue,07/08/2015,"1,349.88",Social Care & Inclusion
WC59 - 1149,DOVEDALE COURT CARE HOME,Third Party Payments,Private Contractor Fees,73373-RESIDENTIAL & NURSING CARE PLACEMENTS,Revenue,18/08/2015,"1,527.60",Social Care & Inclusion
WC59 - 1150,REDACTED,Supplies & Services,Other Supplies & Services,64002-OTHER EXPENSES-EXPENSES,Revenue,07/08/2015,758.50,Economy & Environment
WC59 - 1151,REDACTED,Supplies & Services,Other Supplies & Services,64002-OTHER EXPENSES-EXPENSES,Revenue,07/08/2015,962.00,Economy & Environment
WC59 - 1152,REDACTED,Supplies & Services,Services,63000-PROFESSIONAL FEES AND SERVICES,Revenue,26/08/2015,"1,314.70",Economy & Environment
WC59 - 1153,REDACTED,Third Party Payments,Private Contractor Fees,73014-LEGAL FEES-PRIV CONTRACTOR FEES,Revenue,17/08/2015,773.50,Childrens
WC59 - 1154,REDACTED,Third Party Payments,Private Contractor Fees,73014-LEGAL FEES-PRIV CONTRACTOR FEES,Revenue,17/08/2015,828.00,Childrens
WC59 - 1155,REDACTED,Third Party Payments,Private Contractor Fees,73014-LEGAL FEES-PRIV CONTRACTOR FEES,Revenue,13/08/2015,-498.00,Childrens
WC59 - 1156,REDACTED,Third Party Payments,Private Contractor Fees,73374-SUPPORTED & OTHER ACCOMMODATION,Revenue,07/08/2015,479.60,Childrens
WC59 - 1157,REDACTED,Third Party Payments,Private Contractor Fees,73374-SUPPORTED & OTHER ACCOMMODATION,Revenue,07/08/2015,479.60,Childrens
WC59 - 1158,REDACTED,Supplies & Services,Services,63000-PROFESSIONAL FEES AND SERVICES,Revenue,18/08/2015,774.40,Economy & Environment
WC59 - 1159,REDACTED,Supplies & Services,Services,63000-PROFESSIONAL FEES AND SERVICES,Revenue,01/08/2015,"1,163.40",Economy & Environment
WC59 - 1160,REDACTED,Supplies & Services,Services,63000-PROFESSIONAL FEES AND SERVICES,Revenue,03/08/2015,338.48,Social Care & Inclusion
WC59 - 1161,REDACTED,Supplies & Services,Services,63000-PROFESSIONAL FEES AND SERVICES,Revenue,06/08/2015,522.00,Social Care & Inclusion
WC59 - 1162,REDACTED,Supplies & Services,Other Supplies & Services,63110-BURIAL & CREMATION-SERVICES-FEES,Revenue,07/08/2015,"1,128.50",Economy & Environment
WC59 - 1163,REDACTED,Supplies & Services,Other Supplies & Services,63110-BURIAL & CREMATION-SERVICES-FEES,Revenue,07/08/2015,"1,239.50",Economy & Environment
WC59 - 1164,REDACTED,Supplies & Services,Other Supplies & Services,64002-OTHER EXPENSES-EXPENSES,Revenue,07/08/2015,888.00,Economy & Environment
WC59 - 1165,REDACTED,Supplies & Services,Other Supplies & Services,64002-OTHER EXPENSES-EXPENSES,Revenue,07/08/2015,"1,165.50",Economy & Environment
WC59 - 1166,REDACTED,Supplies & Services,Services,63000-PROFESSIONAL FEES AND SERVICES,Revenue,18/08/2015,783.00,Economy & Environment
WC59 - 1167,DRAKE COURT RESIDENTIAL HOME,Third Party Payments,Private Contractor Fees,73373-RESIDENTIAL & NURSING CARE PLACEMENTS,Revenue,18/08/2015,573.73,Social Care & Inclusion
WC59 - 1168,DRAKE COURT RESIDENTIAL HOME,Third Party Payments,Private Contractor Fees,73373-RESIDENTIAL & NURSING CARE PLACEMENTS,Revenue,25/08/2015,730.20,Social Care & Inclusion
WC59 - 1169,DRAKE COURT RESIDENTIAL HOME,Third Party Payments,Private Contractor Fees,73373-RESIDENTIAL & NURSING CARE PLACEMENTS,Revenue,18/08/2015,"1,147.46",Social Care & Inclusion
WC59 - 1170,DRAKE COURT RESIDENTIAL HOME,Third Party Payments,Private Contractor Fees,73373-RESIDENTIAL & NURSING CARE PLACEMENTS,Revenue,18/08/2015,"1,460.40",Social Care & Inclusion
WC59 - 1171,DRAKE COURT RESIDENTIAL HOME,Third Party Payments,Private Contractor Fees,73373-RESIDENTIAL & NURSING CARE PLACEMENTS,Revenue,18/08/2015,"1,460.40",Social Care & Inclusion
WC59 - 1172,DRAKE COURT RESIDENTIAL HOME,Third Party Payments,Private Contractor Fees,73373-RESIDENTIAL & NURSING CARE PLACEMENTS,Revenue,04/08/2015,"1,493.24",Social Care & Inclusion
WC59 - 1173,DRAKE COURT RESIDENTIAL HOME,Third Party Payments,Private Contractor Fees,73373-RESIDENTIAL & NURSING CARE PLACEMENTS,Revenue,04/08/2015,"1,493.24",Social Care & Inclusion
WC59 - 1174,DRAKE COURT RESIDENTIAL HOME,Third Party Payments,Private Contractor Fees,73373-RESIDENTIAL & NURSING CARE PLACEMENTS,Revenue,25/08/2015,"2,503.54",Social Care & Inclusion
WC59 - 1175,DRB IGNITE LIMITED,Supplies & Services,"Equip,Furniture & Materials",60500-GENERAL MATERIALS,Revenue,06/08/2015,285.00,Childrens
WC59 - 1176,DRB IGNITE LIMITED,Supplies & Services,"Equip,Furniture & Materials",60500-GENERAL MATERIALS,Revenue,06/08/2015,300.00,Childrens
WC59 - 1177,DTZ DEBENHAM TIE LEUNG,Supplies & Services,Services,63000-PROFESSIONAL FEES AND SERVICES,Revenue,01/08/2015,"1,450.00",Economy & Environment
WC59 - 1178,DTZ DEBENHAM TIE LEUNG,Supplies & Services,Services,63000-PROFESSIONAL FEES AND SERVICES,Revenue,17/08/2015,"4,197.25",Economy & Environment
WC59 - 1179,DTZ DEBENHAM TIE LEUNG,Supplies & Services,Services,63000-PROFESSIONAL FEES AND SERVICES,Revenue,01/08/2015,"10,000.00",Economy & Environment
WC59 - 1180,DUCTBUSTERS LTD,Supplies & Services,"Equip,Furniture & Materials",60008-MAINTENANCE-FURNITURE & EQUIPMENT,Revenue,19/08/2015,158.00,Resources
WC59 - 1181,DUCTBUSTERS LTD,Supplies & Services,"Equip,Furniture & Materials",60008-MAINTENANCE-FURNITURE & EQUIPMENT,Revenue,19/08/2015,198.00,Resources
WC59 - 1182,DUCTBUSTERS LTD,Supplies & Services,"Equip,Furniture & Materials",60008-MAINTENANCE-FURNITURE & EQUIPMENT,Revenue,19/08/2015,315.00,Resources
WC59 - 1183,DUDLEY & WALSALL MENTAL HEALTH PARTNERSHIP NHS TRUST,Third Party Payments,Joint Arrangements,71007-CONTRIBUTION TO PCT,Revenue,26/08/2015,683.40,Childrens
WC59 - 1184,DUDLEY & WALSALL MENTAL HEALTH PARTNERSHIP NHS TRUST,Third Party Payments,Joint Arrangements,71007-CONTRIBUTION TO PCT,Revenue,26/08/2015,834.32,Childrens
WC59 - 1185,DUDLEY & WALSALL MENTAL HEALTH PARTNERSHIP NHS TRUST,Third Party Payments,Joint Arrangements,71007-CONTRIBUTION TO PCT,Revenue,12/08/2015,"1,111.62",Childrens
WC59 - 1186,DUDLEY & WALSALL MENTAL HEALTH PARTNERSHIP NHS TRUST,Third Party Payments,Joint Arrangements,71007-CONTRIBUTION TO PCT,Revenue,12/08/2015,"1,372.60",Childrens
WC59 - 1187,DUDLEY & WALSALL MENTAL HEALTH PARTNERSHIP NHS TRUST,Third Party Payments,Joint Arrangements,71007-CONTRIBUTION TO PCT,Revenue,26/08/2015,"1,439.87",Childrens
WC59 - 1188,DUDLEY & WALSALL MENTAL HEALTH PARTNERSHIP NHS TRUST,Third Party Payments,Joint Arrangements,71007-CONTRIBUTION TO PCT,Revenue,26/08/2015,"1,697.75",Childrens
WC59 - 1189,DUDLEY & WALSALL MENTAL HEALTH PARTNERSHIP NHS TRUST,Third Party Payments,Joint Arrangements,71007-CONTRIBUTION TO PCT,Revenue,26/08/2015,"1,752.24",Childrens
WC59 - 1190,DUDLEY & WALSALL MENTAL HEALTH PARTNERSHIP NHS TRUST,Third Party Payments,Joint Arrangements,71007-CONTRIBUTION TO PCT,Revenue,12/08/2015,"1,960.44",Childrens
WC59 - 1191,DUDLEY & WALSALL MENTAL HEALTH PARTNERSHIP NHS TRUST,Third Party Payments,Joint Arrangements,71007-CONTRIBUTION TO PCT,Revenue,12/08/2015,"2,888.54",Childrens
WC59 - 1192,DUDLEY & WALSALL MENTAL HEALTH PARTNERSHIP NHS TRUST,Third Party Payments,Joint Arrangements,71007-CONTRIBUTION TO PCT,Revenue,26/08/2015,"3,024.00",Childrens
WC59 - 1193,DUDLEY & WALSALL MENTAL HEALTH PARTNERSHIP NHS TRUST,Third Party Payments,Joint Arrangements,71007-CONTRIBUTION TO PCT,Revenue,28/08/2015,"3,404.71",Childrens
WC59 - 1194,DUDLEY & WALSALL MENTAL HEALTH PARTNERSHIP NHS TRUST,Third Party Payments,Joint Arrangements,71007-CONTRIBUTION TO PCT,Revenue,12/08/2015,"3,547.44",Childrens
WC59 - 1195,DUDLEY & WALSALL MENTAL HEALTH PARTNERSHIP NHS TRUST,Third Party Payments,Joint Arrangements,71007-CONTRIBUTION TO PCT,Revenue,26/08/2015,"4,169.33",Childrens
WC59 - 1196,DUDLEY & WALSALL MENTAL HEALTH PARTNERSHIP NHS TRUST,Third Party Payments,Joint Arrangements,71007-CONTRIBUTION TO PCT,Revenue,12/08/2015,"6,048.00",Childrens
WC59 - 1197,DUDLEY & WALSALL MENTAL HEALTH PARTNERSHIP NHS TRUST,Third Party Payments,Joint Arrangements,71007-CONTRIBUTION TO PCT,Revenue,12/08/2015,"8,367.60",Childrens
WC59 - 1198,DUDLEY & WALSALL MENTAL HEALTH PARTNERSHIP NHS TRUST,Third Party Payments,Joint Arrangements,71007-CONTRIBUTION TO PCT,Revenue,12/08/2015,"10,918.00",Childrens
WC59 - 1199,DUDLEY & WALSALL MENTAL HEALTH PARTNERSHIP NHS TRUST,Supplies & Services,Services,63000-PROFESSIONAL FEES AND SERVICES,Revenue,12/08/2015,"29,326.00",Economy & Environment
WC59 - 1200,DUDLEY COLLEGE,Capital,Capital,01045-PRIVATE GRANTS,Capital,04/08/2015,"76,909.78",Economy & Environment
WC59 - 1201,DUDLEY MBC,Supplies & Services,Services,63000-PROFESSIONAL FEES AND SERVICES,Revenue,05/08/2015,"2,148.00",Economy & Environment
WC59 - 1202,DUNSTALL ENTERPRISES LTD,Third Party Payments,Private Contractor Fees,73373-RESIDENTIAL & NURSING CARE PLACEMENTS,Revenue,18/08/2015,334.12,Social Care & Inclusion
WC59 - 1203,DUNSTALL ENTERPRISES LTD,Third Party Payments,Private Contractor Fees,73373-RESIDENTIAL & NURSING CARE PLACEMENTS,Revenue,18/08/2015,334.12,Social Care & Inclusion
WC59 - 1204,DUNSTALL ENTERPRISES LTD,Third Party Payments,Private Contractor Fees,73373-RESIDENTIAL & NURSING CARE PLACEMENTS,Revenue,18/08/2015,"3,633.08",Social Care & Inclusion
WC59 - 1205,DUNSTALL ENTERPRISES LTD,Third Party Payments,Private Contractor Fees,73373-RESIDENTIAL & NURSING CARE PLACEMENTS,Revenue,18/08/2015,"3,633.88",Social Care & Inclusion
WC59 - 1206,DURA-SPORT LTD,Supplies & Services,"Equip,Furniture & Materials",60500-GENERAL MATERIALS,Revenue,10/08/2015,"2,244.00",Economy & Environment
WC59 - 1207,DVLA,Third Party Payments,Private Contractor Fees,73025-PROFESSIONAL SERVICES-PRIV CONTRACTOR & OTHER AGENCIES,Revenue,13/08/2015,"2,985.45",Economy & Environment
WC59 - 1208,DWF LLP,Capital,Capital,01001-OTHER CONSULTANTS FEES,Capital,03/08/2015,585.00,Economy & Environment
WC59 - 1209,DWF LLP,Supplies & Services,Other Supplies & Services,67001-MISC INSURANCES - PAYMENT OF CLAIMS,Revenue,21/08/2015,"7,603.40",Holding Accounts
WC59 - 1210,DX NETWORK SERVICES LTD,Supplies & Services,"Equip,Furniture & Materials",60501-LIBRARY BOOKS,Revenue,20/08/2015,383.03,Economy & Environment
WC59 - 1211,DX NETWORK SERVICES LTD,Supplies & Services,Subscriptions,64500-PUBLICATIONS/ORGANISATIONS-SUBSCRIPTIONS,Revenue,01/08/2015,416.43,Economy & Environment
WC59 - 1212,REDACTED,Third Party Payments,Private Contractor Fees,74006-HOLIDAY/CHRISTMAS ALLOWANCE-FOSTER CARERS-OTH AGENCY PROVISION,Revenue,17/08/2015,"2,112.16",Childrens
WC59 - 1213,REDACTED,Supplies & Services,Other Supplies & Services,62515-MISCELLANEOUS SUPPLIES,Revenue,17/08/2015,"2,163.44",Childrens
WC59 - 1214,E MANTON LIMITED,Premises,Premises-Repairs & Maintenance,"40000-REPAIRS,ALTERATIONS & MAINTENANCE-PREM",Revenue,24/08/2015,320.00,Economy & Environment
WC59 - 1215,E MANTON LIMITED,Capital,Capital,01006-SITE WORKS MAIN CONTRACTORS,Capital,10/08/2015,"19,114.92",Childrens
WC59 - 1216,E MANTON LIMITED,Capital,Capital,01002-PROJECT FEES,Capital,06/08/2015,"89,965.00",Economy & Environment
WC59 - 1217,E.ON HIGHWAYS LIGHTING,Capital,Capital,01006-SITE WORKS MAIN CONTRACTORS,Capital,01/08/2015,"1,768.00",Economy & Environment
WC59 - 1218,EAGLE ENVELOPES LTD 002,Supplies & Services,"Printing, Stationery & Office Exp",62008-OUTWORK-PRINT ROOM,Revenue,18/08/2015,594.00,Resources
WC59 - 1219,EAGLE ENVELOPES LTD 002,Supplies & Services,"Equip,Furniture & Materials",60500-GENERAL MATERIALS,Revenue,27/08/2015,630.00,Resources
WC59 - 1220,EARTH TEC LIMITED,Supplies & Services,"Equip,Furniture & Materials",60500-GENERAL MATERIALS,Revenue,06/08/2015,737.60,Economy & Environment
WC59 - 1221,EARTH TEC LIMITED,Supplies & Services,"Equip,Furniture & Materials",60500-GENERAL MATERIALS,Revenue,12/08/2015,737.60,Economy & Environment
WC59 - 1222,EARTH TEC LIMITED,Supplies & Services,"Equip,Furniture & Materials",60500-GENERAL MATERIALS,Revenue,12/08/2015,737.60,Economy & Environment
WC59 - 1223,EASTERN SHIRES PURCHASING ORGANISATION,Premises,Cleaning & Caretaking,46000-EQUIP NEW-CLEANING,Revenue,05/08/2015,333.70,Childrens
WC59 - 1224,ECLIPSE PROPERTIES LTD,Transfer Payments,Transfer Payments,76010-ACCOMMODATION AND RELATED COSTS-ASSISTANCE TO S/S CLIENTS,Revenue,07/08/2015,"1,160.08",Childrens
WC59 - 1225,ECLIPSE PROPERTIES LTD,Transfer Payments,Transfer Payments,76010-ACCOMMODATION AND RELATED COSTS-ASSISTANCE TO S/S CLIENTS,Revenue,07/08/2015,"1,160.08",Childrens
WC59 - 1226,ECLIPSE PROPERTIES LTD,Transfer Payments,Transfer Payments,76010-ACCOMMODATION AND RELATED COSTS-ASSISTANCE TO S/S CLIENTS,Revenue,12/08/2015,"1,220.08",Childrens
WC59 - 1227,ECLIPSE PROPERTIES LTD,Transfer Payments,Transfer Payments,76010-ACCOMMODATION AND RELATED COSTS-ASSISTANCE TO S/S CLIENTS,Revenue,12/08/2015,"1,220.08",Childrens
WC59 - 1228,ECLIPSE PROPERTIES LTD,Transfer Payments,Transfer Payments,76010-ACCOMMODATION AND RELATED COSTS-ASSISTANCE TO S/S CLIENTS,Revenue,12/08/2015,"1,220.08",Childrens
WC59 - 1229,ECOLOGY & LAND MANAGEMENT,Capital,Capital,01006-SITE WORKS MAIN CONTRACTORS,Capital,01/08/2015,"1,056.80",Childrens
WC59 - 1230,EDEN ADAPTATIONS LTD,Capital,Capital,01045-PRIVATE GRANTS,Capital,17/08/2015,"4,053.93",Resources
WC59 - 1231,EDEN ADAPTATIONS LTD,Capital,Capital,01045-PRIVATE GRANTS,Capital,01/08/2015,"4,208.29",Resources
WC59 - 1232,EDGAR STAMMERS PRIMARY ACADEMY,Third Party Payments,Grants to Other Orgs,66502-TOP UP FUNDING -GRANTS TO SCHOOLS,Revenue,06/08/2015,"5,923.06",Childrens
WC59 - 1233,REDACTED,Transfer Payments,Transfer Payments,76422-DIRECT PAYMENTS TO SOCIAL SERVICES CLIENTS,Revenue,07/08/2015,769.44,Social Care & Inclusion
WC59 - 1234,REDACTED,Transfer Payments,Transfer Payments,76422-DIRECT PAYMENTS TO SOCIAL SERVICES CLIENTS,Revenue,07/08/2015,276.00,Social Care & Inclusion
WC59 - 1235,EDUCATION GOVERNANCE SERVICES LTD,Employees,Agency,34305-AGENCY STAFF-EMPLOYEES,Revenue,05/08/2015,300.00,Resources
WC59 - 1236,EDUCATION GOVERNANCE SERVICES LTD,Employees,Agency,34305-AGENCY STAFF-EMPLOYEES,Revenue,19/08/2015,"1,475.00",Resources
WC59 - 1237,EDWARDS MOORE,Third Party Payments,Private Contractor Fees,73374-SUPPORTED & OTHER ACCOMMODATION,Revenue,21/08/2015,415.00,Childrens
WC59 - 1238,EE,Supplies & Services,Communications & Computing,63601-COSTS (NOT INTERNAL RECHARGES)-TELEPHONES,Revenue,10/08/2015,"1,018.20",Resources
WC59 - 1239,EE LIMITED,Supplies & Services,Communications & Computing,63800-COMPUTER EQUIPMENT AND SUPPLIES,Revenue,01/08/2015,350.00,Resources
WC59 - 1240,EE LIMITED,Supplies & Services,Communications & Computing,63800-COMPUTER EQUIPMENT AND SUPPLIES,Revenue,01/08/2015,350.00,Resources
WC59 - 1241,EE LIMITED,Supplies & Services,Communications & Computing,63601-COSTS (NOT INTERNAL RECHARGES)-TELEPHONES,Revenue,04/08/2015,350.00,Resources
WC59 - 1242,EE LIMITED,Supplies & Services,Communications & Computing,63601-COSTS (NOT INTERNAL RECHARGES)-TELEPHONES,Revenue,04/08/2015,350.00,Resources
WC59 - 1243,EE LIMITED,Supplies & Services,Communications & Computing,63604-TELEPHONES MOBILE/PAGERS-TELEPHONES,Revenue,28/08/2015,565.81,Childrens
WC59 - 1244,EE LIMITED,Supplies & Services,Communications & Computing,63604-TELEPHONES MOBILE/PAGERS-TELEPHONES,Revenue,19/08/2015,"8,827.66",Resources
WC59 - 1245,EE LIMITED,Supplies & Services,Communications & Computing,63604-TELEPHONES MOBILE/PAGERS-TELEPHONES,Revenue,10/08/2015,"8,926.26",Resources
WC59 - 1246,EE LIMITED,Supplies & Services,Communications & Computing,63604-TELEPHONES MOBILE/PAGERS-TELEPHONES,Revenue,19/08/2015,"11,340.65",Resources
WC59 - 1247,EE LIMITED,Supplies & Services,Communications & Computing,63604-TELEPHONES MOBILE/PAGERS-TELEPHONES,Revenue,10/08/2015,"11,366.68",Resources
WC59 - 1248,EE LIMITED,Supplies & Services,Communications & Computing,63604-TELEPHONES MOBILE/PAGERS-TELEPHONES,Revenue,19/08/2015,"16,496.60",Resources
WC59 - 1249,EE LIMITED,Supplies & Services,Communications & Computing,63604-TELEPHONES MOBILE/PAGERS-TELEPHONES,Revenue,10/08/2015,"17,268.12",Resources
WC59 - 1250,EGBERT H TAYLOR & CO LTD,Supplies & Services,"Equip,Furniture & Materials",60006-NEW-FURNITURE & EQUIPMENT,Revenue,03/08/2015,"1,500.00",Economy & Environment
WC59 - 1251,REDACTED,Transfer Payments,Transfer Payments,76422-DIRECT PAYMENTS TO SOCIAL SERVICES CLIENTS,Revenue,07/08/2015,"1,832.40",Social Care & Inclusion
WC59 - 1252,REDACTED,Third Party Payments,Private Contractor Fees,74006-HOLIDAY/CHRISTMAS ALLOWANCE-FOSTER CARERS-OTH AGENCY PROVISION,Revenue,03/08/2015,621.52,Childrens
WC59 - 1253,REDACTED,Third Party Payments,Private Contractor Fees,74006-HOLIDAY/CHRISTMAS ALLOWANCE-FOSTER CARERS-OTH AGENCY PROVISION,Revenue,17/08/2015,"1,258.66",Childrens
WC59 - 1254,REDACTED,Supplies & Services,Other Supplies & Services,62515-MISCELLANEOUS SUPPLIES,Revenue,17/08/2015,"1,445.32",Childrens
WC59 - 1255,REDACTED,Supplies & Services,Other Supplies & Services,62515-MISCELLANEOUS SUPPLIES,Revenue,17/08/2015,540.20,Childrens
WC59 - 1256,REDACTED,Third Party Payments,Private Contractor Fees,74006-HOLIDAY/CHRISTMAS ALLOWANCE-FOSTER CARERS-OTH AGENCY PROVISION,Revenue,17/08/2015,571.44,Childrens
WC59 - 1257,REDACTED,Supplies & Services,Other Supplies & Services,62515-MISCELLANEOUS SUPPLIES,Revenue,17/08/2015,925.00,Childrens
